Workbook

Sheet Taux ou Ira
B2: Incidence de l'indemnité de remboursement anticipé (IRA) sur le taux débiteur……...….Incidence de l'indemnité de remboursement anticipé (IRA) sur le taux débiteur…....…Incidence de l'indemnité de remboursement anticipé (IRA) sur le taux débiteur....……..Incidence de l'indemnité de remboursement anticipé (IRA) sur le taux débiteur…...…….Incidence de l'indemnité de remboursement anticipé (IRA) sur le taux débiteur……........Incidence de l'indemnité de remboursement anticipé (IRA) sur le taux débiteur
B4: Durée en mois | C4: Montant | D4: =IF(I6=1,"Recherche du taux débiteur","Taux débiteur proportionnel") -> Taux débiteur proportionnel | E4: Rang du remboursement anticipé (mois) | F4: Taux avec IRA | G4: Quel taux débiteur négocier pour compenser l'IRA ? Cliquer sur "CALCUL" => => | J4: Rang du Remboursement anticipé | K4: 12 | L4: 24 | M4: 36 | N4: 48 | O4: 60 | P4: 72 | Q4: 84 | R4: 96 | S4: 108 | T4: 120 | U4: 132 | V4: 144 | W4: 156 | X4: 168 | Y4: 180 | Z4: 192 | AA4: 204 | AB4: 216 | AC4: 228 | AD4: 240 | AE4: 252 | AF4: 264 | AG4: 276 | AH4: 288 | AI4: 300 | AJ4: 312 | AK4: 324 | AL4: 336 | AM4: 348 | AN4: 360
B5: 180 | C5: 200000 | D5: 0.02 | E5: 96 | F5: =IF(E5=K4,K6,IF(E5=L4,L6,IF(E5=M4,M6,IF(E5=N4,N6,IF(E5=O4,O6,IF(E5=P4,P6,IF(E5=Q4,Q6,IF(E5=R4,R6,IF(E5=S4,S6,IF(E5=T4,T6,IF(E5=U4,U6,IF(E5=V4,V6,IF(E5=W4,W6,IF(E5=X4,X6,IF(E5=Y4,Y6,IF(E5=Z4,Z6,IF(E5=AA4,AA6,IF(E5=AB4,AB6,IF(E5=AC4,AC6,IF(E5=AD4,AD6,IF(E5=AE4,AE6,IF(E5=AF4,AF6,IF(E5=AG4,AG6,IF(E5=AH4,AH6,IF(E5=AI4,AI6,IF(E5=AJ4,AJ6,IF(E5=AK4,AK6,IF(E5=AL4,AL6,IF(E5=AM4,AM6,AN6))))))))))))))))))))))))))))) -> 0.02075479787 | G5: Taux débiteur à négocier | I5: 0.01927135 | J5: Taux sans IRA | K5: =$D$5 -> 0.02 | L5: 0.02 | M5: 0.02 | N5: 0.02 | O5: 0.02 | P5: 0.02 | Q5: 0.02 | R5: 0.02 | S5: 0.02 | T5: 0.02 | U5: 0.02 | V5: 0.02 | W5: 0.02 | X5: 0.02 | Y5: 0.02 | Z5: 0.02 | AA5: 0.02 | AB5: 0.02 | AC5: 0.02 | AD5: 0.02 | AE5: 0.02 | AF5: 0.02 | AG5: 0.02 | AH5: 0.02 | AI5: 0.02 | AJ5: 0.02 | AK5: 0.02 | AL5: 0.02 | AM5: 0.02 | AN5: 0.02
B6: =IF($E$5>B5,"Impossible - Rang remboursement supérieur durée prêt","Renseigner les cellules matérialisées en vert") -> Renseigner les cellules matérialisées en vert | F6: 0.02075479787 | H6: 0.02 | I6: 0 | J6: Taux avec IRA | K6: =K369*12 -> 0.02954600347 | L6: 0.02456483349 | M6: 0.02289701568 | N6: 0.02205662362 | O6: =O369*12 -> 0.02154655758 | P6: =P369*12 -> 0.02120106176 | Q6: 0.02094902231 | R6: 0.02075479787 | S6: 0.02059849463 | T6: 0.02046807251 | U6: 0.02035575194 | V6: 0.02025621071 | W6: 0.02016560457 | X6: 0.02008099659 | Y6: 0.02 | Z6: 0.02 | AA6: 0.02 | AB6: 0.02 | AC6: 0.02 | AD6: 0.02 | AE6: 0.02 | AF6: 0.02 | AG6: 0.02 | AH6: 0.02 | AI6: 0.02 | AJ6: 0.02 | AK6: 0.02 | AL6: 0.02 | AM6: 0.02 | AN6: 0.02
C7: Échéance | D7: Intérêts | E7: Capital amorti | F7: Capital dû | G7: IRA 3% du CRD | H7: IRA 6 mois d'intérêts | I7: IRA légale | J7: CRD + IRA | K7: 1 | L7: 2 | M7: 3 | N7: 4 | O7: 5 | P7: 6 | Q7: 7 | R7: 8 | S7: 9 | T7: 10 | U7: 11 | V7: 12 | W7: 13 | X7: 14 | Y7: 15 | Z7: 16 | AA7: 17 | AB7: 18 | AC7: 19 | AD7: 20 | AE7: 21 | AF7: 22 | AG7: 23 | AH7: 24 | AI7: 25 | AJ7: 26 | AK7: 27 | AL7: 28 | AM7: 29 | AN7: 30
B8: 0 | F8: =C5 -> 200000 | K8: =$F$8 -> 200000 | L8: 200000 | M8: 200000 | N8: 200000 | O8: 200000 | P8: =$F$8 -> 200000 | Q8: =$F$8 -> 200000 | R8: 200000 | S8: 200000 | T8: 200000 | U8: 200000 | V8: 200000 | W8: 200000 | X8: 200000 | Y8: 200000 | Z8: 200000 | AA8: 200000 | AB8: 200000 | AC8: 200000 | AD8: 200000 | AE8: 200000 | AF8: 200000 | AG8: 200000 | AH8: 200000 | AI8: 200000 | AJ8: 200000 | AK8: 200000 | AL8: 200000 | AM8: 200000 | AN8: 200000
A9: 12 | B9: 1 | C9: =IF(B9>$B$5,0,IF(B9=$B$5,E9+D9,-PMT($D$5/12,$B$5,$C$5,0,0))) -> 1287.017401 | D9: =IF(B9>$B$5,0,F8*$D$5/12) -> 333.3333333 | E9: =IF(B9>$B$5,0,IF(B9=$B$5,F8,C9-D9)) -> 953.6840678 | F9: =F8-E9 -> 199046.3159 | G9: =F9*3/100 -> 5971.389478 | H9: =F9*$D$5/2 -> 1990.463159 | I9: =IF(G9<H9,G9,H9) -> 1990.463159 | J9: =IF(B9>$B$5,0,F9+I9) -> 201036.7791 | K9: =IF($B9<K$4,-$C9,IF($B9=K$4,-($C9+$J9),0)) -> -1287.017401 | L9: -1287.017401 | M9: -1287.017401 | N9: -1287.017401 | O9: -1287.017401 | P9: =IF($B9<P$4,-$C9,IF($B9=P$4,-($C9+$J9),0)) -> -1287.017401 | Q9: -1287.017401 | R9: -1287.017401 | S9: -1287.017401 | T9: -1287.017401 | U9: -1287.017401 | V9: -1287.017401 | W9: -1287.017401 | X9: -1287.017401 | Y9: -1287.017401 | Z9: -1287.017401 | AA9: -1287.017401 | AB9: -1287.017401 | AC9: -1287.017401 | AD9: -1287.017401 | AE9: -1287.017401 | AF9: -1287.017401 | AG9: -1287.017401 | AH9: -1287.017401 | AI9: -1287.017401 | AJ9: -1287.017401 | AK9: -1287.017401 | AL9: -1287.017401 | AM9: -1287.017401 | AN9: -1287.017401
A10: 24 | B10: 2 | C10: 1287.017401 | D10: 331.7438599 | E10: 955.2735412 | F10: =F9-E10 -> 198091.0424 | G10: =F10*3/100 -> 5942.731272 | H10: =F10*$D$5/2 -> 1980.910424 | I10: =IF(G10<H10,G10,H10) -> 1980.910424 | J10: 200071.9528 | K10: -1287.017401 | L10: -1287.017401 | M10: -1287.017401 | N10: -1287.017401 | O10: -1287.017401 | P10: -1287.017401 | Q10: -1287.017401 | R10: -1287.017401 | S10: -1287.017401 | T10: -1287.017401 | U10: -1287.017401 | V10: -1287.017401 | W10: -1287.017401 | X10: -1287.017401 | Y10: -1287.017401 | Z10: -1287.017401 | AA10: -1287.017401 | AB10: -1287.017401 | AC10: -1287.017401 | AD10: -1287.017401 | AE10: -1287.017401 | AF10: -1287.017401 | AG10: -1287.017401 | AH10: -1287.017401 | AI10: -1287.017401 | AJ10: -1287.017401 | AK10: -1287.017401 | AL10: -1287.017401 | AM10: -1287.017401 | AN10: -1287.017401
A11: 36 | B11: 3 | C11: 1287.017401 | D11: 330.1517373 | E11: 956.8656638 | F11: 197134.1767 | G11: 5914.025302 | H11: 1971.341767 | I11: 1971.341767 | J11: 199105.5185 | K11: -1287.017401 | L11: -1287.017401 | M11: -1287.017401 | N11: -1287.017401 | O11: -1287.017401 | P11: -1287.017401 | Q11: -1287.017401 | R11: -1287.017401 | S11: -1287.017401 | T11: -1287.017401 | U11: -1287.017401 | V11: -1287.017401 | W11: -1287.017401 | X11: -1287.017401 | Y11: -1287.017401 | Z11: -1287.017401 | AA11: -1287.017401 | AB11: -1287.017401 | AC11: -1287.017401 | AD11: -1287.017401 | AE11: -1287.017401 | AF11: -1287.017401 | AG11: -1287.017401 | AH11: -1287.017401 | AI11: -1287.017401 | AJ11: -1287.017401 | AK11: -1287.017401 | AL11: -1287.017401 | AM11: -1287.017401 | AN11: -1287.017401
A12: 48 | B12: 4 | C12: 1287.017401 | D12: 328.5569612 | E12: 958.4604399 | F12: 196175.7163 | G12: 5885.271489 | H12: 1961.757163 | I12: 1961.757163 | J12: 198137.4735 | K12: -1287.017401 | L12: -1287.017401 | M12: -1287.017401 | N12: -1287.017401 | O12: -1287.017401 | P12: -1287.017401 | Q12: -1287.017401 | R12: -1287.017401 | S12: -1287.017401 | T12: -1287.017401 | U12: -1287.017401 | V12: -1287.017401 | W12: -1287.017401 | X12: -1287.017401 | Y12: -1287.017401 | Z12: -1287.017401 | AA12: -1287.017401 | AB12: -1287.017401 | AC12: -1287.017401 | AD12: -1287.017401 | AE12: -1287.017401 | AF12: -1287.017401 | AG12: -1287.017401 | AH12: -1287.017401 | AI12: -1287.017401 | AJ12: -1287.017401 | AK12: -1287.017401 | AL12: -1287.017401 | AM12: -1287.017401 | AN12: -1287.017401
A13: 60 | B13: 5 | C13: 1287.017401 | D13: 326.9595271 | E13: 960.057874 | F13: 195215.6584 | G13: 5856.469752 | H13: 1952.156584 | I13: 1952.156584 | J13: 197167.815 | K13: -1287.017401 | L13: -1287.017401 | M13: -1287.017401 | N13: =IF($B13<N$4,-$C13,IF($B13=N$4,-($C13+$J13),0)) -> -1287.017401 | O13: -1287.017401 | P13: -1287.017401 | Q13: -1287.017401 | R13: -1287.017401 | S13: -1287.017401 | T13: -1287.017401 | U13: -1287.017401 | V13: -1287.017401 | W13: -1287.017401 | X13: -1287.017401 | Y13: -1287.017401 | Z13: -1287.017401 | AA13: -1287.017401 | AB13: -1287.017401 | AC13: -1287.017401 | AD13: -1287.017401 | AE13: -1287.017401 | AF13: -1287.017401 | AG13: -1287.017401 | AH13: -1287.017401 | AI13: -1287.017401 | AJ13: -1287.017401 | AK13: -1287.017401 | AL13: -1287.017401 | AM13: -1287.017401 | AN13: -1287.017401
A14: 72 | B14: 6 | C14: 1287.017401 | D14: 325.3594307 | E14: 961.6579704 | F14: 194254.0004 | G14: 5827.620013 | H14: 1942.540004 | I14: 1942.540004 | J14: 196196.5404 | K14: =IF($B14<K$4,-$C14,IF($B14=K$4,-($C14+$J14),0)) -> -1287.017401 | L14: -1287.017401 | M14: -1287.017401 | N14: -1287.017401 | O14: -1287.017401 | P14: =IF($B14<P$4,-$C14,IF($B14=P$4,-($C14+$J14),0)) -> -1287.017401 | Q14: -1287.017401 | R14: -1287.017401 | S14: -1287.017401 | T14: -1287.017401 | U14: -1287.017401 | V14: -1287.017401 | W14: -1287.017401 | X14: -1287.017401 | Y14: -1287.017401 | Z14: -1287.017401 | AA14: -1287.017401 | AB14: -1287.017401 | AC14: -1287.017401 | AD14: -1287.017401 | AE14: -1287.017401 | AF14: -1287.017401 | AG14: -1287.017401 | AH14: -1287.017401 | AI14: -1287.017401 | AJ14: -1287.017401 | AK14: -1287.017401 | AL14: -1287.017401 | AM14: -1287.017401 | AN14: -1287.017401
A15: 84 | B15: 7 | C15: 1287.017401 | D15: 323.7566674 | E15: 963.2607337 | F15: 193290.7397 | G15: 5798.722191 | H15: 1932.907397 | I15: 1932.907397 | J15: 195223.6471 | K15: -1287.017401 | L15: -1287.017401 | M15: -1287.017401 | N15: -1287.017401 | O15: -1287.017401 | P15: =IF($B15<P$4,-$C15,IF($B15=P$4,-($C15+$J15),0)) -> -1287.017401 | Q15: -1287.017401 | R15: -1287.017401 | S15: -1287.017401 | T15: -1287.017401 | U15: -1287.017401 | V15: -1287.017401 | W15: -1287.017401 | X15: -1287.017401 | Y15: -1287.017401 | Z15: -1287.017401 | AA15: -1287.017401 | AB15: -1287.017401 | AC15: -1287.017401 | AD15: -1287.017401 | AE15: -1287.017401 | AF15: -1287.017401 | AG15: -1287.017401 | AH15: -1287.017401 | AI15: -1287.017401 | AJ15: -1287.017401 | AK15: -1287.017401 | AL15: -1287.017401 | AM15: -1287.017401 | AN15: -1287.017401
A16: 96 | B16: 8 | C16: 1287.017401 | D16: 322.1512328 | E16: 964.8661683 | F16: 192325.8735 | G16: 5769.776206 | H16: 1923.258735 | I16: 1923.258735 | J16: 194249.1323 | K16: -1287.017401 | L16: -1287.017401 | M16: -1287.017401 | N16: -1287.017401 | O16: -1287.017401 | P16: -1287.017401 | Q16: -1287.017401 | R16: -1287.017401 | S16: -1287.017401 | T16: -1287.017401 | U16: -1287.017401 | V16: -1287.017401 | W16: -1287.017401 | X16: -1287.017401 | Y16: -1287.017401 | Z16: -1287.017401 | AA16: -1287.017401 | AB16: -1287.017401 | AC16: -1287.017401 | AD16: -1287.017401 | AE16: -1287.017401 | AF16: -1287.017401 | AG16: -1287.017401 | AH16: -1287.017401 | AI16: -1287.017401 | AJ16: -1287.017401 | AK16: -1287.017401 | AL16: -1287.017401 | AM16: -1287.017401 | AN16: -1287.017401
A17: 108 | B17: 9 | C17: 1287.017401 | D17: 320.5431226 | E17: 966.4742785 | F17: 191359.3993 | G17: 5740.781978 | H17: 1913.593993 | I17: 1913.593993 | J17: 193272.9933 | K17: -1287.017401 | L17: -1287.017401 | M17: -1287.017401 | N17: -1287.017401 | O17: -1287.017401 | P17: -1287.017401 | Q17: -1287.017401 | R17: -1287.017401 | S17: -1287.017401 | T17: -1287.017401 | U17: -1287.017401 | V17: -1287.017401 | W17: -1287.017401 | X17: -1287.017401 | Y17: -1287.017401 | Z17: -1287.017401 | AA17: -1287.017401 | AB17: -1287.017401 | AC17: -1287.017401 | AD17: -1287.017401 | AE17: -1287.017401 | AF17: -1287.017401 | AG17: -1287.017401 | AH17: -1287.017401 | AI17: -1287.017401 | AJ17: -1287.017401 | AK17: -1287.017401 | AL17: -1287.017401 | AM17: -1287.017401 | AN17: -1287.017401
A18: 120 | B18: 10 | C18: 1287.017401 | D18: 318.9323321 | E18: 968.085069 | F18: 190391.3142 | G18: 5711.739426 | H18: 1903.913142 | I18: 1903.913142 | J18: 192295.2273 | K18: -1287.017401 | L18: -1287.017401 | M18: -1287.017401 | N18: -1287.017401 | O18: -1287.017401 | P18: -1287.017401 | Q18: -1287.017401 | R18: -1287.017401 | S18: -1287.017401 | T18: -1287.017401 | U18: -1287.017401 | V18: -1287.017401 | W18: -1287.017401 | X18: -1287.017401 | Y18: -1287.017401 | Z18: -1287.017401 | AA18: -1287.017401 | AB18: -1287.017401 | AC18: -1287.017401 | AD18: -1287.017401 | AE18: -1287.017401 | AF18: -1287.017401 | AG18: -1287.017401 | AH18: -1287.017401 | AI18: -1287.017401 | AJ18: -1287.017401 | AK18: -1287.017401 | AL18: -1287.017401 | AM18: -1287.017401 | AN18: -1287.017401
A19: 132 | B19: 11 | C19: 1287.017401 | D19: 317.318857 | E19: 969.6985441 | F19: 189421.6156 | G19: 5682.648469 | H19: 1894.216156 | I19: 1894.216156 | J19: 191315.8318 | K19: =IF($B19<K$4,-$C19,IF($B19=K$4,-($C19+$J19),0)) -> -1287.017401 | L19: -1287.017401 | M19: -1287.017401 | N19: -1287.017401 | O19: -1287.017401 | P19: -1287.017401 | Q19: -1287.017401 | R19: -1287.017401 | S19: -1287.017401 | T19: -1287.017401 | U19: -1287.017401 | V19: -1287.017401 | W19: -1287.017401 | X19: -1287.017401 | Y19: -1287.017401 | Z19: -1287.017401 | AA19: -1287.017401 | AB19: -1287.017401 | AC19: -1287.017401 | AD19: -1287.017401 | AE19: -1287.017401 | AF19: -1287.017401 | AG19: -1287.017401 | AH19: -1287.017401 | AI19: -1287.017401 | AJ19: -1287.017401 | AK19: -1287.017401 | AL19: -1287.017401 | AM19: -1287.017401 | AN19: -1287.017401
A20: 144 | B20: 12 | C20: 1287.017401 | D20: 315.7026927 | E20: 971.3147084 | F20: 188450.3009 | G20: 5653.509028 | H20: 1884.503009 | I20: 1884.503009 | J20: 190334.804 | K20: -191621.8214 | L20: -1287.017401 | M20: -1287.017401 | N20: -1287.017401 | O20: -1287.017401 | P20: -1287.017401 | Q20: -1287.017401 | R20: -1287.017401 | S20: -1287.017401 | T20: -1287.017401 | U20: -1287.017401 | V20: -1287.017401 | W20: -1287.017401 | X20: -1287.017401 | Y20: -1287.017401 | Z20: -1287.017401 | AA20: -1287.017401 | AB20: -1287.017401 | AC20: -1287.017401 | AD20: -1287.017401 | AE20: -1287.017401 | AF20: -1287.017401 | AG20: -1287.017401 | AH20: -1287.017401 | AI20: -1287.017401 | AJ20: -1287.017401 | AK20: -1287.017401 | AL20: -1287.017401 | AM20: -1287.017401 | AN20: -1287.017401
A21: 156 | B21: 13 | C21: 1287.017401 | D21: 314.0838349 | E21: 972.9335662 | F21: 187477.3674 | G21: 5624.321021 | H21: 1874.773674 | I21: 1874.773674 | J21: 189352.141 | K21: 0 | L21: -1287.017401 | M21: -1287.017401 | N21: -1287.017401 | O21: -1287.017401 | P21: -1287.017401 | Q21: -1287.017401 | R21: -1287.017401 | S21: -1287.017401 | T21: -1287.017401 | U21: -1287.017401 | V21: -1287.017401 | W21: -1287.017401 | X21: -1287.017401 | Y21: -1287.017401 | Z21: -1287.017401 | AA21: -1287.017401 | AB21: -1287.017401 | AC21: -1287.017401 | AD21: -1287.017401 | AE21: -1287.017401 | AF21: -1287.017401 | AG21: -1287.017401 | AH21: -1287.017401 | AI21: -1287.017401 | AJ21: -1287.017401 | AK21: -1287.017401 | AL21: -1287.017401 | AM21: -1287.017401 | AN21: -1287.017401
A22: 168 | B22: 14 | C22: 1287.017401 | D22: 312.462279 | E22: 974.5551222 | F22: 186502.8123 | G22: 5595.084368 | H22: 1865.028123 | I22: 1865.028123 | J22: 188367.8404 | K22: 0 | L22: -1287.017401 | M22: -1287.017401 | N22: -1287.017401 | O22: -1287.017401 | P22: -1287.017401 | Q22: -1287.017401 | R22: -1287.017401 | S22: -1287.017401 | T22: -1287.017401 | U22: -1287.017401 | V22: -1287.017401 | W22: -1287.017401 | X22: -1287.017401 | Y22: -1287.017401 | Z22: -1287.017401 | AA22: -1287.017401 | AB22: -1287.017401 | AC22: -1287.017401 | AD22: -1287.017401 | AE22: -1287.017401 | AF22: -1287.017401 | AG22: -1287.017401 | AH22: -1287.017401 | AI22: -1287.017401 | AJ22: -1287.017401 | AK22: -1287.017401 | AL22: -1287.017401 | AM22: -1287.017401 | AN22: -1287.017401
A23: 180 | B23: 15 | C23: 1287.017401 | D23: 310.8380204 | E23: 976.1793807 | F23: 185526.6329 | G23: 5565.798986 | H23: 1855.266329 | I23: 1855.266329 | J23: 187381.8992 | K23: 0 | L23: -1287.017401 | M23: -1287.017401 | N23: =IF($B23<N$4,-$C23,IF($B23=N$4,-($C23+$J23),0)) -> -1287.017401 | O23: -1287.017401 | P23: -1287.017401 | Q23: -1287.017401 | R23: -1287.017401 | S23: -1287.017401 | T23: -1287.017401 | U23: -1287.017401 | V23: -1287.017401 | W23: -1287.017401 | X23: -1287.017401 | Y23: -1287.017401 | Z23: -1287.017401 | AA23: -1287.017401 | AB23: -1287.017401 | AC23: -1287.017401 | AD23: -1287.017401 | AE23: -1287.017401 | AF23: -1287.017401 | AG23: -1287.017401 | AH23: -1287.017401 | AI23: -1287.017401 | AJ23: -1287.017401 | AK23: -1287.017401 | AL23: -1287.017401 | AM23: -1287.017401 | AN23: -1287.017401
A24: 192 | B24: 16 | C24: 1287.017401 | D24: 309.2110548 | E24: 977.8063463 | F24: 184548.8265 | G24: 5536.464796 | H24: 1845.488265 | I24: 1845.488265 | J24: 186394.3148 | K24: =IF($B24<K$4,-$C24,IF($B24=K$4,-($C24+$J24),0)) -> 0 | L24: -1287.017401 | M24: -1287.017401 | N24: -1287.017401 | O24: -1287.017401 | P24: -1287.017401 | Q24: -1287.017401 | R24: -1287.017401 | S24: -1287.017401 | T24: -1287.017401 | U24: -1287.017401 | V24: -1287.017401 | W24: -1287.017401 | X24: -1287.017401 | Y24: -1287.017401 | Z24: -1287.017401 | AA24: -1287.017401 | AB24: -1287.017401 | AC24: -1287.017401 | AD24: -1287.017401 | AE24: -1287.017401 | AF24: -1287.017401 | AG24: -1287.017401 | AH24: -1287.017401 | AI24: -1287.017401 | AJ24: -1287.017401 | AK24: -1287.017401 | AL24: -1287.017401 | AM24: -1287.017401 | AN24: -1287.017401
A25: 204 | B25: 17 | C25: 1287.017401 | D25: 307.5813775 | E25: 979.4360236 | F25: 183569.3905 | G25: 5507.081715 | H25: 1835.693905 | I25: 1835.693905 | J25: 185405.0844 | K25: 0 | L25: -1287.017401 | M25: -1287.017401 | N25: -1287.017401 | O25: -1287.017401 | P25: -1287.017401 | Q25: -1287.017401 | R25: -1287.017401 | S25: -1287.017401 | T25: -1287.017401 | U25: -1287.017401 | V25: -1287.017401 | W25: -1287.017401 | X25: -1287.017401 | Y25: -1287.017401 | Z25: -1287.017401 | AA25: -1287.017401 | AB25: -1287.017401 | AC25: -1287.017401 | AD25: -1287.017401 | AE25: -1287.017401 | AF25: -1287.017401 | AG25: -1287.017401 | AH25: -1287.017401 | AI25: -1287.017401 | AJ25: -1287.017401 | AK25: -1287.017401 | AL25: -1287.017401 | AM25: -1287.017401 | AN25: -1287.017401
A26: 216 | B26: 18 | C26: 1287.017401 | D26: 305.9489842 | E26: 981.0684169 | F26: 182588.3221 | G26: 5477.649663 | H26: 1825.883221 | I26: 1825.883221 | J26: 184414.2053 | K26: 0 | L26: -1287.017401 | M26: -1287.017401 | N26: -1287.017401 | O26: -1287.017401 | P26: -1287.017401 | Q26: -1287.017401 | R26: -1287.017401 | S26: -1287.017401 | T26: -1287.017401 | U26: -1287.017401 | V26: -1287.017401 | W26: -1287.017401 | X26: -1287.017401 | Y26: -1287.017401 | Z26: -1287.017401 | AA26: -1287.017401 | AB26: -1287.017401 | AC26: -1287.017401 | AD26: -1287.017401 | AE26: -1287.017401 | AF26: -1287.017401 | AG26: -1287.017401 | AH26: -1287.017401 | AI26: -1287.017401 | AJ26: -1287.017401 | AK26: -1287.017401 | AL26: -1287.017401 | AM26: -1287.017401 | AN26: -1287.017401
A27: 228 | B27: 19 | C27: 1287.017401 | D27: 304.3138701 | E27: 982.703531 | F27: 181605.6186 | G27: 5448.168557 | H27: 1816.056186 | I27: 1816.056186 | J27: 183421.6747 | K27: 0 | L27: -1287.017401 | M27: -1287.017401 | N27: -1287.017401 | O27: -1287.017401 | P27: -1287.017401 | Q27: -1287.017401 | R27: -1287.017401 | S27: -1287.017401 | T27: -1287.017401 | U27: -1287.017401 | V27: -1287.017401 | W27: -1287.017401 | X27: -1287.017401 | Y27: -1287.017401 | Z27: -1287.017401 | AA27: -1287.017401 | AB27: -1287.017401 | AC27: -1287.017401 | AD27: -1287.017401 | AE27: -1287.017401 | AF27: -1287.017401 | AG27: -1287.017401 | AH27: -1287.017401 | AI27: -1287.017401 | AJ27: -1287.017401 | AK27: -1287.017401 | AL27: -1287.017401 | AM27: -1287.017401 | AN27: -1287.017401
A28: 240 | B28: 20 | C28: 1287.017401 | D28: 302.6760309 | E28: 984.3413702 | F28: 180621.2772 | G28: 5418.638316 | H28: 1806.212772 | I28: 1806.212772 | J28: 182427.49 | K28: 0 | L28: -1287.017401 | M28: -1287.017401 | N28: =IF($B28<N$4,-$C28,IF($B28=N$4,-($C28+$J28),0)) -> -1287.017401 | O28: -1287.017401 | P28: -1287.017401 | Q28: -1287.017401 | R28: -1287.017401 | S28: -1287.017401 | T28: -1287.017401 | U28: -1287.017401 | V28: -1287.017401 | W28: -1287.017401 | X28: -1287.017401 | Y28: -1287.017401 | Z28: -1287.017401 | AA28: -1287.017401 | AB28: -1287.017401 | AC28: -1287.017401 | AD28: -1287.017401 | AE28: -1287.017401 | AF28: -1287.017401 | AG28: -1287.017401 | AH28: -1287.017401 | AI28: -1287.017401 | AJ28: -1287.017401 | AK28: -1287.017401 | AL28: -1287.017401 | AM28: -1287.017401 | AN28: -1287.017401
A29: 252 | B29: 21 | C29: 1287.017401 | D29: 301.035462 | E29: 985.9819391 | F29: 179635.2952 | G29: 5389.058857 | H29: 1796.352952 | I29: 1796.352952 | J29: 181431.6482 | K29: =IF($B29<K$4,-$C29,IF($B29=K$4,-($C29+$J29),0)) -> 0 | L29: -1287.017401 | M29: -1287.017401 | N29: -1287.017401 | O29: -1287.017401 | P29: -1287.017401 | Q29: -1287.017401 | R29: -1287.017401 | S29: -1287.017401 | T29: -1287.017401 | U29: -1287.017401 | V29: -1287.017401 | W29: -1287.017401 | X29: -1287.017401 | Y29: -1287.017401 | Z29: -1287.017401 | AA29: -1287.017401 | AB29: -1287.017401 | AC29: -1287.017401 | AD29: -1287.017401 | AE29: -1287.017401 | AF29: -1287.017401 | AG29: -1287.017401 | AH29: -1287.017401 | AI29: -1287.017401 | AJ29: -1287.017401 | AK29: -1287.017401 | AL29: -1287.017401 | AM29: -1287.017401 | AN29: -1287.017401
A30: 264 | B30: 22 | C30: 1287.017401 | D30: 299.3921587 | E30: 987.6252424 | F30: 178647.67 | G30: 5359.4301 | H30: 1786.4767 | I30: 1786.4767 | J30: 180434.1467 | K30: 0 | L30: -1287.017401 | M30: -1287.017401 | N30: -1287.017401 | O30: -1287.017401 | P30: -1287.017401 | Q30: -1287.017401 | R30: -1287.017401 | S30: -1287.017401 | T30: -1287.017401 | U30: -1287.017401 | V30: -1287.017401 | W30: -1287.017401 | X30: -1287.017401 | Y30: -1287.017401 | Z30: -1287.017401 | AA30: -1287.017401 | AB30: -1287.017401 | AC30: -1287.017401 | AD30: -1287.017401 | AE30: -1287.017401 | AF30: -1287.017401 | AG30: -1287.017401 | AH30: -1287.017401 | AI30: -1287.017401 | AJ30: -1287.017401 | AK30: -1287.017401 | AL30: -1287.017401 | AM30: -1287.017401 | AN30: -1287.017401
A31: 276 | B31: 23 | C31: 1287.017401 | D31: 297.7461167 | E31: 989.2712844 | F31: 177658.3987 | G31: 5329.751962 | H31: 1776.583987 | I31: 1776.583987 | J31: 179434.9827 | K31: 0 | L31: -1287.017401 | M31: -1287.017401 | N31: -1287.017401 | O31: -1287.017401 | P31: -1287.017401 | Q31: -1287.017401 | R31: -1287.017401 | S31: -1287.017401 | T31: -1287.017401 | U31: -1287.017401 | V31: -1287.017401 | W31: -1287.017401 | X31: -1287.017401 | Y31: -1287.017401 | Z31: -1287.017401 | AA31: -1287.017401 | AB31: -1287.017401 | AC31: -1287.017401 | AD31: -1287.017401 | AE31: -1287.017401 | AF31: -1287.017401 | AG31: -1287.017401 | AH31: -1287.017401 | AI31: -1287.017401 | AJ31: -1287.017401 | AK31: -1287.017401 | AL31: -1287.017401 | AM31: -1287.017401 | AN31: -1287.017401
A32: 288 | B32: 24 | C32: 1287.017401 | D32: 296.0973312 | E32: 990.9200699 | F32: 176667.4786 | G32: 5300.024359 | H32: 1766.674786 | I32: 1766.674786 | J32: 178434.1534 | K32: 0 | L32: -179721.1708 | M32: -1287.017401 | N32: -1287.017401 | O32: -1287.017401 | P32: -1287.017401 | Q32: -1287.017401 | R32: -1287.017401 | S32: -1287.017401 | T32: -1287.017401 | U32: -1287.017401 | V32: -1287.017401 | W32: -1287.017401 | X32: -1287.017401 | Y32: -1287.017401 | Z32: -1287.017401 | AA32: -1287.017401 | AB32: -1287.017401 | AC32: -1287.017401 | AD32: -1287.017401 | AE32: -1287.017401 | AF32: -1287.017401 | AG32: -1287.017401 | AH32: -1287.017401 | AI32: -1287.017401 | AJ32: -1287.017401 | AK32: -1287.017401 | AL32: -1287.017401 | AM32: -1287.017401 | AN32: -1287.017401
A33: 300 | B33: 25 | C33: 1287.017401 | D33: 294.4457977 | E33: 992.5716034 | F33: 175674.907 | G33: 5270.247211 | H33: 1756.74907 | I33: 1756.74907 | J33: 177431.6561 | K33: 0 | L33: 0 | M33: -1287.017401 | N33: =IF($B33<N$4,-$C33,IF($B33=N$4,-($C33+$J33),0)) -> -1287.017401 | O33: -1287.017401 | P33: -1287.017401 | Q33: -1287.017401 | R33: -1287.017401 | S33: -1287.017401 | T33: -1287.017401 | U33: -1287.017401 | V33: -1287.017401 | W33: -1287.017401 | X33: -1287.017401 | Y33: -1287.017401 | Z33: -1287.017401 | AA33: -1287.017401 | AB33: -1287.017401 | AC33: -1287.017401 | AD33: -1287.017401 | AE33: -1287.017401 | AF33: -1287.017401 | AG33: -1287.017401 | AH33: -1287.017401 | AI33: -1287.017401 | AJ33: -1287.017401 | AK33: -1287.017401 | AL33: -1287.017401 | AM33: -1287.017401 | AN33: -1287.017401
A34: 312 | B34: 26 | C34: 1287.017401 | D34: 292.7915117 | E34: 994.2258894 | F34: 174680.6812 | G34: 5240.420435 | H34: 1746.806812 | I34: 1746.806812 | J34: 176427.488 | K34: =IF($B34<K$4,-$C34,IF($B34=K$4,-($C34+$J34),0)) -> 0 | L34: 0 | M34: -1287.017401 | N34: -1287.017401 | O34: -1287.017401 | P34: -1287.017401 | Q34: -1287.017401 | R34: -1287.017401 | S34: -1287.017401 | T34: -1287.017401 | U34: -1287.017401 | V34: -1287.017401 | W34: -1287.017401 | X34: -1287.017401 | Y34: -1287.017401 | Z34: -1287.017401 | AA34: -1287.017401 | AB34: -1287.017401 | AC34: -1287.017401 | AD34: -1287.017401 | AE34: -1287.017401 | AF34: -1287.017401 | AG34: -1287.017401 | AH34: -1287.017401 | AI34: -1287.017401 | AJ34: -1287.017401 | AK34: -1287.017401 | AL34: -1287.017401 | AM34: -1287.017401 | AN34: -1287.017401
A35: 324 | B35: 27 | C35: 1287.017401 | D35: 291.1344686 | E35: 995.8829325 | F35: 173684.7982 | G35: 5210.543947 | H35: 1736.847982 | I35: 1736.847982 | J35: 175421.6462 | K35: 0 | L35: 0 | M35: -1287.017401 | N35: -1287.017401 | O35: -1287.017401 | P35: -1287.017401 | Q35: -1287.017401 | R35: -1287.017401 | S35: -1287.017401 | T35: -1287.017401 | U35: -1287.017401 | V35: -1287.017401 | W35: -1287.017401 | X35: -1287.017401 | Y35: -1287.017401 | Z35: -1287.017401 | AA35: -1287.017401 | AB35: -1287.017401 | AC35: -1287.017401 | AD35: -1287.017401 | AE35: -1287.017401 | AF35: -1287.017401 | AG35: -1287.017401 | AH35: -1287.017401 | AI35: -1287.017401 | AJ35: -1287.017401 | AK35: -1287.017401 | AL35: -1287.017401 | AM35: -1287.017401 | AN35: -1287.017401
A36: 336 | B36: 28 | C36: 1287.017401 | D36: 289.4746637 | E36: 997.5427374 | F36: 172687.2555 | G36: 5180.617665 | H36: 1726.872555 | I36: 1726.872555 | J36: 174414.128 | K36: 0 | L36: 0 | M36: -1287.017401 | N36: -1287.017401 | O36: -1287.017401 | P36: -1287.017401 | Q36: -1287.017401 | R36: -1287.017401 | S36: -1287.017401 | T36: -1287.017401 | U36: -1287.017401 | V36: -1287.017401 | W36: -1287.017401 | X36: -1287.017401 | Y36: -1287.017401 | Z36: -1287.017401 | AA36: -1287.017401 | AB36: -1287.017401 | AC36: -1287.017401 | AD36: -1287.017401 | AE36: -1287.017401 | AF36: -1287.017401 | AG36: -1287.017401 | AH36: -1287.017401 | AI36: -1287.017401 | AJ36: -1287.017401 | AK36: -1287.017401 | AL36: -1287.017401 | AM36: -1287.017401 | AN36: -1287.017401
A37: 348 | B37: 29 | C37: 1287.017401 | D37: 287.8120925 | E37: 999.2053086 | F37: 171688.0502 | G37: 5150.641505 | H37: 1716.880502 | I37: 1716.880502 | J37: 173404.9307 | K37: 0 | L37: 0 | M37: -1287.017401 | N37: -1287.017401 | O37: -1287.017401 | P37: -1287.017401 | Q37: -1287.017401 | R37: -1287.017401 | S37: -1287.017401 | T37: -1287.017401 | U37: -1287.017401 | V37: -1287.017401 | W37: -1287.017401 | X37: -1287.017401 | Y37: -1287.017401 | Z37: -1287.017401 | AA37: -1287.017401 | AB37: -1287.017401 | AC37: -1287.017401 | AD37: -1287.017401 | AE37: -1287.017401 | AF37: -1287.017401 | AG37: -1287.017401 | AH37: -1287.017401 | AI37: -1287.017401 | AJ37: -1287.017401 | AK37: -1287.017401 | AL37: -1287.017401 | AM37: -1287.017401 | AN37: -1287.017401
A38: 360 | B38: 30 | C38: 1287.017401 | D38: 286.1467503 | E38: 1000.870651 | F38: 170687.1795 | G38: 5120.615386 | H38: 1706.871795 | I38: 1706.871795 | J38: 172394.0513 | K38: 0 | L38: 0 | M38: -1287.017401 | N38: =IF($B38<N$4,-$C38,IF($B38=N$4,-($C38+$J38),0)) -> -1287.017401 | O38: -1287.017401 | P38: -1287.017401 | Q38: -1287.017401 | R38: -1287.017401 | S38: -1287.017401 | T38: -1287.017401 | U38: -1287.017401 | V38: -1287.017401 | W38: -1287.017401 | X38: -1287.017401 | Y38: -1287.017401 | Z38: -1287.017401 | AA38: -1287.017401 | AB38: -1287.017401 | AC38: -1287.017401 | AD38: -1287.017401 | AE38: -1287.017401 | AF38: -1287.017401 | AG38: -1287.017401 | AH38: -1287.017401 | AI38: -1287.017401 | AJ38: -1287.017401 | AK38: -1287.017401 | AL38: -1287.017401 | AM38: -1287.017401 | AN38: -1287.017401
B39: 31 | C39: 1287.017401 | D39: 284.4786325 | E39: 1002.538769 | F39: 169684.6408 | G39: 5090.539223 | H39: 1696.846408 | I39: 1696.846408 | J39: 171381.4872 | K39: =IF($B39<K$4,-$C39,IF($B39=K$4,-($C39+$J39),0)) -> 0 | L39: 0 | M39: -1287.017401 | N39: -1287.017401 | O39: -1287.017401 | P39: -1287.017401 | Q39: -1287.017401 | R39: -1287.017401 | S39: -1287.017401 | T39: -1287.017401 | U39: -1287.017401 | V39: -1287.017401 | W39: -1287.017401 | X39: -1287.017401 | Y39: -1287.017401 | Z39: -1287.017401 | AA39: -1287.017401 | AB39: -1287.017401 | AC39: -1287.017401 | AD39: -1287.017401 | AE39: -1287.017401 | AF39: -1287.017401 | AG39: -1287.017401 | AH39: -1287.017401 | AI39: -1287.017401 | AJ39: -1287.017401 | AK39: -1287.017401 | AL39: -1287.017401 | AM39: -1287.017401 | AN39: -1287.017401
B40: 32 | C40: 1287.017401 | D40: 282.8077346 | E40: 1004.209667 | F40: 168680.4311 | G40: 5060.412933 | H40: 1686.804311 | I40: 1686.804311 | J40: 170367.2354 | K40: 0 | L40: 0 | M40: -1287.017401 | N40: -1287.017401 | O40: -1287.017401 | P40: -1287.017401 | Q40: -1287.017401 | R40: -1287.017401 | S40: -1287.017401 | T40: -1287.017401 | U40: -1287.017401 | V40: -1287.017401 | W40: -1287.017401 | X40: -1287.017401 | Y40: -1287.017401 | Z40: -1287.017401 | AA40: -1287.017401 | AB40: -1287.017401 | AC40: -1287.017401 | AD40: -1287.017401 | AE40: -1287.017401 | AF40: -1287.017401 | AG40: -1287.017401 | AH40: -1287.017401 | AI40: -1287.017401 | AJ40: -1287.017401 | AK40: -1287.017401 | AL40: -1287.017401 | AM40: -1287.017401 | AN40: -1287.017401
B41: 33 | C41: 1287.017401 | D41: 281.1340518 | E41: 1005.883349 | F41: 167674.5477 | G41: 5030.236432 | H41: 1676.745477 | I41: 1676.745477 | J41: 169351.2932 | K41: 0 | L41: 0 | M41: -1287.017401 | N41: -1287.017401 | O41: -1287.017401 | P41: -1287.017401 | Q41: -1287.017401 | R41: -1287.017401 | S41: -1287.017401 | T41: -1287.017401 | U41: -1287.017401 | V41: -1287.017401 | W41: -1287.017401 | X41: -1287.017401 | Y41: -1287.017401 | Z41: -1287.017401 | AA41: -1287.017401 | AB41: -1287.017401 | AC41: -1287.017401 | AD41: -1287.017401 | AE41: -1287.017401 | AF41: -1287.017401 | AG41: -1287.017401 | AH41: -1287.017401 | AI41: -1287.017401 | AJ41: -1287.017401 | AK41: -1287.017401 | AL41: -1287.017401 | AM41: -1287.017401 | AN41: -1287.017401
B42: 34 | C42: 1287.017401 | D42: 279.4575796 | E42: 1007.559822 | F42: 166666.9879 | G42: 5000.009638 | H42: 1666.669879 | I42: 1666.669879 | J42: 168333.6578 | K42: 0 | L42: 0 | M42: -1287.017401 | N42: -1287.017401 | O42: -1287.017401 | P42: -1287.017401 | Q42: -1287.017401 | R42: -1287.017401 | S42: -1287.017401 | T42: -1287.017401 | U42: -1287.017401 | V42: -1287.017401 | W42: -1287.017401 | X42: -1287.017401 | Y42: -1287.017401 | Z42: -1287.017401 | AA42: -1287.017401 | AB42: -1287.017401 | AC42: -1287.017401 | AD42: -1287.017401 | AE42: -1287.017401 | AF42: -1287.017401 | AG42: -1287.017401 | AH42: -1287.017401 | AI42: -1287.017401 | AJ42: -1287.017401 | AK42: -1287.017401 | AL42: -1287.017401 | AM42: -1287.017401 | AN42: -1287.017401
B43: 35 | C43: 1287.017401 | D43: 277.7783132 | E43: 1009.239088 | F43: 165657.7488 | G43: 4969.732465 | H43: 1656.577488 | I43: 1656.577488 | J43: 167314.3263 | K43: 0 | L43: 0 | M43: -1287.017401 | N43: =IF($B43<N$4,-$C43,IF($B43=N$4,-($C43+$J43),0)) -> -1287.017401 | O43: -1287.017401 | P43: -1287.017401 | Q43: -1287.017401 | R43: -1287.017401 | S43: -1287.017401 | T43: -1287.017401 | U43: -1287.017401 | V43: -1287.017401 | W43: -1287.017401 | X43: -1287.017401 | Y43: -1287.017401 | Z43: -1287.017401 | AA43: -1287.017401 | AB43: -1287.017401 | AC43: -1287.017401 | AD43: -1287.017401 | AE43: -1287.017401 | AF43: -1287.017401 | AG43: -1287.017401 | AH43: -1287.017401 | AI43: -1287.017401 | AJ43: -1287.017401 | AK43: -1287.017401 | AL43: -1287.017401 | AM43: -1287.017401 | AN43: -1287.017401
B44: 36 | C44: 1287.017401 | D44: 276.0962481 | E44: 1010.921153 | F44: 164646.8277 | G44: 4939.40483 | H44: 1646.468277 | I44: 1646.468277 | J44: 166293.296 | K44: =IF($B44<K$4,-$C44,IF($B44=K$4,-($C44+$J44),0)) -> 0 | L44: 0 | M44: -167580.3134 | N44: -1287.017401 | O44: -1287.017401 | P44: -1287.017401 | Q44: -1287.017401 | R44: -1287.017401 | S44: -1287.017401 | T44: -1287.017401 | U44: -1287.017401 | V44: -1287.017401 | W44: -1287.017401 | X44: -1287.017401 | Y44: -1287.017401 | Z44: -1287.017401 | AA44: -1287.017401 | AB44: -1287.017401 | AC44: -1287.017401 | AD44: -1287.017401 | AE44: -1287.017401 | AF44: -1287.017401 | AG44: -1287.017401 | AH44: -1287.017401 | AI44: -1287.017401 | AJ44: -1287.017401 | AK44: -1287.017401 | AL44: -1287.017401 | AM44: -1287.017401 | AN44: -1287.017401
B45: 37 | C45: 1287.017401 | D45: 274.4113795 | E45: 1012.606022 | F45: 163634.2217 | G45: 4909.02665 | H45: 1636.342217 | I45: 1636.342217 | J45: 165270.5639 | K45: 0 | L45: 0 | M45: 0 | N45: -1287.017401 | O45: -1287.017401 | P45: -1287.017401 | Q45: -1287.017401 | R45: -1287.017401 | S45: -1287.017401 | T45: -1287.017401 | U45: -1287.017401 | V45: -1287.017401 | W45: -1287.017401 | X45: -1287.017401 | Y45: -1287.017401 | Z45: -1287.017401 | AA45: -1287.017401 | AB45: -1287.017401 | AC45: -1287.017401 | AD45: -1287.017401 | AE45: -1287.017401 | AF45: -1287.017401 | AG45: -1287.017401 | AH45: -1287.017401 | AI45: -1287.017401 | AJ45: -1287.017401 | AK45: -1287.017401 | AL45: -1287.017401 | AM45: -1287.017401 | AN45: -1287.017401
B46: 38 | C46: 1287.017401 | D46: 272.7237028 | E46: 1014.293698 | F46: 162619.928 | G46: 4878.597839 | H46: 1626.19928 | I46: 1626.19928 | J46: 164246.1272 | K46: 0 | L46: 0 | M46: 0 | N46: -1287.017401 | O46: -1287.017401 | P46: -1287.017401 | Q46: -1287.017401 | R46: -1287.017401 | S46: -1287.017401 | T46: -1287.017401 | U46: -1287.017401 | V46: -1287.017401 | W46: -1287.017401 | X46: -1287.017401 | Y46: -1287.017401 | Z46: -1287.017401 | AA46: -1287.017401 | AB46: -1287.017401 | AC46: -1287.017401 | AD46: -1287.017401 | AE46: -1287.017401 | AF46: -1287.017401 | AG46: -1287.017401 | AH46: -1287.017401 | AI46: -1287.017401 | AJ46: -1287.017401 | AK46: -1287.017401 | AL46: -1287.017401 | AM46: -1287.017401 | AN46: -1287.017401
B47: 39 | C47: 1287.017401 | D47: 271.0332133 | E47: 1015.984188 | F47: 161603.9438 | G47: 4848.118313 | H47: 1616.039438 | I47: 1616.039438 | J47: 163219.9832 | K47: 0 | L47: 0 | M47: 0 | N47: -1287.017401 | O47: -1287.017401 | P47: -1287.017401 | Q47: -1287.017401 | R47: -1287.017401 | S47: -1287.017401 | T47: -1287.017401 | U47: -1287.017401 | V47: -1287.017401 | W47: -1287.017401 | X47: -1287.017401 | Y47: -1287.017401 | Z47: -1287.017401 | AA47: -1287.017401 | AB47: -1287.017401 | AC47: -1287.017401 | AD47: -1287.017401 | AE47: -1287.017401 | AF47: -1287.017401 | AG47: -1287.017401 | AH47: -1287.017401 | AI47: -1287.017401 | AJ47: -1287.017401 | AK47: -1287.017401 | AL47: -1287.017401 | AM47: -1287.017401 | AN47: -1287.017401
B48: 40 | C48: 1287.017401 | D48: 269.3399063 | E48: 1017.677495 | F48: 160586.2663 | G48: 4817.587988 | H48: 1605.862663 | I48: 1605.862663 | J48: 162192.1289 | K48: 0 | L48: 0 | M48: 0 | N48: =IF($B48<N$4,-$C48,IF($B48=N$4,-($C48+$J48),0)) -> -1287.017401 | O48: -1287.017401 | P48: -1287.017401 | Q48: -1287.017401 | R48: -1287.017401 | S48: -1287.017401 | T48: -1287.017401 | U48: -1287.017401 | V48: -1287.017401 | W48: -1287.017401 | X48: -1287.017401 | Y48: -1287.017401 | Z48: -1287.017401 | AA48: -1287.017401 | AB48: -1287.017401 | AC48: -1287.017401 | AD48: -1287.017401 | AE48: -1287.017401 | AF48: -1287.017401 | AG48: -1287.017401 | AH48: -1287.017401 | AI48: -1287.017401 | AJ48: -1287.017401 | AK48: -1287.017401 | AL48: -1287.017401 | AM48: -1287.017401 | AN48: -1287.017401
B49: 41 | C49: 1287.017401 | D49: 267.6437771 | E49: 1019.373624 | F49: 159566.8927 | G49: 4787.00678 | H49: 1595.668927 | I49: 1595.668927 | J49: 161162.5616 | K49: =IF($B49<K$4,-$C49,IF($B49=K$4,-($C49+$J49),0)) -> 0 | L49: 0 | M49: 0 | N49: -1287.017401 | O49: -1287.017401 | P49: -1287.017401 | Q49: -1287.017401 | R49: -1287.017401 | S49: -1287.017401 | T49: -1287.017401 | U49: -1287.017401 | V49: -1287.017401 | W49: -1287.017401 | X49: -1287.017401 | Y49: -1287.017401 | Z49: -1287.017401 | AA49: -1287.017401 | AB49: -1287.017401 | AC49: -1287.017401 | AD49: -1287.017401 | AE49: -1287.017401 | AF49: -1287.017401 | AG49: -1287.017401 | AH49: -1287.017401 | AI49: -1287.017401 | AJ49: -1287.017401 | AK49: -1287.017401 | AL49: -1287.017401 | AM49: -1287.017401 | AN49: -1287.017401
B50: 42 | C50: 1287.017401 | D50: 265.9448211 | E50: 1021.07258 | F50: 158545.8201 | G50: 4756.374602 | H50: 1585.458201 | I50: 1585.458201 | J50: 160131.2783 | K50: 0 | L50: 0 | M50: 0 | N50: -1287.017401 | O50: -1287.017401 | P50: -1287.017401 | Q50: -1287.017401 | R50: -1287.017401 | S50: -1287.017401 | T50: -1287.017401 | U50: -1287.017401 | V50: -1287.017401 | W50: -1287.017401 | X50: -1287.017401 | Y50: -1287.017401 | Z50: -1287.017401 | AA50: -1287.017401 | AB50: -1287.017401 | AC50: -1287.017401 | AD50: -1287.017401 | AE50: -1287.017401 | AF50: -1287.017401 | AG50: -1287.017401 | AH50: -1287.017401 | AI50: -1287.017401 | AJ50: -1287.017401 | AK50: -1287.017401 | AL50: -1287.017401 | AM50: -1287.017401 | AN50: -1287.017401
B51: 43 | C51: 1287.017401 | D51: 264.2430335 | E51: 1022.774368 | F51: 157523.0457 | G51: 4725.691371 | H51: 1575.230457 | I51: 1575.230457 | J51: 159098.2762 | K51: 0 | L51: 0 | M51: 0 | N51: -1287.017401 | O51: -1287.017401 | P51: -1287.017401 | Q51: -1287.017401 | R51: -1287.017401 | S51: -1287.017401 | T51: -1287.017401 | U51: -1287.017401 | V51: -1287.017401 | W51: -1287.017401 | X51: -1287.017401 | Y51: -1287.017401 | Z51: -1287.017401 | AA51: -1287.017401 | AB51: -1287.017401 | AC51: -1287.017401 | AD51: -1287.017401 | AE51: -1287.017401 | AF51: -1287.017401 | AG51: -1287.017401 | AH51: -1287.017401 | AI51: -1287.017401 | AJ51: -1287.017401 | AK51: -1287.017401 | AL51: -1287.017401 | AM51: -1287.017401 | AN51: -1287.017401
B52: 44 | C52: 1287.017401 | D52: 262.5384095 | E52: 1024.478992 | F52: 156498.5667 | G52: 4694.957001 | H52: 1564.985667 | I52: 1564.985667 | J52: 158063.5524 | K52: 0 | L52: 0 | M52: 0 | N52: -1287.017401 | O52: -1287.017401 | P52: -1287.017401 | Q52: -1287.017401 | R52: -1287.017401 | S52: -1287.017401 | T52: -1287.017401 | U52: -1287.017401 | V52: -1287.017401 | W52: -1287.017401 | X52: -1287.017401 | Y52: -1287.017401 | Z52: -1287.017401 | AA52: -1287.017401 | AB52: -1287.017401 | AC52: -1287.017401 | AD52: -1287.017401 | AE52: -1287.017401 | AF52: -1287.017401 | AG52: -1287.017401 | AH52: -1287.017401 | AI52: -1287.017401 | AJ52: -1287.017401 | AK52: -1287.017401 | AL52: -1287.017401 | AM52: -1287.017401 | AN52: -1287.017401
B53: 45 | C53: 1287.017401 | D53: 260.8309445 | E53: 1026.186457 | F53: 155472.3803 | G53: 4664.171408 | H53: 1554.723803 | I53: 1554.723803 | J53: 157027.1041 | K53: 0 | L53: 0 | M53: 0 | N53: =IF($B53<N$4,-$C53,IF($B53=N$4,-($C53+$J53),0)) -> -1287.017401 | O53: -1287.017401 | P53: -1287.017401 | Q53: -1287.017401 | R53: -1287.017401 | S53: -1287.017401 | T53: -1287.017401 | U53: -1287.017401 | V53: -1287.017401 | W53: -1287.017401 | X53: -1287.017401 | Y53: -1287.017401 | Z53: -1287.017401 | AA53: -1287.017401 | AB53: -1287.017401 | AC53: -1287.017401 | AD53: -1287.017401 | AE53: -1287.017401 | AF53: -1287.017401 | AG53: -1287.017401 | AH53: -1287.017401 | AI53: -1287.017401 | AJ53: -1287.017401 | AK53: -1287.017401 | AL53: -1287.017401 | AM53: -1287.017401 | AN53: -1287.017401
B54: 46 | C54: 1287.017401 | D54: 259.1206338 | E54: 1027.896767 | F54: 154444.4835 | G54: 4633.334505 | H54: 1544.444835 | I54: 1544.444835 | J54: 155988.9283 | K54: =IF($B54<K$4,-$C54,IF($B54=K$4,-($C54+$J54),0)) -> 0 | L54: 0 | M54: 0 | N54: -1287.017401 | O54: -1287.017401 | P54: -1287.017401 | Q54: -1287.017401 | R54: -1287.017401 | S54: -1287.017401 | T54: -1287.017401 | U54: -1287.017401 | V54: -1287.017401 | W54: -1287.017401 | X54: -1287.017401 | Y54: -1287.017401 | Z54: -1287.017401 | AA54: -1287.017401 | AB54: -1287.017401 | AC54: -1287.017401 | AD54: -1287.017401 | AE54: -1287.017401 | AF54: -1287.017401 | AG54: -1287.017401 | AH54: -1287.017401 | AI54: -1287.017401 | AJ54: -1287.017401 | AK54: -1287.017401 | AL54: -1287.017401 | AM54: -1287.017401 | AN54: -1287.017401
B55: 47 | C55: 1287.017401 | D55: 257.4074725 | E55: 1029.609929 | F55: 153414.8736 | G55: 4602.446207 | H55: 1534.148736 | I55: 1534.148736 | J55: 154949.0223 | K55: 0 | L55: 0 | M55: 0 | N55: -1287.017401 | O55: -1287.017401 | P55: -1287.017401 | Q55: -1287.017401 | R55: -1287.017401 | S55: -1287.017401 | T55: -1287.017401 | U55: -1287.017401 | V55: -1287.017401 | W55: -1287.017401 | X55: -1287.017401 | Y55: -1287.017401 | Z55: -1287.017401 | AA55: -1287.017401 | AB55: -1287.017401 | AC55: -1287.017401 | AD55: -1287.017401 | AE55: -1287.017401 | AF55: -1287.017401 | AG55: -1287.017401 | AH55: -1287.017401 | AI55: -1287.017401 | AJ55: -1287.017401 | AK55: -1287.017401 | AL55: -1287.017401 | AM55: -1287.017401 | AN55: -1287.017401
B56: 48 | C56: 1287.017401 | D56: 255.6914559 | E56: 1031.325945 | F56: 152383.5476 | G56: 4571.506428 | H56: 1523.835476 | I56: 1523.835476 | J56: 153907.3831 | K56: 0 | L56: 0 | M56: 0 | N56: -155194.4005 | O56: -1287.017401 | P56: -1287.017401 | Q56: -1287.017401 | R56: -1287.017401 | S56: -1287.017401 | T56: -1287.017401 | U56: -1287.017401 | V56: -1287.017401 | W56: -1287.017401 | X56: -1287.017401 | Y56: -1287.017401 | Z56: -1287.017401 | AA56: -1287.017401 | AB56: -1287.017401 | AC56: -1287.017401 | AD56: -1287.017401 | AE56: -1287.017401 | AF56: -1287.017401 | AG56: -1287.017401 | AH56: -1287.017401 | AI56: -1287.017401 | AJ56: -1287.017401 | AK56: -1287.017401 | AL56: -1287.017401 | AM56: -1287.017401 | AN56: -1287.017401
B57: 49 | C57: 1287.017401 | D57: 253.9725794 | E57: 1033.044822 | F57: 151350.5028 | G57: 4540.515084 | H57: 1513.505028 | I57: 1513.505028 | J57: 152864.0078 | K57: 0 | L57: 0 | M57: 0 | N57: 0 | O57: -1287.017401 | P57: -1287.017401 | Q57: -1287.017401 | R57: -1287.017401 | S57: -1287.017401 | T57: -1287.017401 | U57: -1287.017401 | V57: -1287.017401 | W57: -1287.017401 | X57: -1287.017401 | Y57: -1287.017401 | Z57: -1287.017401 | AA57: -1287.017401 | AB57: -1287.017401 | AC57: -1287.017401 | AD57: -1287.017401 | AE57: -1287.017401 | AF57: -1287.017401 | AG57: -1287.017401 | AH57: -1287.017401 | AI57: -1287.017401 | AJ57: -1287.017401 | AK57: -1287.017401 | AL57: -1287.017401 | AM57: -1287.017401 | AN57: -1287.017401
B58: 50 | C58: 1287.017401 | D58: 252.250838 | E58: 1034.766563 | F58: 150315.7362 | G58: 4509.472087 | H58: 1503.157362 | I58: 1503.157362 | J58: 151818.8936 | K58: 0 | L58: 0 | M58: 0 | N58: =IF($B58<N$4,-$C58,IF($B58=N$4,-($C58+$J58),0)) -> 0 | O58: -1287.017401 | P58: -1287.017401 | Q58: -1287.017401 | R58: -1287.017401 | S58: -1287.017401 | T58: -1287.017401 | U58: -1287.017401 | V58: -1287.017401 | W58: -1287.017401 | X58: -1287.017401 | Y58: -1287.017401 | Z58: -1287.017401 | AA58: -1287.017401 | AB58: -1287.017401 | AC58: -1287.017401 | AD58: -1287.017401 | AE58: -1287.017401 | AF58: -1287.017401 | AG58: -1287.017401 | AH58: -1287.017401 | AI58: -1287.017401 | AJ58: -1287.017401 | AK58: -1287.017401 | AL58: -1287.017401 | AM58: -1287.017401 | AN58: -1287.017401
B59: 51 | C59: 1287.017401 | D59: 250.5262271 | E59: 1036.491174 | F59: 149279.2451 | G59: 4478.377352 | H59: 1492.792451 | I59: 1492.792451 | J59: 150772.0375 | K59: =IF($B59<K$4,-$C59,IF($B59=K$4,-($C59+$J59),0)) -> 0 | L59: 0 | M59: 0 | N59: 0 | O59: -1287.017401 | P59: -1287.017401 | Q59: -1287.017401 | R59: -1287.017401 | S59: -1287.017401 | T59: -1287.017401 | U59: -1287.017401 | V59: -1287.017401 | W59: -1287.017401 | X59: -1287.017401 | Y59: -1287.017401 | Z59: -1287.017401 | AA59: -1287.017401 | AB59: -1287.017401 | AC59: -1287.017401 | AD59: -1287.017401 | AE59: -1287.017401 | AF59: -1287.017401 | AG59: -1287.017401 | AH59: -1287.017401 | AI59: -1287.017401 | AJ59: -1287.017401 | AK59: -1287.017401 | AL59: -1287.017401 | AM59: -1287.017401 | AN59: -1287.017401
B60: 52 | C60: 1287.017401 | D60: 248.7987418 | E60: 1038.218659 | F60: 148241.0264 | G60: 4447.230792 | H60: 1482.410264 | I60: 1482.410264 | J60: 149723.4367 | K60: 0 | L60: 0 | M60: 0 | N60: 0 | O60: -1287.017401 | P60: -1287.017401 | Q60: -1287.017401 | R60: -1287.017401 | S60: -1287.017401 | T60: -1287.017401 | U60: -1287.017401 | V60: -1287.017401 | W60: -1287.017401 | X60: -1287.017401 | Y60: -1287.017401 | Z60: -1287.017401 | AA60: -1287.017401 | AB60: -1287.017401 | AC60: -1287.017401 | AD60: -1287.017401 | AE60: -1287.017401 | AF60: -1287.017401 | AG60: -1287.017401 | AH60: -1287.017401 | AI60: -1287.017401 | AJ60: -1287.017401 | AK60: -1287.017401 | AL60: -1287.017401 | AM60: -1287.017401 | AN60: -1287.017401
B61: 53 | C61: 1287.017401 | D61: 247.0683773 | E61: 1039.949024 | F61: 147201.0774 | G61: 4416.032321 | H61: 1472.010774 | I61: 1472.010774 | J61: 148673.0881 | K61: 0 | L61: 0 | M61: 0 | N61: 0 | O61: -1287.017401 | P61: -1287.017401 | Q61: -1287.017401 | R61: -1287.017401 | S61: -1287.017401 | T61: -1287.017401 | U61: -1287.017401 | V61: -1287.017401 | W61: -1287.017401 | X61: -1287.017401 | Y61: -1287.017401 | Z61: -1287.017401 | AA61: -1287.017401 | AB61: -1287.017401 | AC61: -1287.017401 | AD61: -1287.017401 | AE61: -1287.017401 | AF61: -1287.017401 | AG61: -1287.017401 | AH61: -1287.017401 | AI61: -1287.017401 | AJ61: -1287.017401 | AK61: -1287.017401 | AL61: -1287.017401 | AM61: -1287.017401 | AN61: -1287.017401
B62: 54 | C62: 1287.017401 | D62: 245.335129 | E62: 1041.682272 | F62: 146159.3951 | G62: 4384.781853 | H62: 1461.593951 | I62: 1461.593951 | J62: 147620.9891 | K62: 0 | L62: 0 | M62: 0 | N62: 0 | O62: -1287.017401 | P62: -1287.017401 | Q62: -1287.017401 | R62: -1287.017401 | S62: -1287.017401 | T62: -1287.017401 | U62: -1287.017401 | V62: -1287.017401 | W62: -1287.017401 | X62: -1287.017401 | Y62: -1287.017401 | Z62: -1287.017401 | AA62: -1287.017401 | AB62: -1287.017401 | AC62: -1287.017401 | AD62: -1287.017401 | AE62: -1287.017401 | AF62: -1287.017401 | AG62: -1287.017401 | AH62: -1287.017401 | AI62: -1287.017401 | AJ62: -1287.017401 | AK62: -1287.017401 | AL62: -1287.017401 | AM62: -1287.017401 | AN62: -1287.017401
B63: 55 | C63: 1287.017401 | D63: 243.5989918 | E63: 1043.418409 | F63: 145115.9767 | G63: 4353.479301 | H63: 1451.159767 | I63: 1451.159767 | J63: 146567.1365 | K63: 0 | L63: 0 | M63: 0 | N63: =IF($B63<N$4,-$C63,IF($B63=N$4,-($C63+$J63),0)) -> 0 | O63: -1287.017401 | P63: -1287.017401 | Q63: -1287.017401 | R63: -1287.017401 | S63: -1287.017401 | T63: -1287.017401 | U63: -1287.017401 | V63: -1287.017401 | W63: -1287.017401 | X63: -1287.017401 | Y63: -1287.017401 | Z63: -1287.017401 | AA63: -1287.017401 | AB63: -1287.017401 | AC63: -1287.017401 | AD63: -1287.017401 | AE63: -1287.017401 | AF63: -1287.017401 | AG63: -1287.017401 | AH63: -1287.017401 | AI63: -1287.017401 | AJ63: -1287.017401 | AK63: -1287.017401 | AL63: -1287.017401 | AM63: -1287.017401 | AN63: -1287.017401
B64: 56 | C64: 1287.017401 | D64: 241.8599612 | E64: 1045.15744 | F64: 144070.8193 | G64: 4322.124578 | H64: 1440.708193 | I64: 1440.708193 | J64: 145511.5274 | K64: =IF($B64<K$4,-$C64,IF($B64=K$4,-($C64+$J64),0)) -> 0 | L64: 0 | M64: 0 | N64: 0 | O64: -1287.017401 | P64: -1287.017401 | Q64: -1287.017401 | R64: -1287.017401 | S64: -1287.017401 | T64: -1287.017401 | U64: -1287.017401 | V64: -1287.017401 | W64: -1287.017401 | X64: -1287.017401 | Y64: -1287.017401 | Z64: -1287.017401 | AA64: -1287.017401 | AB64: -1287.017401 | AC64: -1287.017401 | AD64: -1287.017401 | AE64: -1287.017401 | AF64: -1287.017401 | AG64: -1287.017401 | AH64: -1287.017401 | AI64: -1287.017401 | AJ64: -1287.017401 | AK64: -1287.017401 | AL64: -1287.017401 | AM64: -1287.017401 | AN64: -1287.017401
B65: 57 | C65: 1287.017401 | D65: 240.1180321 | E65: 1046.899369 | F65: 143023.9199 | G65: 4290.717596 | H65: 1430.239199 | I65: 1430.239199 | J65: 144454.1591 | K65: 0 | L65: 0 | M65: 0 | N65: 0 | O65: -1287.017401 | P65: -1287.017401 | Q65: -1287.017401 | R65: -1287.017401 | S65: -1287.017401 | T65: -1287.017401 | U65: -1287.017401 | V65: -1287.017401 | W65: -1287.017401 | X65: -1287.017401 | Y65: -1287.017401 | Z65: -1287.017401 | AA65: -1287.017401 | AB65: -1287.017401 | AC65: -1287.017401 | AD65: -1287.017401 | AE65: -1287.017401 | AF65: -1287.017401 | AG65: -1287.017401 | AH65: -1287.017401 | AI65: -1287.017401 | AJ65: -1287.017401 | AK65: -1287.017401 | AL65: -1287.017401 | AM65: -1287.017401 | AN65: -1287.017401
B66: 58 | C66: 1287.017401 | D66: 238.3731998 | E66: 1048.644201 | F66: 141975.2757 | G66: 4259.25827 | H66: 1419.752757 | I66: 1419.752757 | J66: 143395.0284 | K66: 0 | L66: 0 | M66: 0 | N66: 0 | O66: -1287.017401 | P66: -1287.017401 | Q66: -1287.017401 | R66: -1287.017401 | S66: -1287.017401 | T66: -1287.017401 | U66: -1287.017401 | V66: -1287.017401 | W66: -1287.017401 | X66: -1287.017401 | Y66: -1287.017401 | Z66: -1287.017401 | AA66: -1287.017401 | AB66: -1287.017401 | AC66: -1287.017401 | AD66: -1287.017401 | AE66: -1287.017401 | AF66: -1287.017401 | AG66: -1287.017401 | AH66: -1287.017401 | AI66: -1287.017401 | AJ66: -1287.017401 | AK66: -1287.017401 | AL66: -1287.017401 | AM66: -1287.017401 | AN66: -1287.017401
B67: 59 | C67: 1287.017401 | D67: 236.6254595 | E67: 1050.391942 | F67: 140924.8837 | G67: 4227.746512 | H67: 1409.248837 | I67: 1409.248837 | J67: 142334.1326 | K67: 0 | L67: 0 | M67: 0 | N67: 0 | O67: -1287.017401 | P67: -1287.017401 | Q67: -1287.017401 | R67: -1287.017401 | S67: -1287.017401 | T67: -1287.017401 | U67: -1287.017401 | V67: -1287.017401 | W67: -1287.017401 | X67: -1287.017401 | Y67: -1287.017401 | Z67: -1287.017401 | AA67: -1287.017401 | AB67: -1287.017401 | AC67: -1287.017401 | AD67: -1287.017401 | AE67: -1287.017401 | AF67: -1287.017401 | AG67: -1287.017401 | AH67: -1287.017401 | AI67: -1287.017401 | AJ67: -1287.017401 | AK67: -1287.017401 | AL67: -1287.017401 | AM67: -1287.017401 | AN67: -1287.017401
B68: 60 | C68: 1287.017401 | D68: 234.8748062 | E68: 1052.142595 | F68: 139872.7411 | G68: 4196.182234 | H68: 1398.727411 | I68: 1398.727411 | J68: 141271.4686 | K68: 0 | L68: 0 | M68: 0 | N68: =IF($B68<N$4,-$C68,IF($B68=N$4,-($C68+$J68),0)) -> 0 | O68: -142558.486 | P68: -1287.017401 | Q68: -1287.017401 | R68: -1287.017401 | S68: -1287.017401 | T68: -1287.017401 | U68: -1287.017401 | V68: -1287.017401 | W68: -1287.017401 | X68: -1287.017401 | Y68: -1287.017401 | Z68: -1287.017401 | AA68: -1287.017401 | AB68: -1287.017401 | AC68: -1287.017401 | AD68: -1287.017401 | AE68: -1287.017401 | AF68: -1287.017401 | AG68: -1287.017401 | AH68: -1287.017401 | AI68: -1287.017401 | AJ68: -1287.017401 | AK68: -1287.017401 | AL68: -1287.017401 | AM68: -1287.017401 | AN68: -1287.017401
B69: 61 | C69: 1287.017401 | D69: 233.1212352 | E69: 1053.896166 | F69: 138818.845 | G69: 4164.565349 | H69: 1388.18845 | I69: 1388.18845 | J69: 140207.0334 | K69: =IF($B69<K$4,-$C69,IF($B69=K$4,-($C69+$J69),0)) -> 0 | L69: 0 | M69: 0 | N69: 0 | O69: 0 | P69: -1287.017401 | Q69: -1287.017401 | R69: -1287.017401 | S69: -1287.017401 | T69: -1287.017401 | U69: -1287.017401 | V69: -1287.017401 | W69: -1287.017401 | X69: -1287.017401 | Y69: -1287.017401 | Z69: -1287.017401 | AA69: -1287.017401 | AB69: -1287.017401 | AC69: -1287.017401 | AD69: -1287.017401 | AE69: -1287.017401 | AF69: -1287.017401 | AG69: -1287.017401 | AH69: -1287.017401 | AI69: -1287.017401 | AJ69: -1287.017401 | AK69: -1287.017401 | AL69: -1287.017401 | AM69: -1287.017401 | AN69: -1287.017401
B70: 62 | C70: 1287.017401 | D70: 231.3647416 | E70: 1055.652659 | F70: 137763.1923 | G70: 4132.89577 | H70: 1377.631923 | I70: 1377.631923 | J70: 139140.8242 | K70: 0 | L70: 0 | M70: 0 | N70: 0 | O70: 0 | P70: -1287.017401 | Q70: -1287.017401 | R70: -1287.017401 | S70: -1287.017401 | T70: -1287.017401 | U70: -1287.017401 | V70: -1287.017401 | W70: -1287.017401 | X70: -1287.017401 | Y70: -1287.017401 | Z70: -1287.017401 | AA70: -1287.017401 | AB70: -1287.017401 | AC70: -1287.017401 | AD70: -1287.017401 | AE70: -1287.017401 | AF70: -1287.017401 | AG70: -1287.017401 | AH70: -1287.017401 | AI70: -1287.017401 | AJ70: -1287.017401 | AK70: -1287.017401 | AL70: -1287.017401 | AM70: -1287.017401 | AN70: -1287.017401
B71: 63 | C71: 1287.017401 | D71: 229.6053205 | E71: 1057.412081 | F71: 136705.7802 | G71: 4101.173407 | H71: 1367.057802 | I71: 1367.057802 | J71: 138072.838 | K71: 0 | L71: 0 | M71: 0 | N71: 0 | O71: 0 | P71: -1287.017401 | Q71: -1287.017401 | R71: -1287.017401 | S71: -1287.017401 | T71: -1287.017401 | U71: -1287.017401 | V71: -1287.017401 | W71: -1287.017401 | X71: -1287.017401 | Y71: -1287.017401 | Z71: -1287.017401 | AA71: -1287.017401 | AB71: -1287.017401 | AC71: -1287.017401 | AD71: -1287.017401 | AE71: -1287.017401 | AF71: -1287.017401 | AG71: -1287.017401 | AH71: -1287.017401 | AI71: -1287.017401 | AJ71: -1287.017401 | AK71: -1287.017401 | AL71: -1287.017401 | AM71: -1287.017401 | AN71: -1287.017401
B72: 64 | C72: 1287.017401 | D72: 227.8429671 | E72: 1059.174434 | F72: 135646.6058 | G72: 4069.398174 | H72: 1356.466058 | I72: 1356.466058 | J72: 137003.0719 | K72: 0 | L72: 0 | M72: 0 | N72: 0 | O72: 0 | P72: -1287.017401 | Q72: -1287.017401 | R72: -1287.017401 | S72: -1287.017401 | T72: -1287.017401 | U72: -1287.017401 | V72: -1287.017401 | W72: -1287.017401 | X72: -1287.017401 | Y72: -1287.017401 | Z72: -1287.017401 | AA72: -1287.017401 | AB72: -1287.017401 | AC72: -1287.017401 | AD72: -1287.017401 | AE72: -1287.017401 | AF72: -1287.017401 | AG72: -1287.017401 | AH72: -1287.017401 | AI72: -1287.017401 | AJ72: -1287.017401 | AK72: -1287.017401 | AL72: -1287.017401 | AM72: -1287.017401 | AN72: -1287.017401
B73: 65 | C73: =IF(B73>$B$5,0,IF(B73=$B$5,E73+D73,-PMT($D$5/12,$B$5,$C$5,0,0))) -> 1287.017401 | D73: =IF(B73>$B$5,0,F72*$D$5/12) -> 226.0776763 | E73: =IF(B73>$B$5,0,IF(B73=$B$5,F72,C73-D73)) -> 1060.939725 | F73: 134585.6661 | G73: 4037.569982 | H73: 1345.856661 | I73: 1345.856661 | J73: =IF(B73>$B$5,0,F73+I73) -> 135931.5227 | K73: 0 | L73: 0 | M73: 0 | N73: =IF($B73<N$4,-$C73,IF($B73=N$4,-($C73+$J73),0)) -> 0 | O73: 0 | P73: -1287.017401 | Q73: -1287.017401 | R73: -1287.017401 | S73: -1287.017401 | T73: -1287.017401 | U73: -1287.017401 | V73: -1287.017401 | W73: -1287.017401 | X73: -1287.017401 | Y73: -1287.017401 | Z73: -1287.017401 | AA73: -1287.017401 | AB73: -1287.017401 | AC73: -1287.017401 | AD73: -1287.017401 | AE73: -1287.017401 | AF73: -1287.017401 | AG73: -1287.017401 | AH73: -1287.017401 | AI73: -1287.017401 | AJ73: -1287.017401 | AK73: -1287.017401 | AL73: -1287.017401 | AM73: -1287.017401 | AN73: -1287.017401
B74: 66 | C74: 1287.017401 | D74: 224.3094435 | E74: 1062.707958 | F74: =F73-E74 -> 133522.9581 | G74: =F74*3/100 -> 4005.688744 | H74: =F74*$D$5/2 -> 1335.229581 | I74: =IF(G74<H74,G74,H74) -> 1335.229581 | J74: 134858.1877 | K74: =IF($B74<K$4,-$C74,IF($B74=K$4,-($C74+$J74),0)) -> 0 | L74: 0 | M74: 0 | N74: 0 | O74: 0 | P74: -1287.017401 | Q74: -1287.017401 | R74: -1287.017401 | S74: -1287.017401 | T74: -1287.017401 | U74: -1287.017401 | V74: -1287.017401 | W74: -1287.017401 | X74: -1287.017401 | Y74: -1287.017401 | Z74: -1287.017401 | AA74: -1287.017401 | AB74: -1287.017401 | AC74: -1287.017401 | AD74: -1287.017401 | AE74: -1287.017401 | AF74: -1287.017401 | AG74: -1287.017401 | AH74: -1287.017401 | AI74: -1287.017401 | AJ74: -1287.017401 | AK74: -1287.017401 | AL74: -1287.017401 | AM74: -1287.017401 | AN74: -1287.017401
B75: 67 | C75: 1287.017401 | D75: 222.5382635 | E75: 1064.479138 | F75: 132458.479 | G75: 3973.75437 | H75: 1324.58479 | I75: 1324.58479 | J75: 133783.0638 | K75: 0 | L75: 0 | M75: 0 | N75: 0 | O75: 0 | P75: -1287.017401 | Q75: -1287.017401 | R75: -1287.017401 | S75: -1287.017401 | T75: -1287.017401 | U75: -1287.017401 | V75: -1287.017401 | W75: -1287.017401 | X75: -1287.017401 | Y75: -1287.017401 | Z75: -1287.017401 | AA75: -1287.017401 | AB75: -1287.017401 | AC75: -1287.017401 | AD75: -1287.017401 | AE75: -1287.017401 | AF75: -1287.017401 | AG75: -1287.017401 | AH75: -1287.017401 | AI75: -1287.017401 | AJ75: -1287.017401 | AK75: -1287.017401 | AL75: -1287.017401 | AM75: -1287.017401 | AN75: -1287.017401
B76: 68 | C76: 1287.017401 | D76: 220.7641316 | E76: 1066.253269 | F76: 131392.2257 | G76: 3941.766771 | H76: 1313.922257 | I76: 1313.922257 | J76: 132706.148 | K76: 0 | L76: 0 | M76: 0 | N76: 0 | O76: 0 | P76: -1287.017401 | Q76: -1287.017401 | R76: -1287.017401 | S76: -1287.017401 | T76: -1287.017401 | U76: -1287.017401 | V76: -1287.017401 | W76: -1287.017401 | X76: -1287.017401 | Y76: -1287.017401 | Z76: -1287.017401 | AA76: -1287.017401 | AB76: -1287.017401 | AC76: -1287.017401 | AD76: -1287.017401 | AE76: -1287.017401 | AF76: -1287.017401 | AG76: -1287.017401 | AH76: -1287.017401 | AI76: -1287.017401 | AJ76: -1287.017401 | AK76: -1287.017401 | AL76: -1287.017401 | AM76: -1287.017401 | AN76: -1287.017401
B77: 69 | C77: 1287.017401 | D77: 218.9870429 | E77: 1068.030358 | F77: 130324.1954 | G77: 3909.725861 | H77: 1303.241954 | I77: 1303.241954 | J77: 131627.4373 | K77: 0 | L77: 0 | M77: 0 | N77: 0 | O77: 0 | P77: -1287.017401 | Q77: -1287.017401 | R77: -1287.017401 | S77: -1287.017401 | T77: -1287.017401 | U77: -1287.017401 | V77: -1287.017401 | W77: -1287.017401 | X77: -1287.017401 | Y77: -1287.017401 | Z77: -1287.017401 | AA77: -1287.017401 | AB77: -1287.017401 | AC77: -1287.017401 | AD77: -1287.017401 | AE77: -1287.017401 | AF77: -1287.017401 | AG77: -1287.017401 | AH77: -1287.017401 | AI77: -1287.017401 | AJ77: -1287.017401 | AK77: -1287.017401 | AL77: -1287.017401 | AM77: -1287.017401 | AN77: -1287.017401
B78: 70 | C78: 1287.017401 | D78: 217.2069923 | E78: 1069.810409 | F78: 129254.3849 | G78: 3877.631548 | H78: 1292.543849 | I78: 1292.543849 | J78: 130546.9288 | K78: 0 | L78: 0 | M78: 0 | N78: =IF($B78<N$4,-$C78,IF($B78=N$4,-($C78+$J78),0)) -> 0 | O78: 0 | P78: -1287.017401 | Q78: -1287.017401 | R78: -1287.017401 | S78: -1287.017401 | T78: -1287.017401 | U78: -1287.017401 | V78: -1287.017401 | W78: -1287.017401 | X78: -1287.017401 | Y78: -1287.017401 | Z78: -1287.017401 | AA78: -1287.017401 | AB78: -1287.017401 | AC78: -1287.017401 | AD78: -1287.017401 | AE78: -1287.017401 | AF78: -1287.017401 | AG78: -1287.017401 | AH78: -1287.017401 | AI78: -1287.017401 | AJ78: -1287.017401 | AK78: -1287.017401 | AL78: -1287.017401 | AM78: -1287.017401 | AN78: -1287.017401
B79: 71 | C79: 1287.017401 | D79: 215.4239749 | E79: 1071.593426 | F79: 128182.7915 | G79: 3845.483746 | H79: 1281.827915 | I79: 1281.827915 | J79: 129464.6194 | K79: =IF($B79<K$4,-$C79,IF($B79=K$4,-($C79+$J79),0)) -> 0 | L79: 0 | M79: 0 | N79: 0 | O79: 0 | P79: =IF($B79<P$4,-$C79,IF($B79=P$4,-($C79+$J79),0)) -> -1287.017401 | Q79: -1287.017401 | R79: -1287.017401 | S79: -1287.017401 | T79: -1287.017401 | U79: -1287.017401 | V79: -1287.017401 | W79: -1287.017401 | X79: -1287.017401 | Y79: -1287.017401 | Z79: -1287.017401 | AA79: -1287.017401 | AB79: -1287.017401 | AC79: -1287.017401 | AD79: -1287.017401 | AE79: -1287.017401 | AF79: -1287.017401 | AG79: -1287.017401 | AH79: -1287.017401 | AI79: -1287.017401 | AJ79: -1287.017401 | AK79: -1287.017401 | AL79: -1287.017401 | AM79: -1287.017401 | AN79: -1287.017401
B80: 72 | C80: 1287.017401 | D80: 213.6379859 | E80: 1073.379415 | F80: 127109.4121 | G80: 3813.282363 | H80: 1271.094121 | I80: 1271.094121 | J80: 128380.5062 | K80: 0 | L80: 0 | M80: 0 | N80: 0 | O80: 0 | P80: -129667.5236 | Q80: -1287.017401 | R80: -1287.017401 | S80: -1287.017401 | T80: -1287.017401 | U80: -1287.017401 | V80: -1287.017401 | W80: -1287.017401 | X80: -1287.017401 | Y80: -1287.017401 | Z80: -1287.017401 | AA80: -1287.017401 | AB80: -1287.017401 | AC80: -1287.017401 | AD80: -1287.017401 | AE80: -1287.017401 | AF80: -1287.017401 | AG80: -1287.017401 | AH80: -1287.017401 | AI80: -1287.017401 | AJ80: -1287.017401 | AK80: -1287.017401 | AL80: -1287.017401 | AM80: -1287.017401 | AN80: -1287.017401
B81: 73 | C81: 1287.017401 | D81: 211.8490202 | E81: 1075.168381 | F81: 126034.2437 | G81: 3781.027312 | H81: 1260.342437 | I81: 1260.342437 | J81: 127294.5862 | K81: 0 | L81: 0 | M81: 0 | N81: 0 | O81: 0 | P81: 0 | Q81: -1287.017401 | R81: -1287.017401 | S81: -1287.017401 | T81: -1287.017401 | U81: -1287.017401 | V81: -1287.017401 | W81: -1287.017401 | X81: -1287.017401 | Y81: -1287.017401 | Z81: -1287.017401 | AA81: -1287.017401 | AB81: -1287.017401 | AC81: -1287.017401 | AD81: -1287.017401 | AE81: -1287.017401 | AF81: -1287.017401 | AG81: -1287.017401 | AH81: -1287.017401 | AI81: -1287.017401 | AJ81: -1287.017401 | AK81: -1287.017401 | AL81: -1287.017401 | AM81: -1287.017401 | AN81: -1287.017401
B82: 74 | C82: 1287.017401 | D82: 210.0570729 | E82: 1076.960328 | F82: 124957.2834 | G82: 3748.718502 | H82: 1249.572834 | I82: 1249.572834 | J82: 126206.8562 | K82: 0 | L82: 0 | M82: 0 | N82: 0 | O82: 0 | P82: 0 | Q82: -1287.017401 | R82: -1287.017401 | S82: -1287.017401 | T82: -1287.017401 | U82: -1287.017401 | V82: -1287.017401 | W82: -1287.017401 | X82: -1287.017401 | Y82: -1287.017401 | Z82: -1287.017401 | AA82: -1287.017401 | AB82: -1287.017401 | AC82: -1287.017401 | AD82: -1287.017401 | AE82: -1287.017401 | AF82: -1287.017401 | AG82: -1287.017401 | AH82: -1287.017401 | AI82: -1287.017401 | AJ82: -1287.017401 | AK82: -1287.017401 | AL82: -1287.017401 | AM82: -1287.017401 | AN82: -1287.017401
B83: 75 | C83: 1287.017401 | D83: 208.262139 | E83: 1078.755262 | F83: 123878.5281 | G83: 3716.355844 | H83: 1238.785281 | I83: 1238.785281 | J83: 125117.3134 | K83: 0 | L83: 0 | M83: 0 | N83: =IF($B83<N$4,-$C83,IF($B83=N$4,-($C83+$J83),0)) -> 0 | O83: 0 | P83: 0 | Q83: -1287.017401 | R83: -1287.017401 | S83: -1287.017401 | T83: -1287.017401 | U83: -1287.017401 | V83: -1287.017401 | W83: -1287.017401 | X83: -1287.017401 | Y83: -1287.017401 | Z83: -1287.017401 | AA83: -1287.017401 | AB83: -1287.017401 | AC83: -1287.017401 | AD83: -1287.017401 | AE83: -1287.017401 | AF83: -1287.017401 | AG83: -1287.017401 | AH83: -1287.017401 | AI83: -1287.017401 | AJ83: -1287.017401 | AK83: -1287.017401 | AL83: -1287.017401 | AM83: -1287.017401 | AN83: -1287.017401
B84: 76 | C84: 1287.017401 | D84: 206.4642136 | E84: 1080.553188 | F84: 122797.9749 | G84: 3683.939248 | H84: 1227.979749 | I84: 1227.979749 | J84: 124025.9547 | K84: =IF($B84<K$4,-$C84,IF($B84=K$4,-($C84+$J84),0)) -> 0 | L84: 0 | M84: 0 | N84: 0 | O84: 0 | P84: 0 | Q84: -1287.017401 | R84: -1287.017401 | S84: -1287.017401 | T84: -1287.017401 | U84: -1287.017401 | V84: -1287.017401 | W84: -1287.017401 | X84: -1287.017401 | Y84: -1287.017401 | Z84: -1287.017401 | AA84: -1287.017401 | AB84: -1287.017401 | AC84: -1287.017401 | AD84: -1287.017401 | AE84: -1287.017401 | AF84: -1287.017401 | AG84: -1287.017401 | AH84: -1287.017401 | AI84: -1287.017401 | AJ84: -1287.017401 | AK84: -1287.017401 | AL84: -1287.017401 | AM84: -1287.017401 | AN84: -1287.017401
B85: 77 | C85: 1287.017401 | D85: 204.6632916 | E85: 1082.35411 | F85: 121715.6208 | G85: 3651.468625 | H85: 1217.156208 | I85: 1217.156208 | J85: 122932.777 | K85: 0 | L85: 0 | M85: 0 | N85: 0 | O85: 0 | P85: 0 | Q85: -1287.017401 | R85: -1287.017401 | S85: -1287.017401 | T85: -1287.017401 | U85: -1287.017401 | V85: -1287.017401 | W85: -1287.017401 | X85: -1287.017401 | Y85: -1287.017401 | Z85: -1287.017401 | AA85: -1287.017401 | AB85: -1287.017401 | AC85: -1287.017401 | AD85: -1287.017401 | AE85: -1287.017401 | AF85: -1287.017401 | AG85: -1287.017401 | AH85: -1287.017401 | AI85: -1287.017401 | AJ85: -1287.017401 | AK85: -1287.017401 | AL85: -1287.017401 | AM85: -1287.017401 | AN85: -1287.017401
B86: 78 | C86: 1287.017401 | D86: 202.8593681 | E86: 1084.158033 | F86: 120631.4628 | G86: 3618.943884 | H86: 1206.314628 | I86: 1206.314628 | J86: 121837.7774 | K86: 0 | L86: 0 | M86: 0 | N86: 0 | O86: 0 | P86: 0 | Q86: -1287.017401 | R86: -1287.017401 | S86: -1287.017401 | T86: -1287.017401 | U86: -1287.017401 | V86: -1287.017401 | W86: -1287.017401 | X86: -1287.017401 | Y86: -1287.017401 | Z86: -1287.017401 | AA86: -1287.017401 | AB86: -1287.017401 | AC86: -1287.017401 | AD86: -1287.017401 | AE86: -1287.017401 | AF86: -1287.017401 | AG86: -1287.017401 | AH86: -1287.017401 | AI86: -1287.017401 | AJ86: -1287.017401 | AK86: -1287.017401 | AL86: -1287.017401 | AM86: -1287.017401 | AN86: -1287.017401
B87: 79 | C87: 1287.017401 | D87: 201.052438 | E87: 1085.964963 | F87: 119545.4978 | G87: 3586.364935 | H87: 1195.454978 | I87: 1195.454978 | J87: 120740.9528 | K87: 0 | L87: 0 | M87: 0 | N87: 0 | O87: 0 | P87: 0 | Q87: -1287.017401 | R87: -1287.017401 | S87: -1287.017401 | T87: -1287.017401 | U87: -1287.017401 | V87: -1287.017401 | W87: -1287.017401 | X87: -1287.017401 | Y87: -1287.017401 | Z87: -1287.017401 | AA87: -1287.017401 | AB87: -1287.017401 | AC87: -1287.017401 | AD87: -1287.017401 | AE87: -1287.017401 | AF87: -1287.017401 | AG87: -1287.017401 | AH87: -1287.017401 | AI87: -1287.017401 | AJ87: -1287.017401 | AK87: -1287.017401 | AL87: -1287.017401 | AM87: -1287.017401 | AN87: -1287.017401
B88: 80 | C88: 1287.017401 | D88: 199.2424964 | E88: 1087.774905 | F88: 118457.7229 | G88: 3553.731688 | H88: 1184.577229 | I88: 1184.577229 | J88: 119642.3002 | K88: 0 | L88: 0 | M88: 0 | N88: =IF($B88<N$4,-$C88,IF($B88=N$4,-($C88+$J88),0)) -> 0 | O88: 0 | P88: 0 | Q88: -1287.017401 | R88: -1287.017401 | S88: -1287.017401 | T88: -1287.017401 | U88: -1287.017401 | V88: -1287.017401 | W88: -1287.017401 | X88: -1287.017401 | Y88: -1287.017401 | Z88: -1287.017401 | AA88: -1287.017401 | AB88: -1287.017401 | AC88: -1287.017401 | AD88: -1287.017401 | AE88: -1287.017401 | AF88: -1287.017401 | AG88: -1287.017401 | AH88: -1287.017401 | AI88: -1287.017401 | AJ88: -1287.017401 | AK88: -1287.017401 | AL88: -1287.017401 | AM88: -1287.017401 | AN88: -1287.017401
B89: 81 | C89: 1287.017401 | D89: 197.4295382 | E89: 1089.587863 | F89: 117368.1351 | G89: 3521.044052 | H89: 1173.681351 | I89: 1173.681351 | J89: 118541.8164 | K89: =IF($B89<K$4,-$C89,IF($B89=K$4,-($C89+$J89),0)) -> 0 | L89: 0 | M89: 0 | N89: 0 | O89: 0 | P89: 0 | Q89: -1287.017401 | R89: -1287.017401 | S89: -1287.017401 | T89: -1287.017401 | U89: -1287.017401 | V89: -1287.017401 | W89: -1287.017401 | X89: -1287.017401 | Y89: -1287.017401 | Z89: -1287.017401 | AA89: -1287.017401 | AB89: -1287.017401 | AC89: -1287.017401 | AD89: -1287.017401 | AE89: -1287.017401 | AF89: -1287.017401 | AG89: -1287.017401 | AH89: -1287.017401 | AI89: -1287.017401 | AJ89: -1287.017401 | AK89: -1287.017401 | AL89: -1287.017401 | AM89: -1287.017401 | AN89: -1287.017401
B90: 82 | C90: 1287.017401 | D90: 195.6135585 | E90: 1091.403843 | F90: 116276.7312 | G90: 3488.301937 | H90: 1162.767312 | I90: 1162.767312 | J90: 117439.4985 | K90: 0 | L90: 0 | M90: 0 | N90: 0 | O90: 0 | P90: 0 | Q90: -1287.017401 | R90: -1287.017401 | S90: -1287.017401 | T90: -1287.017401 | U90: -1287.017401 | V90: -1287.017401 | W90: -1287.017401 | X90: -1287.017401 | Y90: -1287.017401 | Z90: -1287.017401 | AA90: -1287.017401 | AB90: -1287.017401 | AC90: -1287.017401 | AD90: -1287.017401 | AE90: -1287.017401 | AF90: -1287.017401 | AG90: -1287.017401 | AH90: -1287.017401 | AI90: -1287.017401 | AJ90: -1287.017401 | AK90: -1287.017401 | AL90: -1287.017401 | AM90: -1287.017401 | AN90: -1287.017401
B91: 83 | C91: 1287.017401 | D91: 193.7945521 | E91: 1093.222849 | F91: 115183.5084 | G91: 3455.505251 | H91: 1151.835084 | I91: 1151.835084 | J91: 116335.3435 | K91: 0 | L91: 0 | M91: 0 | N91: 0 | O91: 0 | P91: 0 | Q91: -1287.017401 | R91: -1287.017401 | S91: -1287.017401 | T91: -1287.017401 | U91: -1287.017401 | V91: -1287.017401 | W91: -1287.017401 | X91: -1287.017401 | Y91: -1287.017401 | Z91: -1287.017401 | AA91: -1287.017401 | AB91: -1287.017401 | AC91: -1287.017401 | AD91: -1287.017401 | AE91: -1287.017401 | AF91: -1287.017401 | AG91: -1287.017401 | AH91: -1287.017401 | AI91: -1287.017401 | AJ91: -1287.017401 | AK91: -1287.017401 | AL91: -1287.017401 | AM91: -1287.017401 | AN91: -1287.017401
B92: 84 | C92: 1287.017401 | D92: 191.972514 | E92: 1095.044887 | F92: 114088.4635 | G92: 3422.653905 | H92: 1140.884635 | I92: 1140.884635 | J92: 115229.3481 | K92: 0 | L92: 0 | M92: 0 | N92: 0 | O92: 0 | P92: 0 | Q92: -116516.3655 | R92: -1287.017401 | S92: -1287.017401 | T92: -1287.017401 | U92: -1287.017401 | V92: -1287.017401 | W92: -1287.017401 | X92: -1287.017401 | Y92: -1287.017401 | Z92: -1287.017401 | AA92: -1287.017401 | AB92: -1287.017401 | AC92: -1287.017401 | AD92: -1287.017401 | AE92: -1287.017401 | AF92: -1287.017401 | AG92: -1287.017401 | AH92: -1287.017401 | AI92: -1287.017401 | AJ92: -1287.017401 | AK92: -1287.017401 | AL92: -1287.017401 | AM92: -1287.017401 | AN92: -1287.017401
B93: 85 | C93: 1287.017401 | D93: 190.1474392 | E93: 1096.869962 | F93: 112991.5935 | G93: 3389.747806 | H93: 1129.915935 | I93: 1129.915935 | J93: 114121.5095 | K93: 0 | L93: 0 | M93: 0 | N93: =IF($B93<N$4,-$C93,IF($B93=N$4,-($C93+$J93),0)) -> 0 | O93: 0 | P93: 0 | Q93: 0 | R93: -1287.017401 | S93: -1287.017401 | T93: -1287.017401 | U93: -1287.017401 | V93: -1287.017401 | W93: -1287.017401 | X93: -1287.017401 | Y93: -1287.017401 | Z93: -1287.017401 | AA93: -1287.017401 | AB93: -1287.017401 | AC93: -1287.017401 | AD93: -1287.017401 | AE93: -1287.017401 | AF93: -1287.017401 | AG93: -1287.017401 | AH93: -1287.017401 | AI93: -1287.017401 | AJ93: -1287.017401 | AK93: -1287.017401 | AL93: -1287.017401 | AM93: -1287.017401 | AN93: -1287.017401
B94: 86 | C94: 1287.017401 | D94: 188.3193226 | E94: 1098.698079 | F94: 111892.8955 | G94: 3356.786864 | H94: 1118.928955 | I94: 1118.928955 | J94: 113011.8244 | K94: =IF($B94<K$4,-$C94,IF($B94=K$4,-($C94+$J94),0)) -> 0 | L94: 0 | M94: 0 | N94: 0 | O94: 0 | P94: 0 | Q94: 0 | R94: -1287.017401 | S94: -1287.017401 | T94: -1287.017401 | U94: -1287.017401 | V94: -1287.017401 | W94: -1287.017401 | X94: -1287.017401 | Y94: -1287.017401 | Z94: -1287.017401 | AA94: -1287.017401 | AB94: -1287.017401 | AC94: -1287.017401 | AD94: -1287.017401 | AE94: -1287.017401 | AF94: -1287.017401 | AG94: -1287.017401 | AH94: -1287.017401 | AI94: -1287.017401 | AJ94: -1287.017401 | AK94: -1287.017401 | AL94: -1287.017401 | AM94: -1287.017401 | AN94: -1287.017401
B95: 87 | C95: 1287.017401 | D95: 186.4881591 | E95: 1100.529242 | F95: 110792.3662 | G95: 3323.770986 | H95: 1107.923662 | I95: 1107.923662 | J95: 111900.2899 | K95: 0 | L95: 0 | M95: 0 | N95: 0 | O95: 0 | P95: 0 | Q95: 0 | R95: -1287.017401 | S95: -1287.017401 | T95: -1287.017401 | U95: -1287.017401 | V95: -1287.017401 | W95: -1287.017401 | X95: -1287.017401 | Y95: -1287.017401 | Z95: -1287.017401 | AA95: -1287.017401 | AB95: -1287.017401 | AC95: -1287.017401 | AD95: -1287.017401 | AE95: -1287.017401 | AF95: -1287.017401 | AG95: -1287.017401 | AH95: -1287.017401 | AI95: -1287.017401 | AJ95: -1287.017401 | AK95: -1287.017401 | AL95: -1287.017401 | AM95: -1287.017401 | AN95: -1287.017401
B96: 88 | C96: 1287.017401 | D96: 184.6539437 | E96: 1102.363457 | F96: 109690.0028 | G96: 3290.700083 | H96: 1096.900028 | I96: 1096.900028 | J96: 110786.9028 | K96: 0 | L96: 0 | M96: 0 | N96: 0 | O96: 0 | P96: 0 | Q96: 0 | R96: -1287.017401 | S96: -1287.017401 | T96: -1287.017401 | U96: -1287.017401 | V96: -1287.017401 | W96: -1287.017401 | X96: -1287.017401 | Y96: -1287.017401 | Z96: -1287.017401 | AA96: -1287.017401 | AB96: -1287.017401 | AC96: -1287.017401 | AD96: -1287.017401 | AE96: -1287.017401 | AF96: -1287.017401 | AG96: -1287.017401 | AH96: -1287.017401 | AI96: -1287.017401 | AJ96: -1287.017401 | AK96: -1287.017401 | AL96: -1287.017401 | AM96: -1287.017401 | AN96: -1287.017401
B97: 89 | C97: 1287.017401 | D97: 182.8166713 | E97: 1104.20073 | F97: 108585.802 | G97: 3257.574061 | H97: 1085.85802 | I97: 1085.85802 | J97: 109671.66 | K97: 0 | L97: 0 | M97: 0 | N97: 0 | O97: 0 | P97: 0 | Q97: 0 | R97: -1287.017401 | S97: -1287.017401 | T97: -1287.017401 | U97: -1287.017401 | V97: -1287.017401 | W97: -1287.017401 | X97: -1287.017401 | Y97: -1287.017401 | Z97: -1287.017401 | AA97: -1287.017401 | AB97: -1287.017401 | AC97: -1287.017401 | AD97: -1287.017401 | AE97: -1287.017401 | AF97: -1287.017401 | AG97: -1287.017401 | AH97: -1287.017401 | AI97: -1287.017401 | AJ97: -1287.017401 | AK97: -1287.017401 | AL97: -1287.017401 | AM97: -1287.017401 | AN97: -1287.017401
B98: 90 | C98: 1287.017401 | D98: 180.9763367 | E98: 1106.041064 | F98: 107479.761 | G98: 3224.392829 | H98: 1074.79761 | I98: 1074.79761 | J98: 108554.5586 | K98: 0 | L98: 0 | M98: 0 | N98: =IF($B98<N$4,-$C98,IF($B98=N$4,-($C98+$J98),0)) -> 0 | O98: 0 | P98: 0 | Q98: 0 | R98: -1287.017401 | S98: -1287.017401 | T98: -1287.017401 | U98: -1287.017401 | V98: -1287.017401 | W98: -1287.017401 | X98: -1287.017401 | Y98: -1287.017401 | Z98: -1287.017401 | AA98: -1287.017401 | AB98: -1287.017401 | AC98: -1287.017401 | AD98: -1287.017401 | AE98: -1287.017401 | AF98: -1287.017401 | AG98: -1287.017401 | AH98: -1287.017401 | AI98: -1287.017401 | AJ98: -1287.017401 | AK98: -1287.017401 | AL98: -1287.017401 | AM98: -1287.017401 | AN98: -1287.017401
B99: 91 | C99: 1287.017401 | D99: 179.1329349 | E99: 1107.884466 | F99: 106371.8765 | G99: 3191.156295 | H99: 1063.718765 | I99: 1063.718765 | J99: 107435.5953 | K99: =IF($B99<K$4,-$C99,IF($B99=K$4,-($C99+$J99),0)) -> 0 | L99: 0 | M99: 0 | N99: 0 | O99: 0 | P99: 0 | Q99: 0 | R99: -1287.017401 | S99: -1287.017401 | T99: -1287.017401 | U99: -1287.017401 | V99: -1287.017401 | W99: -1287.017401 | X99: -1287.017401 | Y99: -1287.017401 | Z99: -1287.017401 | AA99: -1287.017401 | AB99: -1287.017401 | AC99: -1287.017401 | AD99: -1287.017401 | AE99: -1287.017401 | AF99: -1287.017401 | AG99: -1287.017401 | AH99: -1287.017401 | AI99: -1287.017401 | AJ99: -1287.017401 | AK99: -1287.017401 | AL99: -1287.017401 | AM99: -1287.017401 | AN99: -1287.017401
B100: 92 | C100: 1287.017401 | D100: 177.2864608 | E100: 1109.73094 | F100: 105262.1456 | G100: 3157.864367 | H100: 1052.621456 | I100: 1052.621456 | J100: 106314.767 | K100: 0 | L100: 0 | M100: 0 | N100: 0 | O100: 0 | P100: 0 | Q100: 0 | R100: -1287.017401 | S100: -1287.017401 | T100: -1287.017401 | U100: -1287.017401 | V100: -1287.017401 | W100: -1287.017401 | X100: -1287.017401 | Y100: -1287.017401 | Z100: -1287.017401 | AA100: -1287.017401 | AB100: -1287.017401 | AC100: -1287.017401 | AD100: -1287.017401 | AE100: -1287.017401 | AF100: -1287.017401 | AG100: -1287.017401 | AH100: -1287.017401 | AI100: -1287.017401 | AJ100: -1287.017401 | AK100: -1287.017401 | AL100: -1287.017401 | AM100: -1287.017401 | AN100: -1287.017401
B101: 93 | C101: 1287.017401 | D101: 175.4369093 | E101: 1111.580492 | F101: 104150.5651 | G101: 3124.516952 | H101: 1041.505651 | I101: 1041.505651 | J101: 105192.0707 | K101: 0 | L101: 0 | M101: 0 | N101: 0 | O101: 0 | P101: 0 | Q101: 0 | R101: -1287.017401 | S101: -1287.017401 | T101: -1287.017401 | U101: -1287.017401 | V101: -1287.017401 | W101: -1287.017401 | X101: -1287.017401 | Y101: -1287.017401 | Z101: -1287.017401 | AA101: -1287.017401 | AB101: -1287.017401 | AC101: -1287.017401 | AD101: -1287.017401 | AE101: -1287.017401 | AF101: -1287.017401 | AG101: -1287.017401 | AH101: -1287.017401 | AI101: -1287.017401 | AJ101: -1287.017401 | AK101: -1287.017401 | AL101: -1287.017401 | AM101: -1287.017401 | AN101: -1287.017401
B102: 94 | C102: 1287.017401 | D102: 173.5842751 | E102: 1113.433126 | F102: 103037.1319 | G102: 3091.113958 | H102: 1030.371319 | I102: 1030.371319 | J102: 104067.5033 | K102: 0 | L102: 0 | M102: 0 | N102: 0 | O102: 0 | P102: 0 | Q102: 0 | R102: -1287.017401 | S102: -1287.017401 | T102: -1287.017401 | U102: -1287.017401 | V102: -1287.017401 | W102: -1287.017401 | X102: -1287.017401 | Y102: -1287.017401 | Z102: -1287.017401 | AA102: -1287.017401 | AB102: -1287.017401 | AC102: -1287.017401 | AD102: -1287.017401 | AE102: -1287.017401 | AF102: -1287.017401 | AG102: -1287.017401 | AH102: -1287.017401 | AI102: -1287.017401 | AJ102: -1287.017401 | AK102: -1287.017401 | AL102: -1287.017401 | AM102: -1287.017401 | AN102: -1287.017401
B103: 95 | C103: 1287.017401 | D103: 171.7285532 | E103: 1115.288848 | F103: 101921.8431 | G103: 3057.655293 | H103: 1019.218431 | I103: 1019.218431 | J103: 102941.0615 | K103: 0 | L103: 0 | M103: 0 | N103: =IF($B103<N$4,-$C103,IF($B103=N$4,-($C103+$J103),0)) -> 0 | O103: 0 | P103: 0 | Q103: 0 | R103: -1287.017401 | S103: -1287.017401 | T103: -1287.017401 | U103: -1287.017401 | V103: -1287.017401 | W103: -1287.017401 | X103: -1287.017401 | Y103: -1287.017401 | Z103: -1287.017401 | AA103: -1287.017401 | AB103: -1287.017401 | AC103: -1287.017401 | AD103: -1287.017401 | AE103: -1287.017401 | AF103: -1287.017401 | AG103: -1287.017401 | AH103: -1287.017401 | AI103: -1287.017401 | AJ103: -1287.017401 | AK103: -1287.017401 | AL103: -1287.017401 | AM103: -1287.017401 | AN103: -1287.017401
B104: 96 | C104: 1287.017401 | D104: 169.8697385 | E104: 1117.147663 | F104: 100804.6954 | G104: 3024.140863 | H104: 1008.046954 | I104: 1008.046954 | J104: 101812.7424 | K104: =IF($B104<K$4,-$C104,IF($B104=K$4,-($C104+$J104),0)) -> 0 | L104: 0 | M104: 0 | N104: 0 | O104: 0 | P104: 0 | Q104: 0 | R104: -103099.7598 | S104: -1287.017401 | T104: -1287.017401 | U104: -1287.017401 | V104: -1287.017401 | W104: -1287.017401 | X104: -1287.017401 | Y104: -1287.017401 | Z104: -1287.017401 | AA104: -1287.017401 | AB104: -1287.017401 | AC104: -1287.017401 | AD104: -1287.017401 | AE104: -1287.017401 | AF104: -1287.017401 | AG104: -1287.017401 | AH104: -1287.017401 | AI104: -1287.017401 | AJ104: -1287.017401 | AK104: -1287.017401 | AL104: -1287.017401 | AM104: -1287.017401 | AN104: -1287.017401
B105: 97 | C105: 1287.017401 | D105: 168.0078257 | E105: 1119.009575 | F105: 99685.68585 | G105: 2990.570576 | H105: 996.8568585 | I105: 996.8568585 | J105: 100682.5427 | K105: 0 | L105: 0 | M105: 0 | N105: 0 | O105: 0 | P105: 0 | Q105: 0 | R105: 0 | S105: -1287.017401 | T105: -1287.017401 | U105: -1287.017401 | V105: -1287.017401 | W105: -1287.017401 | X105: -1287.017401 | Y105: -1287.017401 | Z105: -1287.017401 | AA105: -1287.017401 | AB105: -1287.017401 | AC105: -1287.017401 | AD105: -1287.017401 | AE105: -1287.017401 | AF105: -1287.017401 | AG105: -1287.017401 | AH105: -1287.017401 | AI105: -1287.017401 | AJ105: -1287.017401 | AK105: -1287.017401 | AL105: -1287.017401 | AM105: -1287.017401 | AN105: -1287.017401
B106: 98 | C106: 1287.017401 | D106: 166.1428098 | E106: 1120.874591 | F106: 98564.81126 | G106: 2956.944338 | H106: 985.6481126 | I106: 985.6481126 | J106: 99550.45937 | K106: 0 | L106: 0 | M106: 0 | N106: 0 | O106: 0 | P106: 0 | Q106: 0 | R106: 0 | S106: -1287.017401 | T106: -1287.017401 | U106: -1287.017401 | V106: -1287.017401 | W106: -1287.017401 | X106: -1287.017401 | Y106: -1287.017401 | Z106: -1287.017401 | AA106: -1287.017401 | AB106: -1287.017401 | AC106: -1287.017401 | AD106: -1287.017401 | AE106: -1287.017401 | AF106: -1287.017401 | AG106: -1287.017401 | AH106: -1287.017401 | AI106: -1287.017401 | AJ106: -1287.017401 | AK106: -1287.017401 | AL106: -1287.017401 | AM106: -1287.017401 | AN106: -1287.017401
B107: 99 | C107: 1287.017401 | D107: 164.2746854 | E107: 1122.742716 | F107: 97442.06854 | G107: 2923.262056 | H107: 974.4206854 | I107: 974.4206854 | J107: 98416.48923 | K107: 0 | L107: 0 | M107: 0 | N107: 0 | O107: 0 | P107: 0 | Q107: 0 | R107: 0 | S107: -1287.017401 | T107: -1287.017401 | U107: -1287.017401 | V107: -1287.017401 | W107: -1287.017401 | X107: -1287.017401 | Y107: -1287.017401 | Z107: -1287.017401 | AA107: -1287.017401 | AB107: -1287.017401 | AC107: -1287.017401 | AD107: -1287.017401 | AE107: -1287.017401 | AF107: -1287.017401 | AG107: -1287.017401 | AH107: -1287.017401 | AI107: -1287.017401 | AJ107: -1287.017401 | AK107: -1287.017401 | AL107: -1287.017401 | AM107: -1287.017401 | AN107: -1287.017401
B108: 100 | C108: 1287.017401 | D108: 162.4034476 | E108: 1124.613954 | F108: 96317.45459 | G108: 2889.523638 | H108: 963.1745459 | I108: 963.1745459 | J108: 97280.62914 | K108: 0 | L108: 0 | M108: 0 | N108: =IF($B108<N$4,-$C108,IF($B108=N$4,-($C108+$J108),0)) -> 0 | O108: 0 | P108: 0 | Q108: 0 | R108: 0 | S108: -1287.017401 | T108: -1287.017401 | U108: -1287.017401 | V108: -1287.017401 | W108: -1287.017401 | X108: -1287.017401 | Y108: -1287.017401 | Z108: -1287.017401 | AA108: -1287.017401 | AB108: -1287.017401 | AC108: -1287.017401 | AD108: -1287.017401 | AE108: -1287.017401 | AF108: -1287.017401 | AG108: -1287.017401 | AH108: -1287.017401 | AI108: -1287.017401 | AJ108: -1287.017401 | AK108: -1287.017401 | AL108: -1287.017401 | AM108: -1287.017401 | AN108: -1287.017401
B109: 101 | C109: 1287.017401 | D109: 160.529091 | E109: 1126.48831 | F109: 95190.96628 | G109: 2855.728988 | H109: 951.9096628 | I109: 951.9096628 | J109: 96142.87594 | K109: =IF($B109<K$4,-$C109,IF($B109=K$4,-($C109+$J109),0)) -> 0 | L109: 0 | M109: 0 | N109: 0 | O109: 0 | P109: 0 | Q109: 0 | R109: 0 | S109: -1287.017401 | T109: -1287.017401 | U109: -1287.017401 | V109: -1287.017401 | W109: -1287.017401 | X109: -1287.017401 | Y109: -1287.017401 | Z109: -1287.017401 | AA109: -1287.017401 | AB109: -1287.017401 | AC109: -1287.017401 | AD109: -1287.017401 | AE109: -1287.017401 | AF109: -1287.017401 | AG109: -1287.017401 | AH109: -1287.017401 | AI109: -1287.017401 | AJ109: -1287.017401 | AK109: -1287.017401 | AL109: -1287.017401 | AM109: -1287.017401 | AN109: -1287.017401
B110: 102 | C110: 1287.017401 | D110: 158.6516105 | E110: 1128.365791 | F110: 94062.60049 | G110: 2821.878015 | H110: 940.6260049 | I110: 940.6260049 | J110: 95003.22649 | K110: 0 | L110: 0 | M110: 0 | N110: 0 | O110: 0 | P110: 0 | Q110: 0 | R110: 0 | S110: -1287.017401 | T110: -1287.017401 | U110: -1287.017401 | V110: -1287.017401 | W110: -1287.017401 | X110: -1287.017401 | Y110: -1287.017401 | Z110: -1287.017401 | AA110: -1287.017401 | AB110: -1287.017401 | AC110: -1287.017401 | AD110: -1287.017401 | AE110: -1287.017401 | AF110: -1287.017401 | AG110: -1287.017401 | AH110: -1287.017401 | AI110: -1287.017401 | AJ110: -1287.017401 | AK110: -1287.017401 | AL110: -1287.017401 | AM110: -1287.017401 | AN110: -1287.017401
B111: 103 | C111: 1287.017401 | D111: 156.7710008 | E111: 1130.2464 | F111: 92932.35409 | G111: 2787.970623 | H111: 929.3235409 | I111: 929.3235409 | J111: 93861.67763 | K111: 0 | L111: 0 | M111: 0 | N111: 0 | O111: 0 | P111: 0 | Q111: 0 | R111: 0 | S111: -1287.017401 | T111: -1287.017401 | U111: -1287.017401 | V111: -1287.017401 | W111: -1287.017401 | X111: -1287.017401 | Y111: -1287.017401 | Z111: -1287.017401 | AA111: -1287.017401 | AB111: -1287.017401 | AC111: -1287.017401 | AD111: -1287.017401 | AE111: -1287.017401 | AF111: -1287.017401 | AG111: -1287.017401 | AH111: -1287.017401 | AI111: -1287.017401 | AJ111: -1287.017401 | AK111: -1287.017401 | AL111: -1287.017401 | AM111: -1287.017401 | AN111: -1287.017401
B112: 104 | C112: 1287.017401 | D112: 154.8872568 | E112: 1132.130144 | F112: 91800.22395 | G112: 2754.006718 | H112: 918.0022395 | I112: 918.0022395 | J112: 92718.22618 | K112: 0 | L112: 0 | M112: 0 | N112: 0 | O112: 0 | P112: 0 | Q112: 0 | R112: 0 | S112: -1287.017401 | T112: -1287.017401 | U112: -1287.017401 | V112: -1287.017401 | W112: -1287.017401 | X112: -1287.017401 | Y112: -1287.017401 | Z112: -1287.017401 | AA112: -1287.017401 | AB112: -1287.017401 | AC112: -1287.017401 | AD112: -1287.017401 | AE112: -1287.017401 | AF112: -1287.017401 | AG112: -1287.017401 | AH112: -1287.017401 | AI112: -1287.017401 | AJ112: -1287.017401 | AK112: -1287.017401 | AL112: -1287.017401 | AM112: -1287.017401 | AN112: -1287.017401
B113: 105 | C113: 1287.017401 | D113: 153.0003732 | E113: 1134.017028 | F113: 90666.20692 | G113: 2719.986208 | H113: 906.6620692 | I113: 906.6620692 | J113: 91572.86899 | K113: 0 | L113: 0 | M113: 0 | N113: =IF($B113<N$4,-$C113,IF($B113=N$4,-($C113+$J113),0)) -> 0 | O113: 0 | P113: 0 | Q113: 0 | R113: 0 | S113: -1287.017401 | T113: -1287.017401 | U113: -1287.017401 | V113: -1287.017401 | W113: -1287.017401 | X113: -1287.017401 | Y113: -1287.017401 | Z113: -1287.017401 | AA113: -1287.017401 | AB113: -1287.017401 | AC113: -1287.017401 | AD113: -1287.017401 | AE113: -1287.017401 | AF113: -1287.017401 | AG113: -1287.017401 | AH113: -1287.017401 | AI113: -1287.017401 | AJ113: -1287.017401 | AK113: -1287.017401 | AL113: -1287.017401 | AM113: -1287.017401 | AN113: -1287.017401
B114: 106 | C114: 1287.017401 | D114: 151.1103449 | E114: 1135.907056 | F114: 89530.29986 | G114: 2685.908996 | H114: 895.3029986 | I114: 895.3029986 | J114: 90425.60286 | K114: =IF($B114<K$4,-$C114,IF($B114=K$4,-($C114+$J114),0)) -> 0 | L114: 0 | M114: 0 | N114: 0 | O114: 0 | P114: 0 | Q114: 0 | R114: 0 | S114: -1287.017401 | T114: -1287.017401 | U114: -1287.017401 | V114: -1287.017401 | W114: -1287.017401 | X114: -1287.017401 | Y114: -1287.017401 | Z114: -1287.017401 | AA114: -1287.017401 | AB114: -1287.017401 | AC114: -1287.017401 | AD114: -1287.017401 | AE114: -1287.017401 | AF114: -1287.017401 | AG114: -1287.017401 | AH114: -1287.017401 | AI114: -1287.017401 | AJ114: -1287.017401 | AK114: -1287.017401 | AL114: -1287.017401 | AM114: -1287.017401 | AN114: -1287.017401
B115: 107 | C115: 1287.017401 | D115: 149.2171664 | E115: 1137.800235 | F115: 88392.49963 | G115: 2651.774989 | H115: 883.9249963 | I115: 883.9249963 | J115: 89276.42462 | K115: 0 | L115: 0 | M115: 0 | N115: 0 | O115: 0 | P115: 0 | Q115: 0 | R115: 0 | S115: -1287.017401 | T115: -1287.017401 | U115: -1287.017401 | V115: -1287.017401 | W115: -1287.017401 | X115: -1287.017401 | Y115: -1287.017401 | Z115: -1287.017401 | AA115: -1287.017401 | AB115: -1287.017401 | AC115: -1287.017401 | AD115: -1287.017401 | AE115: -1287.017401 | AF115: -1287.017401 | AG115: -1287.017401 | AH115: -1287.017401 | AI115: -1287.017401 | AJ115: -1287.017401 | AK115: -1287.017401 | AL115: -1287.017401 | AM115: -1287.017401 | AN115: -1287.017401
B116: 108 | C116: 1287.017401 | D116: 147.3208327 | E116: 1139.696568 | F116: 87252.80306 | G116: 2617.584092 | H116: 872.5280306 | I116: 872.5280306 | J116: 88125.33109 | K116: 0 | L116: 0 | M116: 0 | N116: 0 | O116: 0 | P116: 0 | Q116: 0 | R116: 0 | S116: -89412.34849 | T116: -1287.017401 | U116: -1287.017401 | V116: -1287.017401 | W116: -1287.017401 | X116: -1287.017401 | Y116: -1287.017401 | Z116: -1287.017401 | AA116: -1287.017401 | AB116: -1287.017401 | AC116: -1287.017401 | AD116: -1287.017401 | AE116: -1287.017401 | AF116: -1287.017401 | AG116: -1287.017401 | AH116: -1287.017401 | AI116: -1287.017401 | AJ116: -1287.017401 | AK116: -1287.017401 | AL116: -1287.017401 | AM116: -1287.017401 | AN116: -1287.017401
B117: 109 | C117: 1287.017401 | D117: 145.4213384 | E117: 1141.596063 | F117: 86111.207 | G117: 2583.33621 | H117: 861.11207 | I117: 861.11207 | J117: 86972.31907 | K117: 0 | L117: 0 | M117: 0 | N117: 0 | O117: 0 | P117: 0 | Q117: 0 | R117: 0 | S117: 0 | T117: -1287.017401 | U117: -1287.017401 | V117: -1287.017401 | W117: -1287.017401 | X117: -1287.017401 | Y117: -1287.017401 | Z117: -1287.017401 | AA117: -1287.017401 | AB117: -1287.017401 | AC117: -1287.017401 | AD117: -1287.017401 | AE117: -1287.017401 | AF117: -1287.017401 | AG117: -1287.017401 | AH117: -1287.017401 | AI117: -1287.017401 | AJ117: -1287.017401 | AK117: -1287.017401 | AL117: -1287.017401 | AM117: -1287.017401 | AN117: -1287.017401
B118: 110 | C118: 1287.017401 | D118: 143.5186783 | E118: 1143.498723 | F118: 84967.70827 | G118: 2549.031248 | H118: 849.6770827 | I118: 849.6770827 | J118: 85817.38536 | K118: 0 | L118: 0 | M118: 0 | N118: =IF($B118<N$4,-$C118,IF($B118=N$4,-($C118+$J118),0)) -> 0 | O118: 0 | P118: 0 | Q118: 0 | R118: 0 | S118: 0 | T118: -1287.017401 | U118: -1287.017401 | V118: -1287.017401 | W118: -1287.017401 | X118: -1287.017401 | Y118: -1287.017401 | Z118: -1287.017401 | AA118: -1287.017401 | AB118: -1287.017401 | AC118: -1287.017401 | AD118: -1287.017401 | AE118: -1287.017401 | AF118: -1287.017401 | AG118: -1287.017401 | AH118: -1287.017401 | AI118: -1287.017401 | AJ118: -1287.017401 | AK118: -1287.017401 | AL118: -1287.017401 | AM118: -1287.017401 | AN118: -1287.017401
B119: 111 | C119: 1287.017401 | D119: 141.6128471 | E119: 1145.404554 | F119: 83822.30372 | G119: 2514.669112 | H119: 838.2230372 | I119: 838.2230372 | J119: 84660.52676 | K119: =IF($B119<K$4,-$C119,IF($B119=K$4,-($C119+$J119),0)) -> 0 | L119: 0 | M119: 0 | N119: 0 | O119: 0 | P119: 0 | Q119: 0 | R119: 0 | S119: 0 | T119: -1287.017401 | U119: -1287.017401 | V119: -1287.017401 | W119: -1287.017401 | X119: -1287.017401 | Y119: -1287.017401 | Z119: -1287.017401 | AA119: -1287.017401 | AB119: -1287.017401 | AC119: -1287.017401 | AD119: -1287.017401 | AE119: -1287.017401 | AF119: -1287.017401 | AG119: -1287.017401 | AH119: -1287.017401 | AI119: -1287.017401 | AJ119: -1287.017401 | AK119: -1287.017401 | AL119: -1287.017401 | AM119: -1287.017401 | AN119: -1287.017401
B120: 112 | C120: 1287.017401 | D120: 139.7038395 | E120: 1147.313562 | F120: 82674.99016 | G120: 2480.249705 | H120: 826.7499016 | I120: 826.7499016 | J120: 83501.74006 | K120: 0 | L120: 0 | M120: 0 | N120: 0 | O120: 0 | P120: 0 | Q120: 0 | R120: 0 | S120: 0 | T120: -1287.017401 | U120: -1287.017401 | V120: -1287.017401 | W120: -1287.017401 | X120: -1287.017401 | Y120: -1287.017401 | Z120: -1287.017401 | AA120: -1287.017401 | AB120: -1287.017401 | AC120: -1287.017401 | AD120: -1287.017401 | AE120: -1287.017401 | AF120: -1287.017401 | AG120: -1287.017401 | AH120: -1287.017401 | AI120: -1287.017401 | AJ120: -1287.017401 | AK120: -1287.017401 | AL120: -1287.017401 | AM120: -1287.017401 | AN120: -1287.017401
B121: 113 | C121: 1287.017401 | D121: 137.7916503 | E121: 1149.225751 | F121: 81525.76441 | G121: 2445.772932 | H121: 815.2576441 | I121: 815.2576441 | J121: 82341.02205 | K121: 0 | L121: 0 | M121: 0 | N121: 0 | O121: 0 | P121: 0 | Q121: 0 | R121: 0 | S121: 0 | T121: -1287.017401 | U121: -1287.017401 | V121: -1287.017401 | W121: -1287.017401 | X121: -1287.017401 | Y121: -1287.017401 | Z121: -1287.017401 | AA121: -1287.017401 | AB121: -1287.017401 | AC121: -1287.017401 | AD121: -1287.017401 | AE121: -1287.017401 | AF121: -1287.017401 | AG121: -1287.017401 | AH121: -1287.017401 | AI121: -1287.017401 | AJ121: -1287.017401 | AK121: -1287.017401 | AL121: -1287.017401 | AM121: -1287.017401 | AN121: -1287.017401
B122: 114 | C122: 1287.017401 | D122: 135.876274 | E122: 1151.141127 | F122: 80374.62328 | G122: 2411.238698 | H122: 803.7462328 | I122: 803.7462328 | J122: 81178.36951 | K122: 0 | L122: 0 | M122: 0 | N122: 0 | O122: 0 | P122: 0 | Q122: 0 | R122: 0 | S122: 0 | T122: -1287.017401 | U122: -1287.017401 | V122: -1287.017401 | W122: -1287.017401 | X122: -1287.017401 | Y122: -1287.017401 | Z122: -1287.017401 | AA122: -1287.017401 | AB122: -1287.017401 | AC122: -1287.017401 | AD122: -1287.017401 | AE122: -1287.017401 | AF122: -1287.017401 | AG122: -1287.017401 | AH122: -1287.017401 | AI122: -1287.017401 | AJ122: -1287.017401 | AK122: -1287.017401 | AL122: -1287.017401 | AM122: -1287.017401 | AN122: -1287.017401
B123: 115 | C123: 1287.017401 | D123: 133.9577055 | E123: 1153.059696 | F123: 79221.56358 | G123: 2376.646908 | H123: 792.2156358 | I123: 792.2156358 | J123: 80013.77922 | K123: 0 | L123: 0 | M123: 0 | N123: =IF($B123<N$4,-$C123,IF($B123=N$4,-($C123+$J123),0)) -> 0 | O123: 0 | P123: 0 | Q123: 0 | R123: 0 | S123: 0 | T123: -1287.017401 | U123: -1287.017401 | V123: -1287.017401 | W123: -1287.017401 | X123: -1287.017401 | Y123: -1287.017401 | Z123: -1287.017401 | AA123: -1287.017401 | AB123: -1287.017401 | AC123: -1287.017401 | AD123: -1287.017401 | AE123: -1287.017401 | AF123: -1287.017401 | AG123: -1287.017401 | AH123: -1287.017401 | AI123: -1287.017401 | AJ123: -1287.017401 | AK123: -1287.017401 | AL123: -1287.017401 | AM123: -1287.017401 | AN123: -1287.017401
B124: 116 | C124: 1287.017401 | D124: 132.0359393 | E124: 1154.981462 | F124: 78066.58212 | G124: 2341.997464 | H124: 780.6658212 | I124: 780.6658212 | J124: 78847.24794 | K124: =IF($B124<K$4,-$C124,IF($B124=K$4,-($C124+$J124),0)) -> 0 | L124: 0 | M124: 0 | N124: 0 | O124: 0 | P124: 0 | Q124: 0 | R124: 0 | S124: 0 | T124: -1287.017401 | U124: -1287.017401 | V124: -1287.017401 | W124: -1287.017401 | X124: -1287.017401 | Y124: -1287.017401 | Z124: -1287.017401 | AA124: -1287.017401 | AB124: -1287.017401 | AC124: -1287.017401 | AD124: -1287.017401 | AE124: -1287.017401 | AF124: -1287.017401 | AG124: -1287.017401 | AH124: -1287.017401 | AI124: -1287.017401 | AJ124: -1287.017401 | AK124: -1287.017401 | AL124: -1287.017401 | AM124: -1287.017401 | AN124: -1287.017401
B125: 117 | C125: 1287.017401 | D125: 130.1109702 | E125: 1156.906431 | F125: 76909.67569 | G125: 2307.290271 | H125: 769.0967569 | I125: 769.0967569 | J125: 77678.77245 | K125: 0 | L125: 0 | M125: 0 | N125: 0 | O125: 0 | P125: 0 | Q125: 0 | R125: 0 | S125: 0 | T125: -1287.017401 | U125: -1287.017401 | V125: -1287.017401 | W125: -1287.017401 | X125: -1287.017401 | Y125: -1287.017401 | Z125: -1287.017401 | AA125: -1287.017401 | AB125: -1287.017401 | AC125: -1287.017401 | AD125: -1287.017401 | AE125: -1287.017401 | AF125: -1287.017401 | AG125: -1287.017401 | AH125: -1287.017401 | AI125: -1287.017401 | AJ125: -1287.017401 | AK125: -1287.017401 | AL125: -1287.017401 | AM125: -1287.017401 | AN125: -1287.017401
B126: 118 | C126: 1287.017401 | D126: 128.1827928 | E126: 1158.834608 | F126: 75750.84108 | G126: 2272.525232 | H126: 757.5084108 | I126: 757.5084108 | J126: 76508.34949 | K126: 0 | L126: 0 | M126: 0 | N126: 0 | O126: 0 | P126: 0 | Q126: 0 | R126: 0 | S126: 0 | T126: -1287.017401 | U126: -1287.017401 | V126: -1287.017401 | W126: -1287.017401 | X126: -1287.017401 | Y126: -1287.017401 | Z126: -1287.017401 | AA126: -1287.017401 | AB126: -1287.017401 | AC126: -1287.017401 | AD126: -1287.017401 | AE126: -1287.017401 | AF126: -1287.017401 | AG126: -1287.017401 | AH126: -1287.017401 | AI126: -1287.017401 | AJ126: -1287.017401 | AK126: -1287.017401 | AL126: -1287.017401 | AM126: -1287.017401 | AN126: -1287.017401
B127: 119 | C127: 1287.017401 | D127: 126.2514018 | E127: 1160.765999 | F127: 74590.07508 | G127: 2237.702252 | H127: 745.9007508 | I127: 745.9007508 | J127: 75335.97583 | K127: 0 | L127: 0 | M127: 0 | N127: 0 | O127: 0 | P127: 0 | Q127: 0 | R127: 0 | S127: 0 | T127: -1287.017401 | U127: -1287.017401 | V127: -1287.017401 | W127: -1287.017401 | X127: -1287.017401 | Y127: -1287.017401 | Z127: -1287.017401 | AA127: -1287.017401 | AB127: -1287.017401 | AC127: -1287.017401 | AD127: -1287.017401 | AE127: -1287.017401 | AF127: -1287.017401 | AG127: -1287.017401 | AH127: -1287.017401 | AI127: -1287.017401 | AJ127: -1287.017401 | AK127: -1287.017401 | AL127: -1287.017401 | AM127: -1287.017401 | AN127: -1287.017401
B128: 120 | C128: 1287.017401 | D128: 124.3167918 | E128: 1162.700609 | F128: 73427.37447 | G128: 2202.821234 | H128: 734.2737447 | I128: 734.2737447 | J128: 74161.64822 | K128: 0 | L128: 0 | M128: 0 | N128: =IF($B128<N$4,-$C128,IF($B128=N$4,-($C128+$J128),0)) -> 0 | O128: 0 | P128: 0 | Q128: 0 | R128: 0 | S128: 0 | T128: -75448.66562 | U128: -1287.017401 | V128: -1287.017401 | W128: -1287.017401 | X128: -1287.017401 | Y128: -1287.017401 | Z128: -1287.017401 | AA128: -1287.017401 | AB128: -1287.017401 | AC128: -1287.017401 | AD128: -1287.017401 | AE128: -1287.017401 | AF128: -1287.017401 | AG128: -1287.017401 | AH128: -1287.017401 | AI128: -1287.017401 | AJ128: -1287.017401 | AK128: -1287.017401 | AL128: -1287.017401 | AM128: -1287.017401 | AN128: -1287.017401
B129: 121 | C129: 1287.017401 | D129: 122.3789575 | E129: 1164.638444 | F129: 72262.73603 | G129: 2167.882081 | H129: 722.6273603 | I129: 722.6273603 | J129: 72985.36339 | K129: =IF($B129<K$4,-$C129,IF($B129=K$4,-($C129+$J129),0)) -> 0 | L129: 0 | M129: 0 | N129: 0 | O129: 0 | P129: 0 | Q129: 0 | R129: 0 | S129: 0 | T129: 0 | U129: -1287.017401 | V129: -1287.017401 | W129: -1287.017401 | X129: -1287.017401 | Y129: -1287.017401 | Z129: -1287.017401 | AA129: -1287.017401 | AB129: -1287.017401 | AC129: -1287.017401 | AD129: -1287.017401 | AE129: -1287.017401 | AF129: -1287.017401 | AG129: -1287.017401 | AH129: -1287.017401 | AI129: -1287.017401 | AJ129: -1287.017401 | AK129: -1287.017401 | AL129: -1287.017401 | AM129: -1287.017401 | AN129: -1287.017401
B130: 122 | C130: 1287.017401 | D130: 120.4378934 | E130: 1166.579508 | F130: 71096.15652 | G130: 2132.884696 | H130: 710.9615652 | I130: 710.9615652 | J130: 71807.11809 | K130: 0 | L130: 0 | M130: 0 | N130: 0 | O130: 0 | P130: 0 | Q130: 0 | R130: 0 | S130: 0 | T130: 0 | U130: -1287.017401 | V130: -1287.017401 | W130: -1287.017401 | X130: -1287.017401 | Y130: -1287.017401 | Z130: -1287.017401 | AA130: -1287.017401 | AB130: -1287.017401 | AC130: -1287.017401 | AD130: -1287.017401 | AE130: -1287.017401 | AF130: -1287.017401 | AG130: -1287.017401 | AH130: -1287.017401 | AI130: -1287.017401 | AJ130: -1287.017401 | AK130: -1287.017401 | AL130: -1287.017401 | AM130: -1287.017401 | AN130: -1287.017401
B131: 123 | C131: 1287.017401 | D131: 118.4935942 | E131: 1168.523807 | F131: 69927.63272 | G131: 2097.828981 | H131: 699.2763272 | I131: 699.2763272 | J131: 70626.90904 | K131: 0 | L131: 0 | M131: 0 | N131: 0 | O131: 0 | P131: 0 | Q131: 0 | R131: 0 | S131: 0 | T131: 0 | U131: -1287.017401 | V131: -1287.017401 | W131: -1287.017401 | X131: -1287.017401 | Y131: -1287.017401 | Z131: -1287.017401 | AA131: -1287.017401 | AB131: -1287.017401 | AC131: -1287.017401 | AD131: -1287.017401 | AE131: -1287.017401 | AF131: -1287.017401 | AG131: -1287.017401 | AH131: -1287.017401 | AI131: -1287.017401 | AJ131: -1287.017401 | AK131: -1287.017401 | AL131: -1287.017401 | AM131: -1287.017401 | AN131: -1287.017401
B132: 124 | C132: 1287.017401 | D132: 116.5460545 | E132: 1170.471347 | F132: 68757.16137 | G132: 2062.714841 | H132: 687.5716137 | I132: 687.5716137 | J132: 69444.73298 | K132: 0 | L132: 0 | M132: 0 | N132: 0 | O132: 0 | P132: 0 | Q132: 0 | R132: 0 | S132: 0 | T132: 0 | U132: -1287.017401 | V132: -1287.017401 | W132: -1287.017401 | X132: -1287.017401 | Y132: -1287.017401 | Z132: -1287.017401 | AA132: -1287.017401 | AB132: -1287.017401 | AC132: -1287.017401 | AD132: -1287.017401 | AE132: -1287.017401 | AF132: -1287.017401 | AG132: -1287.017401 | AH132: -1287.017401 | AI132: -1287.017401 | AJ132: -1287.017401 | AK132: -1287.017401 | AL132: -1287.017401 | AM132: -1287.017401 | AN132: -1287.017401
B133: 125 | C133: 1287.017401 | D133: 114.5952689 | E133: 1172.422132 | F133: 67584.73924 | G133: 2027.542177 | H133: 675.8473924 | I133: 675.8473924 | J133: 68260.58663 | K133: 0 | L133: 0 | M133: 0 | N133: =IF($B133<N$4,-$C133,IF($B133=N$4,-($C133+$J133),0)) -> 0 | O133: 0 | P133: 0 | Q133: 0 | R133: 0 | S133: 0 | T133: 0 | U133: -1287.017401 | V133: -1287.017401 | W133: -1287.017401 | X133: -1287.017401 | Y133: -1287.017401 | Z133: -1287.017401 | AA133: -1287.017401 | AB133: -1287.017401 | AC133: -1287.017401 | AD133: -1287.017401 | AE133: -1287.017401 | AF133: -1287.017401 | AG133: -1287.017401 | AH133: -1287.017401 | AI133: -1287.017401 | AJ133: -1287.017401 | AK133: -1287.017401 | AL133: -1287.017401 | AM133: -1287.017401 | AN133: -1287.017401
B134: 126 | C134: 1287.017401 | D134: 112.6412321 | E134: 1174.376169 | F134: 66410.36307 | G134: 1992.310892 | H134: 664.1036307 | I134: 664.1036307 | J134: 67074.4667 | K134: =IF($B134<K$4,-$C134,IF($B134=K$4,-($C134+$J134),0)) -> 0 | L134: 0 | M134: 0 | N134: 0 | O134: 0 | P134: 0 | Q134: 0 | R134: 0 | S134: 0 | T134: 0 | U134: -1287.017401 | V134: -1287.017401 | W134: -1287.017401 | X134: -1287.017401 | Y134: -1287.017401 | Z134: -1287.017401 | AA134: -1287.017401 | AB134: -1287.017401 | AC134: -1287.017401 | AD134: -1287.017401 | AE134: -1287.017401 | AF134: -1287.017401 | AG134: -1287.017401 | AH134: -1287.017401 | AI134: -1287.017401 | AJ134: -1287.017401 | AK134: -1287.017401 | AL134: -1287.017401 | AM134: -1287.017401 | AN134: -1287.017401
B135: 127 | C135: 1287.017401 | D135: 110.6839384 | E135: 1176.333463 | F135: 65234.0296 | G135: 1957.020888 | H135: 652.340296 | I135: 652.340296 | J135: 65886.3699 | K135: 0 | L135: 0 | M135: 0 | N135: 0 | O135: 0 | P135: 0 | Q135: 0 | R135: 0 | S135: 0 | T135: 0 | U135: -1287.017401 | V135: -1287.017401 | W135: -1287.017401 | X135: -1287.017401 | Y135: -1287.017401 | Z135: -1287.017401 | AA135: -1287.017401 | AB135: -1287.017401 | AC135: -1287.017401 | AD135: -1287.017401 | AE135: -1287.017401 | AF135: -1287.017401 | AG135: -1287.017401 | AH135: -1287.017401 | AI135: -1287.017401 | AJ135: -1287.017401 | AK135: -1287.017401 | AL135: -1287.017401 | AM135: -1287.017401 | AN135: -1287.017401
B136: 128 | C136: 1287.017401 | D136: 108.7233827 | E136: 1178.294018 | F136: 64055.73559 | G136: 1921.672068 | H136: 640.5573559 | I136: 640.5573559 | J136: 64696.29294 | K136: 0 | L136: 0 | M136: 0 | N136: 0 | O136: 0 | P136: 0 | Q136: 0 | R136: 0 | S136: 0 | T136: 0 | U136: -1287.017401 | V136: -1287.017401 | W136: -1287.017401 | X136: -1287.017401 | Y136: -1287.017401 | Z136: -1287.017401 | AA136: -1287.017401 | AB136: -1287.017401 | AC136: -1287.017401 | AD136: -1287.017401 | AE136: -1287.017401 | AF136: -1287.017401 | AG136: -1287.017401 | AH136: -1287.017401 | AI136: -1287.017401 | AJ136: -1287.017401 | AK136: -1287.017401 | AL136: -1287.017401 | AM136: -1287.017401 | AN136: -1287.017401
B137: 129 | C137: =IF(B137>$B$5,0,IF(B137=$B$5,E137+D137,-PMT($D$5/12,$B$5,$C$5,0,0))) -> 1287.017401 | D137: =IF(B137>$B$5,0,F136*$D$5/12) -> 106.7595593 | E137: =IF(B137>$B$5,0,IF(B137=$B$5,F136,C137-D137)) -> 1180.257842 | F137: 62875.47774 | G137: 1886.264332 | H137: 628.7547774 | I137: 628.7547774 | J137: =IF(B137>$B$5,0,F137+I137) -> 63504.23252 | K137: 0 | L137: 0 | M137: 0 | N137: 0 | O137: 0 | P137: 0 | Q137: 0 | R137: 0 | S137: 0 | T137: 0 | U137: -1287.017401 | V137: -1287.017401 | W137: -1287.017401 | X137: -1287.017401 | Y137: -1287.017401 | Z137: -1287.017401 | AA137: -1287.017401 | AB137: -1287.017401 | AC137: -1287.017401 | AD137: -1287.017401 | AE137: -1287.017401 | AF137: -1287.017401 | AG137: -1287.017401 | AH137: -1287.017401 | AI137: -1287.017401 | AJ137: -1287.017401 | AK137: -1287.017401 | AL137: -1287.017401 | AM137: -1287.017401 | AN137: -1287.017401
B138: 130 | C138: 1287.017401 | D138: 104.7924629 | E138: 1182.224938 | F138: =F137-E138 -> 61693.25281 | G138: =F138*3/100 -> 1850.797584 | H138: =F138*$D$5/2 -> 616.9325281 | I138: =IF(G138<H138,G138,H138) -> 616.9325281 | J138: 62310.18533 | K138: 0 | L138: 0 | M138: 0 | N138: =IF($B138<N$4,-$C138,IF($B138=N$4,-($C138+$J138),0)) -> 0 | O138: 0 | P138: 0 | Q138: 0 | R138: 0 | S138: 0 | T138: 0 | U138: -1287.017401 | V138: -1287.017401 | W138: -1287.017401 | X138: -1287.017401 | Y138: -1287.017401 | Z138: -1287.017401 | AA138: -1287.017401 | AB138: -1287.017401 | AC138: -1287.017401 | AD138: -1287.017401 | AE138: -1287.017401 | AF138: -1287.017401 | AG138: -1287.017401 | AH138: -1287.017401 | AI138: -1287.017401 | AJ138: -1287.017401 | AK138: -1287.017401 | AL138: -1287.017401 | AM138: -1287.017401 | AN138: -1287.017401
B139: 131 | C139: 1287.017401 | D139: 102.822088 | E139: 1184.195313 | F139: 60509.05749 | G139: 1815.271725 | H139: 605.0905749 | I139: 605.0905749 | J139: 61114.14807 | K139: =IF($B139<K$4,-$C139,IF($B139=K$4,-($C139+$J139),0)) -> 0 | L139: 0 | M139: 0 | N139: 0 | O139: 0 | P139: 0 | Q139: 0 | R139: 0 | S139: 0 | T139: 0 | U139: -1287.017401 | V139: -1287.017401 | W139: -1287.017401 | X139: -1287.017401 | Y139: -1287.017401 | Z139: -1287.017401 | AA139: -1287.017401 | AB139: -1287.017401 | AC139: -1287.017401 | AD139: -1287.017401 | AE139: -1287.017401 | AF139: -1287.017401 | AG139: -1287.017401 | AH139: -1287.017401 | AI139: -1287.017401 | AJ139: -1287.017401 | AK139: -1287.017401 | AL139: -1287.017401 | AM139: -1287.017401 | AN139: -1287.017401
B140: 132 | C140: 1287.017401 | D140: 100.8484292 | E140: 1186.168972 | F140: 59322.88852 | G140: 1779.686656 | H140: 593.2288852 | I140: 593.2288852 | J140: 59916.11741 | K140: 0 | L140: 0 | M140: 0 | N140: 0 | O140: 0 | P140: 0 | Q140: 0 | R140: 0 | S140: 0 | T140: 0 | U140: -61203.13481 | V140: -1287.017401 | W140: -1287.017401 | X140: -1287.017401 | Y140: -1287.017401 | Z140: -1287.017401 | AA140: -1287.017401 | AB140: -1287.017401 | AC140: -1287.017401 | AD140: -1287.017401 | AE140: -1287.017401 | AF140: -1287.017401 | AG140: -1287.017401 | AH140: -1287.017401 | AI140: -1287.017401 | AJ140: -1287.017401 | AK140: -1287.017401 | AL140: -1287.017401 | AM140: -1287.017401 | AN140: -1287.017401
B141: 133 | C141: 1287.017401 | D141: 98.87148087 | E141: 1188.14592 | F141: 58134.7426 | G141: 1744.042278 | H141: 581.347426 | I141: 581.347426 | J141: 58716.09003 | K141: 0 | L141: 0 | M141: 0 | N141: 0 | O141: 0 | P141: 0 | Q141: 0 | R141: 0 | S141: 0 | T141: 0 | U141: 0 | V141: -1287.017401 | W141: -1287.017401 | X141: -1287.017401 | Y141: -1287.017401 | Z141: -1287.017401 | AA141: -1287.017401 | AB141: -1287.017401 | AC141: -1287.017401 | AD141: -1287.017401 | AE141: -1287.017401 | AF141: -1287.017401 | AG141: -1287.017401 | AH141: -1287.017401 | AI141: -1287.017401 | AJ141: -1287.017401 | AK141: -1287.017401 | AL141: -1287.017401 | AM141: -1287.017401 | AN141: -1287.017401
B142: 134 | C142: 1287.017401 | D142: 96.89123767 | E142: 1190.126163 | F142: 56944.61644 | G142: 1708.338493 | H142: 569.4461644 | I142: 569.4461644 | J142: 57514.0626 | K142: 0 | L142: 0 | M142: 0 | N142: 0 | O142: 0 | P142: 0 | Q142: 0 | R142: 0 | S142: 0 | T142: 0 | U142: 0 | V142: -1287.017401 | W142: -1287.017401 | X142: -1287.017401 | Y142: -1287.017401 | Z142: -1287.017401 | AA142: -1287.017401 | AB142: -1287.017401 | AC142: -1287.017401 | AD142: -1287.017401 | AE142: -1287.017401 | AF142: -1287.017401 | AG142: -1287.017401 | AH142: -1287.017401 | AI142: -1287.017401 | AJ142: -1287.017401 | AK142: -1287.017401 | AL142: -1287.017401 | AM142: -1287.017401 | AN142: -1287.017401
B143: 135 | C143: 1287.017401 | D143: 94.90769406 | E143: 1192.109707 | F143: 55752.50673 | G143: 1672.575202 | H143: 557.5250673 | I143: 557.5250673 | J143: 56310.0318 | K143: 0 | L143: 0 | M143: 0 | N143: =IF($B143<N$4,-$C143,IF($B143=N$4,-($C143+$J143),0)) -> 0 | O143: 0 | P143: =IF($B143<P$4,-$C143,IF($B143=P$4,-($C143+$J143),0)) -> 0 | Q143: 0 | R143: 0 | S143: 0 | T143: 0 | U143: 0 | V143: -1287.017401 | W143: -1287.017401 | X143: -1287.017401 | Y143: -1287.017401 | Z143: -1287.017401 | AA143: -1287.017401 | AB143: -1287.017401 | AC143: -1287.017401 | AD143: -1287.017401 | AE143: -1287.017401 | AF143: -1287.017401 | AG143: -1287.017401 | AH143: -1287.017401 | AI143: -1287.017401 | AJ143: -1287.017401 | AK143: -1287.017401 | AL143: -1287.017401 | AM143: -1287.017401 | AN143: -1287.017401
B144: 136 | C144: 1287.017401 | D144: 92.92084455 | E144: 1194.096557 | F144: 54558.41017 | G144: 1636.752305 | H144: 545.5841017 | I144: 545.5841017 | J144: 55103.99428 | K144: =IF($B144<K$4,-$C144,IF($B144=K$4,-($C144+$J144),0)) -> 0 | L144: 0 | M144: 0 | N144: 0 | O144: 0 | P144: 0 | Q144: 0 | R144: 0 | S144: 0 | T144: 0 | U144: 0 | V144: -1287.017401 | W144: -1287.017401 | X144: -1287.017401 | Y144: -1287.017401 | Z144: -1287.017401 | AA144: -1287.017401 | AB144: -1287.017401 | AC144: -1287.017401 | AD144: -1287.017401 | AE144: -1287.017401 | AF144: -1287.017401 | AG144: -1287.017401 | AH144: -1287.017401 | AI144: -1287.017401 | AJ144: -1287.017401 | AK144: -1287.017401 | AL144: -1287.017401 | AM144: -1287.017401 | AN144: -1287.017401
B145: 137 | C145: 1287.017401 | D145: 90.93068362 | E145: 1196.086717 | F145: 53362.32346 | G145: 1600.869704 | H145: 533.6232346 | I145: 533.6232346 | J145: 53895.94669 | K145: 0 | L145: 0 | M145: 0 | N145: 0 | O145: 0 | P145: 0 | Q145: 0 | R145: 0 | S145: 0 | T145: 0 | U145: 0 | V145: -1287.017401 | W145: -1287.017401 | X145: -1287.017401 | Y145: -1287.017401 | Z145: -1287.017401 | AA145: -1287.017401 | AB145: -1287.017401 | AC145: -1287.017401 | AD145: -1287.017401 | AE145: -1287.017401 | AF145: -1287.017401 | AG145: -1287.017401 | AH145: -1287.017401 | AI145: -1287.017401 | AJ145: -1287.017401 | AK145: -1287.017401 | AL145: -1287.017401 | AM145: -1287.017401 | AN145: -1287.017401
B146: 138 | C146: 1287.017401 | D146: 88.93720576 | E146: 1198.080195 | F146: 52164.24326 | G146: 1564.927298 | H146: 521.6424326 | I146: 521.6424326 | J146: 52685.88569 | K146: 0 | L146: 0 | M146: 0 | N146: 0 | O146: 0 | P146: 0 | Q146: 0 | R146: 0 | S146: 0 | T146: 0 | U146: 0 | V146: -1287.017401 | W146: -1287.017401 | X146: -1287.017401 | Y146: -1287.017401 | Z146: -1287.017401 | AA146: -1287.017401 | AB146: -1287.017401 | AC146: -1287.017401 | AD146: -1287.017401 | AE146: -1287.017401 | AF146: -1287.017401 | AG146: -1287.017401 | AH146: -1287.017401 | AI146: -1287.017401 | AJ146: -1287.017401 | AK146: -1287.017401 | AL146: -1287.017401 | AM146: -1287.017401 | AN146: -1287.017401
B147: 139 | C147: 1287.017401 | D147: 86.94040544 | E147: 1200.076996 | F147: 50964.16627 | G147: 1528.924988 | H147: 509.6416627 | I147: 509.6416627 | J147: 51473.80793 | K147: 0 | L147: 0 | M147: 0 | N147: 0 | O147: 0 | P147: 0 | Q147: 0 | R147: 0 | S147: 0 | T147: 0 | U147: 0 | V147: -1287.017401 | W147: -1287.017401 | X147: -1287.017401 | Y147: -1287.017401 | Z147: -1287.017401 | AA147: -1287.017401 | AB147: -1287.017401 | AC147: -1287.017401 | AD147: -1287.017401 | AE147: -1287.017401 | AF147: -1287.017401 | AG147: -1287.017401 | AH147: -1287.017401 | AI147: -1287.017401 | AJ147: -1287.017401 | AK147: -1287.017401 | AL147: -1287.017401 | AM147: -1287.017401 | AN147: -1287.017401
B148: 140 | C148: 1287.017401 | D148: 84.94027711 | E148: 1202.077124 | F148: 49762.08914 | G148: 1492.862674 | H148: 497.6208914 | I148: 497.6208914 | J148: 50259.71003 | K148: 0 | L148: 0 | M148: 0 | N148: =IF($B148<N$4,-$C148,IF($B148=N$4,-($C148+$J148),0)) -> 0 | O148: 0 | P148: 0 | Q148: 0 | R148: 0 | S148: 0 | T148: 0 | U148: 0 | V148: -1287.017401 | W148: -1287.017401 | X148: -1287.017401 | Y148: -1287.017401 | Z148: -1287.017401 | AA148: -1287.017401 | AB148: -1287.017401 | AC148: -1287.017401 | AD148: -1287.017401 | AE148: -1287.017401 | AF148: -1287.017401 | AG148: -1287.017401 | AH148: -1287.017401 | AI148: -1287.017401 | AJ148: -1287.017401 | AK148: -1287.017401 | AL148: -1287.017401 | AM148: -1287.017401 | AN148: -1287.017401
B149: 141 | C149: 1287.017401 | D149: 82.93681524 | E149: 1204.080586 | F149: 48558.00856 | G149: 1456.740257 | H149: 485.5800856 | I149: 485.5800856 | J149: 49043.58864 | K149: =IF($B149<K$4,-$C149,IF($B149=K$4,-($C149+$J149),0)) -> 0 | L149: 0 | M149: 0 | N149: 0 | O149: 0 | P149: 0 | Q149: 0 | R149: 0 | S149: 0 | T149: 0 | U149: 0 | V149: -1287.017401 | W149: -1287.017401 | X149: -1287.017401 | Y149: -1287.017401 | Z149: -1287.017401 | AA149: -1287.017401 | AB149: -1287.017401 | AC149: -1287.017401 | AD149: -1287.017401 | AE149: -1287.017401 | AF149: -1287.017401 | AG149: -1287.017401 | AH149: -1287.017401 | AI149: -1287.017401 | AJ149: -1287.017401 | AK149: -1287.017401 | AL149: -1287.017401 | AM149: -1287.017401 | AN149: -1287.017401
B150: 142 | C150: 1287.017401 | D150: 80.93001426 | E150: 1206.087387 | F150: 47351.92117 | G150: 1420.557635 | H150: 473.5192117 | I150: 473.5192117 | J150: 47825.44038 | K150: 0 | L150: 0 | M150: 0 | N150: 0 | O150: 0 | P150: 0 | Q150: 0 | R150: 0 | S150: 0 | T150: 0 | U150: 0 | V150: -1287.017401 | W150: -1287.017401 | X150: -1287.017401 | Y150: -1287.017401 | Z150: -1287.017401 | AA150: -1287.017401 | AB150: -1287.017401 | AC150: -1287.017401 | AD150: -1287.017401 | AE150: -1287.017401 | AF150: -1287.017401 | AG150: -1287.017401 | AH150: -1287.017401 | AI150: -1287.017401 | AJ150: -1287.017401 | AK150: -1287.017401 | AL150: -1287.017401 | AM150: -1287.017401 | AN150: -1287.017401
B151: 143 | C151: 1287.017401 | D151: 78.91986861 | E151: 1208.097533 | F151: 46143.82364 | G151: 1384.314709 | H151: 461.4382364 | I151: 461.4382364 | J151: 46605.26187 | K151: 0 | L151: 0 | M151: 0 | N151: 0 | O151: 0 | P151: 0 | Q151: 0 | R151: 0 | S151: 0 | T151: 0 | U151: 0 | V151: -1287.017401 | W151: -1287.017401 | X151: -1287.017401 | Y151: -1287.017401 | Z151: -1287.017401 | AA151: -1287.017401 | AB151: -1287.017401 | AC151: -1287.017401 | AD151: -1287.017401 | AE151: -1287.017401 | AF151: -1287.017401 | AG151: -1287.017401 | AH151: -1287.017401 | AI151: -1287.017401 | AJ151: -1287.017401 | AK151: -1287.017401 | AL151: -1287.017401 | AM151: -1287.017401 | AN151: -1287.017401
B152: 144 | C152: 1287.017401 | D152: 76.90637273 | E152: 1210.111028 | F152: 44933.71261 | G152: 1348.011378 | H152: 449.3371261 | I152: 449.3371261 | J152: 45383.04973 | K152: 0 | L152: 0 | M152: 0 | N152: 0 | O152: 0 | P152: 0 | Q152: 0 | R152: 0 | S152: 0 | T152: 0 | U152: 0 | V152: -46670.06714 | W152: -1287.017401 | X152: -1287.017401 | Y152: -1287.017401 | Z152: -1287.017401 | AA152: -1287.017401 | AB152: -1287.017401 | AC152: -1287.017401 | AD152: -1287.017401 | AE152: -1287.017401 | AF152: -1287.017401 | AG152: -1287.017401 | AH152: -1287.017401 | AI152: -1287.017401 | AJ152: -1287.017401 | AK152: -1287.017401 | AL152: -1287.017401 | AM152: -1287.017401 | AN152: -1287.017401
B153: 145 | C153: 1287.017401 | D153: 74.88952101 | E153: 1212.12788 | F153: 43721.58473 | G153: 1311.647542 | H153: 437.2158473 | I153: 437.2158473 | J153: 44158.80058 | K153: 0 | L153: 0 | M153: 0 | N153: =IF($B153<N$4,-$C153,IF($B153=N$4,-($C153+$J153),0)) -> 0 | O153: 0 | P153: 0 | Q153: 0 | R153: 0 | S153: 0 | T153: 0 | U153: 0 | V153: 0 | W153: -1287.017401 | X153: -1287.017401 | Y153: -1287.017401 | Z153: -1287.017401 | AA153: -1287.017401 | AB153: -1287.017401 | AC153: -1287.017401 | AD153: -1287.017401 | AE153: -1287.017401 | AF153: -1287.017401 | AG153: -1287.017401 | AH153: -1287.017401 | AI153: -1287.017401 | AJ153: -1287.017401 | AK153: -1287.017401 | AL153: -1287.017401 | AM153: -1287.017401 | AN153: -1287.017401
B154: 146 | C154: 1287.017401 | D154: 72.86930788 | E154: 1214.148093 | F154: 42507.43663 | G154: 1275.223099 | H154: 425.0743663 | I154: 425.0743663 | J154: 42932.511 | K154: =IF($B154<K$4,-$C154,IF($B154=K$4,-($C154+$J154),0)) -> 0 | L154: 0 | M154: 0 | N154: 0 | O154: 0 | P154: 0 | Q154: 0 | R154: 0 | S154: 0 | T154: 0 | U154: 0 | V154: 0 | W154: -1287.017401 | X154: -1287.017401 | Y154: -1287.017401 | Z154: -1287.017401 | AA154: -1287.017401 | AB154: -1287.017401 | AC154: -1287.017401 | AD154: -1287.017401 | AE154: -1287.017401 | AF154: -1287.017401 | AG154: -1287.017401 | AH154: -1287.017401 | AI154: -1287.017401 | AJ154: -1287.017401 | AK154: -1287.017401 | AL154: -1287.017401 | AM154: -1287.017401 | AN154: -1287.017401
B155: 147 | C155: 1287.017401 | D155: 70.84572772 | E155: 1216.171673 | F155: 41291.26496 | G155: 1238.737949 | H155: 412.9126496 | I155: 412.9126496 | J155: 41704.17761 | K155: 0 | L155: 0 | M155: 0 | N155: 0 | O155: 0 | P155: 0 | Q155: 0 | R155: 0 | S155: 0 | T155: 0 | U155: 0 | V155: 0 | W155: -1287.017401 | X155: -1287.017401 | Y155: -1287.017401 | Z155: -1287.017401 | AA155: -1287.017401 | AB155: -1287.017401 | AC155: -1287.017401 | AD155: -1287.017401 | AE155: -1287.017401 | AF155: -1287.017401 | AG155: -1287.017401 | AH155: -1287.017401 | AI155: -1287.017401 | AJ155: -1287.017401 | AK155: -1287.017401 | AL155: -1287.017401 | AM155: -1287.017401 | AN155: -1287.017401
B156: 148 | C156: 1287.017401 | D156: 68.81877494 | E156: 1218.198626 | F156: 40073.06634 | G156: 1202.19199 | H156: 400.7306634 | I156: 400.7306634 | J156: 40473.797 | K156: 0 | L156: 0 | M156: 0 | N156: 0 | O156: 0 | P156: 0 | Q156: 0 | R156: 0 | S156: 0 | T156: 0 | U156: 0 | V156: 0 | W156: -1287.017401 | X156: -1287.017401 | Y156: -1287.017401 | Z156: -1287.017401 | AA156: -1287.017401 | AB156: -1287.017401 | AC156: -1287.017401 | AD156: -1287.017401 | AE156: -1287.017401 | AF156: -1287.017401 | AG156: -1287.017401 | AH156: -1287.017401 | AI156: -1287.017401 | AJ156: -1287.017401 | AK156: -1287.017401 | AL156: -1287.017401 | AM156: -1287.017401 | AN156: -1287.017401
B157: 149 | C157: 1287.017401 | D157: 66.78844389 | E157: 1220.228957 | F157: 38852.83738 | G157: 1165.585121 | H157: 388.5283738 | I157: 388.5283738 | J157: 39241.36575 | K157: 0 | L157: 0 | M157: 0 | N157: 0 | O157: 0 | P157: 0 | Q157: 0 | R157: 0 | S157: 0 | T157: 0 | U157: 0 | V157: 0 | W157: -1287.017401 | X157: -1287.017401 | Y157: -1287.017401 | Z157: -1287.017401 | AA157: -1287.017401 | AB157: -1287.017401 | AC157: -1287.017401 | AD157: -1287.017401 | AE157: -1287.017401 | AF157: -1287.017401 | AG157: -1287.017401 | AH157: -1287.017401 | AI157: -1287.017401 | AJ157: -1287.017401 | AK157: -1287.017401 | AL157: -1287.017401 | AM157: -1287.017401 | AN157: -1287.017401
B158: 150 | C158: 1287.017401 | D158: 64.75472896 | E158: 1222.262672 | F158: 37630.57471 | G158: 1128.917241 | H158: 376.3057471 | I158: 376.3057471 | J158: 38006.88045 | K158: 0 | L158: 0 | M158: 0 | N158: =IF($B158<N$4,-$C158,IF($B158=N$4,-($C158+$J158),0)) -> 0 | O158: 0 | P158: 0 | Q158: 0 | R158: 0 | S158: 0 | T158: 0 | U158: 0 | V158: 0 | W158: -1287.017401 | X158: -1287.017401 | Y158: -1287.017401 | Z158: -1287.017401 | AA158: -1287.017401 | AB158: -1287.017401 | AC158: -1287.017401 | AD158: -1287.017401 | AE158: -1287.017401 | AF158: -1287.017401 | AG158: -1287.017401 | AH158: -1287.017401 | AI158: -1287.017401 | AJ158: -1287.017401 | AK158: -1287.017401 | AL158: -1287.017401 | AM158: -1287.017401 | AN158: -1287.017401
B159: 151 | C159: 1287.017401 | D159: 62.71762451 | E159: 1224.299777 | F159: 36406.27493 | G159: 1092.188248 | H159: 364.0627493 | I159: 364.0627493 | J159: 36770.33768 | K159: =IF($B159<K$4,-$C159,IF($B159=K$4,-($C159+$J159),0)) -> 0 | L159: 0 | M159: 0 | N159: 0 | O159: 0 | P159: 0 | Q159: 0 | R159: 0 | S159: 0 | T159: 0 | U159: 0 | V159: 0 | W159: -1287.017401 | X159: -1287.017401 | Y159: -1287.017401 | Z159: -1287.017401 | AA159: -1287.017401 | AB159: -1287.017401 | AC159: -1287.017401 | AD159: -1287.017401 | AE159: -1287.017401 | AF159: -1287.017401 | AG159: -1287.017401 | AH159: -1287.017401 | AI159: -1287.017401 | AJ159: -1287.017401 | AK159: -1287.017401 | AL159: -1287.017401 | AM159: -1287.017401 | AN159: -1287.017401
B160: 152 | C160: 1287.017401 | D160: 60.67712488 | E160: 1226.340276 | F160: 35179.93465 | G160: 1055.39804 | H160: 351.7993465 | I160: 351.7993465 | J160: 35531.734 | K160: 0 | L160: 0 | M160: 0 | N160: 0 | O160: 0 | P160: 0 | Q160: 0 | R160: 0 | S160: 0 | T160: 0 | U160: 0 | V160: 0 | W160: -1287.017401 | X160: -1287.017401 | Y160: -1287.017401 | Z160: -1287.017401 | AA160: -1287.017401 | AB160: -1287.017401 | AC160: -1287.017401 | AD160: -1287.017401 | AE160: -1287.017401 | AF160: -1287.017401 | AG160: -1287.017401 | AH160: -1287.017401 | AI160: -1287.017401 | AJ160: -1287.017401 | AK160: -1287.017401 | AL160: -1287.017401 | AM160: -1287.017401 | AN160: -1287.017401
B161: 153 | C161: 1287.017401 | D161: 58.63322442 | E161: 1228.384177 | F161: 33951.55048 | G161: 1018.546514 | H161: 339.5155048 | I161: 339.5155048 | J161: 34291.06598 | K161: 0 | L161: 0 | M161: 0 | N161: 0 | O161: 0 | P161: 0 | Q161: 0 | R161: 0 | S161: 0 | T161: 0 | U161: 0 | V161: 0 | W161: -1287.017401 | X161: -1287.017401 | Y161: -1287.017401 | Z161: -1287.017401 | AA161: -1287.017401 | AB161: -1287.017401 | AC161: -1287.017401 | AD161: -1287.017401 | AE161: -1287.017401 | AF161: -1287.017401 | AG161: -1287.017401 | AH161: -1287.017401 | AI161: -1287.017401 | AJ161: -1287.017401 | AK161: -1287.017401 | AL161: -1287.017401 | AM161: -1287.017401 | AN161: -1287.017401
B162: 154 | C162: 1287.017401 | D162: 56.58591746 | E162: 1230.431484 | F162: 32721.11899 | G162: 981.6335698 | H162: 327.2111899 | I162: 327.2111899 | J162: 33048.33018 | K162: 0 | L162: 0 | M162: 0 | N162: 0 | O162: 0 | P162: 0 | Q162: 0 | R162: 0 | S162: 0 | T162: 0 | U162: 0 | V162: 0 | W162: -1287.017401 | X162: -1287.017401 | Y162: -1287.017401 | Z162: -1287.017401 | AA162: -1287.017401 | AB162: -1287.017401 | AC162: -1287.017401 | AD162: -1287.017401 | AE162: -1287.017401 | AF162: -1287.017401 | AG162: -1287.017401 | AH162: -1287.017401 | AI162: -1287.017401 | AJ162: -1287.017401 | AK162: -1287.017401 | AL162: -1287.017401 | AM162: -1287.017401 | AN162: -1287.017401
B163: 155 | C163: 1287.017401 | D163: 54.53519832 | E163: 1232.482203 | F163: 31488.63679 | G163: 944.6591037 | H163: 314.8863679 | I163: 314.8863679 | J163: 31803.52316 | K163: 0 | L163: 0 | M163: 0 | N163: =IF($B163<N$4,-$C163,IF($B163=N$4,-($C163+$J163),0)) -> 0 | O163: 0 | P163: 0 | Q163: 0 | R163: 0 | S163: 0 | T163: 0 | U163: 0 | V163: 0 | W163: -1287.017401 | X163: -1287.017401 | Y163: -1287.017401 | Z163: -1287.017401 | AA163: -1287.017401 | AB163: -1287.017401 | AC163: -1287.017401 | AD163: -1287.017401 | AE163: -1287.017401 | AF163: -1287.017401 | AG163: -1287.017401 | AH163: -1287.017401 | AI163: -1287.017401 | AJ163: -1287.017401 | AK163: -1287.017401 | AL163: -1287.017401 | AM163: -1287.017401 | AN163: -1287.017401
B164: 156 | C164: 1287.017401 | D164: 52.48106132 | E164: 1234.53634 | F164: 30254.10045 | G164: 907.6230135 | H164: 302.5410045 | I164: 302.5410045 | J164: 30556.64145 | K164: =IF($B164<K$4,-$C164,IF($B164=K$4,-($C164+$J164),0)) -> 0 | L164: 0 | M164: 0 | N164: 0 | O164: 0 | P164: 0 | Q164: 0 | R164: 0 | S164: 0 | T164: 0 | U164: 0 | V164: 0 | W164: -31843.65886 | X164: -1287.017401 | Y164: -1287.017401 | Z164: -1287.017401 | AA164: -1287.017401 | AB164: -1287.017401 | AC164: -1287.017401 | AD164: -1287.017401 | AE164: -1287.017401 | AF164: -1287.017401 | AG164: -1287.017401 | AH164: -1287.017401 | AI164: -1287.017401 | AJ164: -1287.017401 | AK164: -1287.017401 | AL164: -1287.017401 | AM164: -1287.017401 | AN164: -1287.017401
B165: 157 | C165: 1287.017401 | D165: 50.42350075 | E165: 1236.5939 | F165: 29017.50655 | G165: 870.5251965 | H165: 290.1750655 | I165: 290.1750655 | J165: 29307.68162 | K165: 0 | L165: 0 | M165: 0 | N165: 0 | O165: 0 | P165: 0 | Q165: 0 | R165: 0 | S165: 0 | T165: 0 | U165: 0 | V165: 0 | W165: 0 | X165: -1287.017401 | Y165: -1287.017401 | Z165: -1287.017401 | AA165: -1287.017401 | AB165: -1287.017401 | AC165: -1287.017401 | AD165: -1287.017401 | AE165: -1287.017401 | AF165: -1287.017401 | AG165: -1287.017401 | AH165: -1287.017401 | AI165: -1287.017401 | AJ165: -1287.017401 | AK165: -1287.017401 | AL165: -1287.017401 | AM165: -1287.017401 | AN165: -1287.017401
B166: 158 | C166: 1287.017401 | D166: 48.36251092 | E166: 1238.65489 | F166: 27778.85166 | G166: 833.3655498 | H166: 277.7885166 | I166: 277.7885166 | J166: 28056.64018 | K166: 0 | L166: 0 | M166: 0 | N166: 0 | O166: 0 | P166: 0 | Q166: 0 | R166: 0 | S166: 0 | T166: 0 | U166: 0 | V166: 0 | W166: 0 | X166: -1287.017401 | Y166: -1287.017401 | Z166: -1287.017401 | AA166: -1287.017401 | AB166: -1287.017401 | AC166: -1287.017401 | AD166: -1287.017401 | AE166: -1287.017401 | AF166: -1287.017401 | AG166: -1287.017401 | AH166: -1287.017401 | AI166: -1287.017401 | AJ166: -1287.017401 | AK166: -1287.017401 | AL166: -1287.017401 | AM166: -1287.017401 | AN166: -1287.017401
B167: 159 | C167: 1287.017401 | D167: 46.2980861 | E167: 1240.719315 | F167: 26538.13234 | G167: 796.1439703 | H167: 265.3813234 | I167: 265.3813234 | J167: 26803.51367 | K167: 0 | L167: 0 | M167: 0 | N167: 0 | O167: 0 | P167: 0 | Q167: 0 | R167: 0 | S167: 0 | T167: 0 | U167: 0 | V167: 0 | W167: 0 | X167: -1287.017401 | Y167: -1287.017401 | Z167: -1287.017401 | AA167: -1287.017401 | AB167: -1287.017401 | AC167: -1287.017401 | AD167: -1287.017401 | AE167: -1287.017401 | AF167: -1287.017401 | AG167: -1287.017401 | AH167: -1287.017401 | AI167: -1287.017401 | AJ167: -1287.017401 | AK167: -1287.017401 | AL167: -1287.017401 | AM167: -1287.017401 | AN167: -1287.017401
B168: 160 | C168: 1287.017401 | D168: 44.23022057 | E168: 1242.787181 | F168: 25295.34516 | G168: 758.8603549 | H168: 252.9534516 | I168: 252.9534516 | J168: 25548.29862 | K168: 0 | L168: 0 | M168: 0 | N168: =IF($B168<N$4,-$C168,IF($B168=N$4,-($C168+$J168),0)) -> 0 | O168: 0 | P168: 0 | Q168: 0 | R168: 0 | S168: 0 | T168: 0 | U168: 0 | V168: 0 | W168: 0 | X168: -1287.017401 | Y168: -1287.017401 | Z168: -1287.017401 | AA168: -1287.017401 | AB168: -1287.017401 | AC168: -1287.017401 | AD168: -1287.017401 | AE168: -1287.017401 | AF168: -1287.017401 | AG168: -1287.017401 | AH168: -1287.017401 | AI168: -1287.017401 | AJ168: -1287.017401 | AK168: -1287.017401 | AL168: -1287.017401 | AM168: -1287.017401 | AN168: -1287.017401
B169: 161 | C169: 1287.017401 | D169: 42.15890861 | E169: 1244.858493 | F169: 24050.48667 | G169: 721.5146001 | H169: 240.5048667 | I169: 240.5048667 | J169: 24290.99154 | K169: =IF($B169<K$4,-$C169,IF($B169=K$4,-($C169+$J169),0)) -> 0 | L169: 0 | M169: 0 | N169: 0 | O169: 0 | P169: 0 | Q169: 0 | R169: 0 | S169: 0 | T169: 0 | U169: 0 | V169: 0 | W169: 0 | X169: -1287.017401 | Y169: -1287.017401 | Z169: -1287.017401 | AA169: -1287.017401 | AB169: -1287.017401 | AC169: -1287.017401 | AD169: -1287.017401 | AE169: -1287.017401 | AF169: -1287.017401 | AG169: -1287.017401 | AH169: -1287.017401 | AI169: -1287.017401 | AJ169: -1287.017401 | AK169: -1287.017401 | AL169: -1287.017401 | AM169: -1287.017401 | AN169: -1287.017401
B170: 162 | C170: 1287.017401 | D170: 40.08414445 | E170: 1246.933257 | F170: 22803.55341 | G170: 684.1066024 | H170: 228.0355341 | I170: 228.0355341 | J170: 23031.58895 | K170: 0 | L170: 0 | M170: 0 | N170: 0 | O170: 0 | P170: 0 | Q170: 0 | R170: 0 | S170: 0 | T170: 0 | U170: 0 | V170: 0 | W170: 0 | X170: -1287.017401 | Y170: -1287.017401 | Z170: -1287.017401 | AA170: -1287.017401 | AB170: -1287.017401 | AC170: -1287.017401 | AD170: -1287.017401 | AE170: -1287.017401 | AF170: -1287.017401 | AG170: -1287.017401 | AH170: -1287.017401 | AI170: -1287.017401 | AJ170: -1287.017401 | AK170: -1287.017401 | AL170: -1287.017401 | AM170: -1287.017401 | AN170: -1287.017401
B171: 163 | C171: 1287.017401 | D171: 38.00592236 | E171: 1249.011479 | F171: 21554.54194 | G171: 646.6362581 | H171: 215.5454194 | I171: 215.5454194 | J171: 21770.08736 | K171: 0 | L171: 0 | M171: 0 | N171: 0 | O171: 0 | P171: 0 | Q171: 0 | R171: 0 | S171: 0 | T171: 0 | U171: 0 | V171: 0 | W171: 0 | X171: -1287.017401 | Y171: -1287.017401 | Z171: -1287.017401 | AA171: -1287.017401 | AB171: -1287.017401 | AC171: -1287.017401 | AD171: -1287.017401 | AE171: -1287.017401 | AF171: -1287.017401 | AG171: -1287.017401 | AH171: -1287.017401 | AI171: -1287.017401 | AJ171: -1287.017401 | AK171: -1287.017401 | AL171: -1287.017401 | AM171: -1287.017401 | AN171: -1287.017401
B172: 164 | C172: 1287.017401 | D172: 35.92423656 | E172: 1251.093165 | F172: 20303.44877 | G172: 609.1034631 | H172: 203.0344877 | I172: 203.0344877 | J172: 20506.48326 | K172: 0 | L172: 0 | M172: 0 | N172: 0 | O172: 0 | P172: 0 | Q172: 0 | R172: 0 | S172: 0 | T172: 0 | U172: 0 | V172: 0 | W172: 0 | X172: -1287.017401 | Y172: -1287.017401 | Z172: -1287.017401 | AA172: -1287.017401 | AB172: -1287.017401 | AC172: -1287.017401 | AD172: -1287.017401 | AE172: -1287.017401 | AF172: -1287.017401 | AG172: -1287.017401 | AH172: -1287.017401 | AI172: -1287.017401 | AJ172: -1287.017401 | AK172: -1287.017401 | AL172: -1287.017401 | AM172: -1287.017401 | AN172: -1287.017401
B173: 165 | C173: 1287.017401 | D173: 33.83908129 | E173: 1253.17832 | F173: 19050.27045 | G173: 571.5081135 | H173: 190.5027045 | I173: 190.5027045 | J173: 19240.77316 | K173: 0 | L173: 0 | M173: 0 | N173: =IF($B173<N$4,-$C173,IF($B173=N$4,-($C173+$J173),0)) -> 0 | O173: 0 | P173: 0 | Q173: 0 | R173: 0 | S173: 0 | T173: 0 | U173: 0 | V173: 0 | W173: 0 | X173: -1287.017401 | Y173: -1287.017401 | Z173: -1287.017401 | AA173: -1287.017401 | AB173: -1287.017401 | AC173: -1287.017401 | AD173: -1287.017401 | AE173: -1287.017401 | AF173: -1287.017401 | AG173: -1287.017401 | AH173: -1287.017401 | AI173: -1287.017401 | AJ173: -1287.017401 | AK173: -1287.017401 | AL173: -1287.017401 | AM173: -1287.017401 | AN173: -1287.017401
B174: 166 | C174: 1287.017401 | D174: 31.75045075 | E174: 1255.26695 | F174: 17795.0035 | G174: 533.850105 | H174: 177.950035 | I174: 177.950035 | J174: 17972.95354 | K174: =IF($B174<K$4,-$C174,IF($B174=K$4,-($C174+$J174),0)) -> 0 | L174: 0 | M174: 0 | N174: 0 | O174: 0 | P174: 0 | Q174: 0 | R174: 0 | S174: 0 | T174: 0 | U174: 0 | V174: 0 | W174: 0 | X174: -1287.017401 | Y174: -1287.017401 | Z174: -1287.017401 | AA174: -1287.017401 | AB174: -1287.017401 | AC174: -1287.017401 | AD174: -1287.017401 | AE174: -1287.017401 | AF174: -1287.017401 | AG174: -1287.017401 | AH174: -1287.017401 | AI174: -1287.017401 | AJ174: -1287.017401 | AK174: -1287.017401 | AL174: -1287.017401 | AM174: -1287.017401 | AN174: -1287.017401
B175: 167 | C175: 1287.017401 | D175: 29.65833917 | E175: 1257.359062 | F175: 16537.64444 | G175: 496.1293332 | H175: 165.3764444 | I175: 165.3764444 | J175: 16703.02088 | K175: 0 | L175: 0 | M175: 0 | N175: 0 | O175: 0 | P175: 0 | Q175: 0 | R175: 0 | S175: 0 | T175: 0 | U175: 0 | V175: 0 | W175: 0 | X175: -1287.017401 | Y175: -1287.017401 | Z175: -1287.017401 | AA175: -1287.017401 | AB175: -1287.017401 | AC175: -1287.017401 | AD175: -1287.017401 | AE175: -1287.017401 | AF175: -1287.017401 | AG175: -1287.017401 | AH175: -1287.017401 | AI175: -1287.017401 | AJ175: -1287.017401 | AK175: -1287.017401 | AL175: -1287.017401 | AM175: -1287.017401 | AN175: -1287.017401
B176: 168 | C176: 1287.017401 | D176: 27.56274073 | E176: 1259.45466 | F176: 15278.18978 | G176: 458.3456934 | H176: 152.7818978 | I176: 152.7818978 | J176: 15430.97168 | K176: 0 | L176: 0 | M176: 0 | N176: 0 | O176: 0 | P176: 0 | Q176: 0 | R176: 0 | S176: 0 | T176: 0 | U176: 0 | V176: 0 | W176: 0 | X176: -16717.98908 | Y176: -1287.017401 | Z176: -1287.017401 | AA176: -1287.017401 | AB176: -1287.017401 | AC176: -1287.017401 | AD176: -1287.017401 | AE176: -1287.017401 | AF176: -1287.017401 | AG176: -1287.017401 | AH176: -1287.017401 | AI176: -1287.017401 | AJ176: -1287.017401 | AK176: -1287.017401 | AL176: -1287.017401 | AM176: -1287.017401 | AN176: -1287.017401
B177: 169 | C177: 1287.017401 | D177: 25.46364963 | E177: 1261.553751 | F177: 14016.63603 | G177: 420.4990808 | H177: 140.1663603 | I177: 140.1663603 | J177: 14156.80239 | K177: 0 | L177: 0 | M177: 0 | N177: 0 | O177: 0 | P177: 0 | Q177: 0 | R177: 0 | S177: 0 | T177: 0 | U177: 0 | V177: 0 | W177: 0 | X177: 0 | Y177: -1287.017401 | Z177: -1287.017401 | AA177: -1287.017401 | AB177: -1287.017401 | AC177: -1287.017401 | AD177: -1287.017401 | AE177: -1287.017401 | AF177: -1287.017401 | AG177: -1287.017401 | AH177: -1287.017401 | AI177: -1287.017401 | AJ177: -1287.017401 | AK177: -1287.017401 | AL177: -1287.017401 | AM177: -1287.017401 | AN177: -1287.017401
B178: 170 | C178: 1287.017401 | D178: 23.36106005 | E178: 1263.656341 | F178: 12752.97969 | G178: 382.5893906 | H178: 127.5297969 | I178: 127.5297969 | J178: 12880.50948 | K178: 0 | L178: 0 | M178: 0 | N178: =IF($B178<N$4,-$C178,IF($B178=N$4,-($C178+$J178),0)) -> 0 | O178: 0 | P178: 0 | Q178: 0 | R178: 0 | S178: 0 | T178: 0 | U178: 0 | V178: 0 | W178: 0 | X178: 0 | Y178: -1287.017401 | Z178: -1287.017401 | AA178: -1287.017401 | AB178: -1287.017401 | AC178: -1287.017401 | AD178: -1287.017401 | AE178: -1287.017401 | AF178: -1287.017401 | AG178: -1287.017401 | AH178: -1287.017401 | AI178: -1287.017401 | AJ178: -1287.017401 | AK178: -1287.017401 | AL178: -1287.017401 | AM178: -1287.017401 | AN178: -1287.017401
B179: 171 | C179: 1287.017401 | D179: 21.25496614 | E179: 1265.762435 | F179: 11487.21725 | G179: 344.6165175 | H179: 114.8721725 | I179: 114.8721725 | J179: 11602.08942 | K179: =IF($B179<K$4,-$C179,IF($B179=K$4,-($C179+$J179),0)) -> 0 | L179: 0 | M179: 0 | N179: 0 | O179: 0 | P179: 0 | Q179: 0 | R179: 0 | S179: 0 | T179: 0 | U179: 0 | V179: 0 | W179: 0 | X179: 0 | Y179: -1287.017401 | Z179: -1287.017401 | AA179: -1287.017401 | AB179: -1287.017401 | AC179: -1287.017401 | AD179: -1287.017401 | AE179: -1287.017401 | AF179: -1287.017401 | AG179: -1287.017401 | AH179: -1287.017401 | AI179: -1287.017401 | AJ179: -1287.017401 | AK179: -1287.017401 | AL179: -1287.017401 | AM179: -1287.017401 | AN179: -1287.017401
B180: 172 | C180: 1287.017401 | D180: 19.14536209 | E180: 1267.872039 | F180: 10219.34521 | G180: 306.5803564 | H180: 102.1934521 | I180: 102.1934521 | J180: 10321.53866 | K180: 0 | L180: 0 | M180: 0 | N180: 0 | O180: 0 | P180: 0 | Q180: 0 | R180: 0 | S180: 0 | T180: 0 | U180: 0 | V180: 0 | W180: 0 | X180: 0 | Y180: -1287.017401 | Z180: -1287.017401 | AA180: -1287.017401 | AB180: -1287.017401 | AC180: -1287.017401 | AD180: -1287.017401 | AE180: -1287.017401 | AF180: -1287.017401 | AG180: -1287.017401 | AH180: -1287.017401 | AI180: -1287.017401 | AJ180: -1287.017401 | AK180: -1287.017401 | AL180: -1287.017401 | AM180: -1287.017401 | AN180: -1287.017401
B181: 173 | C181: 1287.017401 | D181: 17.03224202 | E181: 1269.985159 | F181: 8949.360053 | G181: 268.4808016 | H181: 89.49360053 | I181: 89.49360053 | J181: 9038.853654 | K181: 0 | L181: 0 | M181: 0 | N181: 0 | O181: 0 | P181: 0 | Q181: 0 | R181: 0 | S181: 0 | T181: 0 | U181: 0 | V181: 0 | W181: 0 | X181: 0 | Y181: -1287.017401 | Z181: -1287.017401 | AA181: -1287.017401 | AB181: -1287.017401 | AC181: -1287.017401 | AD181: -1287.017401 | AE181: -1287.017401 | AF181: -1287.017401 | AG181: -1287.017401 | AH181: -1287.017401 | AI181: -1287.017401 | AJ181: -1287.017401 | AK181: -1287.017401 | AL181: -1287.017401 | AM181: -1287.017401 | AN181: -1287.017401
B182: 174 | C182: 1287.017401 | D182: 14.91560009 | E182: 1272.101801 | F182: 7677.258252 | G182: 230.3177476 | H182: 76.77258252 | I182: 76.77258252 | J182: 7754.030835 | K182: 0 | L182: 0 | M182: 0 | N182: 0 | O182: 0 | P182: 0 | Q182: 0 | R182: 0 | S182: 0 | T182: 0 | U182: 0 | V182: 0 | W182: 0 | X182: 0 | Y182: -1287.017401 | Z182: -1287.017401 | AA182: -1287.017401 | AB182: -1287.017401 | AC182: -1287.017401 | AD182: -1287.017401 | AE182: -1287.017401 | AF182: -1287.017401 | AG182: -1287.017401 | AH182: -1287.017401 | AI182: -1287.017401 | AJ182: -1287.017401 | AK182: -1287.017401 | AL182: -1287.017401 | AM182: -1287.017401 | AN182: -1287.017401
B183: 175 | C183: 1287.017401 | D183: 12.79543042 | E183: 1274.221971 | F183: 6403.036281 | G183: 192.0910884 | H183: 64.03036281 | I183: 64.03036281 | J183: 6467.066644 | K183: 0 | L183: 0 | M183: 0 | N183: =IF($B183<N$4,-$C183,IF($B183=N$4,-($C183+$J183),0)) -> 0 | O183: 0 | P183: 0 | Q183: 0 | R183: 0 | S183: 0 | T183: 0 | U183: 0 | V183: 0 | W183: 0 | X183: 0 | Y183: -1287.017401 | Z183: -1287.017401 | AA183: -1287.017401 | AB183: -1287.017401 | AC183: -1287.017401 | AD183: -1287.017401 | AE183: -1287.017401 | AF183: -1287.017401 | AG183: -1287.017401 | AH183: -1287.017401 | AI183: -1287.017401 | AJ183: -1287.017401 | AK183: -1287.017401 | AL183: -1287.017401 | AM183: -1287.017401 | AN183: -1287.017401
B184: 176 | C184: 1287.017401 | D184: 10.67172714 | E184: 1276.345674 | F184: 5126.690607 | G184: 153.8007182 | H184: 51.26690607 | I184: 51.26690607 | J184: 5177.957513 | K184: =IF($B184<K$4,-$C184,IF($B184=K$4,-($C184+$J184),0)) -> 0 | L184: 0 | M184: 0 | N184: 0 | O184: 0 | P184: 0 | Q184: 0 | R184: 0 | S184: 0 | T184: 0 | U184: 0 | V184: 0 | W184: 0 | X184: 0 | Y184: -1287.017401 | Z184: -1287.017401 | AA184: -1287.017401 | AB184: -1287.017401 | AC184: -1287.017401 | AD184: -1287.017401 | AE184: -1287.017401 | AF184: -1287.017401 | AG184: -1287.017401 | AH184: -1287.017401 | AI184: -1287.017401 | AJ184: -1287.017401 | AK184: -1287.017401 | AL184: -1287.017401 | AM184: -1287.017401 | AN184: -1287.017401
B185: 177 | C185: 1287.017401 | D185: 8.544484346 | E185: 1278.472917 | F185: 3848.217691 | G185: 115.4465307 | H185: 38.48217691 | I185: 38.48217691 | J185: 3886.699868 | K185: 0 | L185: 0 | M185: 0 | N185: 0 | O185: 0 | P185: 0 | Q185: 0 | R185: 0 | S185: 0 | T185: 0 | U185: 0 | V185: 0 | W185: 0 | X185: 0 | Y185: -1287.017401 | Z185: -1287.017401 | AA185: -1287.017401 | AB185: -1287.017401 | AC185: -1287.017401 | AD185: -1287.017401 | AE185: -1287.017401 | AF185: -1287.017401 | AG185: -1287.017401 | AH185: -1287.017401 | AI185: -1287.017401 | AJ185: -1287.017401 | AK185: -1287.017401 | AL185: -1287.017401 | AM185: -1287.017401 | AN185: -1287.017401
B186: 178 | C186: 1287.017401 | D186: 6.413696151 | E186: 1280.603705 | F186: 2567.613986 | G186: 77.02841957 | H186: 25.67613986 | I186: 25.67613986 | J186: 2593.290126 | K186: 0 | L186: 0 | M186: 0 | N186: 0 | O186: 0 | P186: 0 | Q186: 0 | R186: 0 | S186: 0 | T186: 0 | U186: 0 | V186: 0 | W186: 0 | X186: 0 | Y186: -1287.017401 | Z186: -1287.017401 | AA186: -1287.017401 | AB186: -1287.017401 | AC186: -1287.017401 | AD186: -1287.017401 | AE186: -1287.017401 | AF186: -1287.017401 | AG186: -1287.017401 | AH186: -1287.017401 | AI186: -1287.017401 | AJ186: -1287.017401 | AK186: -1287.017401 | AL186: -1287.017401 | AM186: -1287.017401 | AN186: -1287.017401
B187: 179 | C187: 1287.017401 | D187: 4.279356643 | E187: 1282.738044 | F187: 1284.875941 | G187: 38.54627824 | H187: 12.84875941 | I187: 12.84875941 | J187: 1297.724701 | K187: 0 | L187: 0 | M187: 0 | N187: 0 | O187: 0 | P187: 0 | Q187: 0 | R187: 0 | S187: 0 | T187: 0 | U187: 0 | V187: 0 | W187: 0 | X187: 0 | Y187: -1287.017401 | Z187: -1287.017401 | AA187: -1287.017401 | AB187: -1287.017401 | AC187: -1287.017401 | AD187: -1287.017401 | AE187: -1287.017401 | AF187: -1287.017401 | AG187: -1287.017401 | AH187: -1287.017401 | AI187: -1287.017401 | AJ187: -1287.017401 | AK187: -1287.017401 | AL187: -1287.017401 | AM187: -1287.017401 | AN187: -1287.017401
B188: 180 | C188: 1287.017401 | D188: 2.141459902 | E188: 1284.875941 | F188: 0 | G188: 0 | H188: 0 | I188: 0 | J188: 0 | K188: 0 | L188: 0 | M188: 0 | N188: =IF($B188<N$4,-$C188,IF($B188=N$4,-($C188+$J188),0)) -> 0 | O188: 0 | P188: 0 | Q188: 0 | R188: 0 | S188: 0 | T188: 0 | U188: 0 | V188: 0 | W188: 0 | X188: 0 | Y188: -1287.017401 | Z188: -1287.017401 | AA188: -1287.017401 | AB188: -1287.017401 | AC188: -1287.017401 | AD188: -1287.017401 | AE188: -1287.017401 | AF188: -1287.017401 | AG188: -1287.017401 | AH188: -1287.017401 | AI188: -1287.017401 | AJ188: -1287.017401 | AK188: -1287.017401 | AL188: -1287.017401 | AM188: -1287.017401 | AN188: -1287.017401
B189: 181 | C189: =IF(B189>$B$5,0,IF(B189=$B$5,E189+D189,-PMT($D$5/12,$B$5,$C$5,0,0))) -> 0 | D189: =IF(B189>$B$5,0,F188*$D$5/12) -> 0 | E189: =IF(B189>$B$5,0,IF(B189=$B$5,F188,C189-D189)) -> 0 | F189: =IF(B189>$B$5,0,F188-E189) -> 0 | G189: 0 | H189: 0 | I189: 0 | J189: 0 | K189: =IF($B189<K$4,-$C189,IF($B189=K$4,-($C189+$J189),0)) -> 0 | L189: 0 | M189: 0 | N189: 0 | O189: 0 | P189: 0 | Q189: 0 | R189: 0 | S189: 0 | T189: 0 | U189: 0 | V189: 0 | W189: 0 | X189: 0 | Y189: 0 | Z189: 0 | AA189: 0 | AB189: 0 | AC189: 0 | AD189: 0 | AE189: 0 | AF189: 0 | AG189: 0 | AH189: 0 | AI189: 0 | AJ189: 0 | AK189: 0 | AL189: 0 | AM189: 0 | AN189: 0
B190: 182 | C190: =IF(B190>$B$5,0,IF(B190=$B$5,E190+D190,-PMT($D$5/12,$B$5,$C$5,0,0))) -> 0 | D190: =IF(B190>$B$5,0,F189*$D$5/12) -> 0 | E190: =IF(B190>$B$5,0,IF(B190=$B$5,F189,C190-D190)) -> 0 | F190: 0 | G190: 0 | H190: 0 | I190: 0 | J190: 0 | K190: 0 | L190: 0 | M190: 0 | N190: 0 | O190: 0 | P190: 0 | Q190: 0 | R190: 0 | S190: 0 | T190: 0 | U190: 0 | V190: 0 | W190: 0 | X190: 0 | Y190: 0 | Z190: 0 | AA190: 0 | AB190: 0 | AC190: 0 | AD190: 0 | AE190: 0 | AF190: 0 | AG190: 0 | AH190: 0 | AI190: 0 | AJ190: 0 | AK190: 0 | AL190: 0 | AM190: 0 | AN190: 0
B191: 183 | C191: 0 | D191: 0 | E191: 0 | F191: 0 | G191: 0 | H191: 0 | I191: 0 | J191: 0 | K191: 0 | L191: 0 | M191: 0 | N191: 0 | O191: 0 | P191: 0 | Q191: 0 | R191: 0 | S191: 0 | T191: 0 | U191: 0 | V191: 0 | W191: 0 | X191: 0 | Y191: 0 | Z191: 0 | AA191: 0 | AB191: 0 | AC191: 0 | AD191: 0 | AE191: 0 | AF191: 0 | AG191: 0 | AH191: 0 | AI191: 0 | AJ191: 0 | AK191: 0 | AL191: 0 | AM191: 0 | AN191: 0
B192: 184 | C192: 0 | D192: 0 | E192: 0 | F192: 0 | G192: 0 | H192: 0 | I192: 0 | J192: 0 | K192: 0 | L192: 0 | M192: 0 | N192: 0 | O192: 0 | P192: 0 | Q192: 0 | R192: 0 | S192: 0 | T192: 0 | U192: 0 | V192: 0 | W192: 0 | X192: 0 | Y192: 0 | Z192: 0 | AA192: 0 | AB192: 0 | AC192: 0 | AD192: 0 | AE192: 0 | AF192: 0 | AG192: 0 | AH192: 0 | AI192: 0 | AJ192: 0 | AK192: 0 | AL192: 0 | AM192: 0 | AN192: 0
B193: 185 | C193: 0 | D193: 0 | E193: 0 | F193: 0 | G193: 0 | H193: 0 | I193: 0 | J193: 0 | K193: 0 | L193: 0 | M193: 0 | N193: =IF($B193<N$4,-$C193,IF($B193=N$4,-($C193+$J193),0)) -> 0 | O193: 0 | P193: 0 | Q193: 0 | R193: 0 | S193: 0 | T193: 0 | U193: 0 | V193: 0 | W193: 0 | X193: 0 | Y193: 0 | Z193: 0 | AA193: 0 | AB193: 0 | AC193: 0 | AD193: 0 | AE193: 0 | AF193: 0 | AG193: 0 | AH193: 0 | AI193: 0 | AJ193: 0 | AK193: 0 | AL193: 0 | AM193: 0 | AN193: 0
B194: 186 | C194: 0 | D194: 0 | E194: 0 | F194: 0 | G194: 0 | H194: 0 | I194: 0 | J194: 0 | K194: =IF($B194<K$4,-$C194,IF($B194=K$4,-($C194+$J194),0)) -> 0 | L194: 0 | M194: 0 | N194: 0 | O194: 0 | P194: 0 | Q194: 0 | R194: 0 | S194: 0 | T194: 0 | U194: 0 | V194: 0 | W194: 0 | X194: 0 | Y194: 0 | Z194: 0 | AA194: 0 | AB194: 0 | AC194: 0 | AD194: 0 | AE194: 0 | AF194: 0 | AG194: 0 | AH194: 0 | AI194: 0 | AJ194: 0 | AK194: 0 | AL194: 0 | AM194: 0 | AN194: 0
B195: 187 | C195: 0 | D195: 0 | E195: 0 | F195: 0 | G195: 0 | H195: 0 | I195: 0 | J195: 0 | K195: 0 | L195: 0 | M195: 0 | N195: 0 | O195: 0 | P195: 0 | Q195: 0 | R195: 0 | S195: 0 | T195: 0 | U195: 0 | V195: 0 | W195: 0 | X195: 0 | Y195: 0 | Z195: 0 | AA195: 0 | AB195: 0 | AC195: 0 | AD195: 0 | AE195: 0 | AF195: 0 | AG195: 0 | AH195: 0 | AI195: 0 | AJ195: 0 | AK195: 0 | AL195: 0 | AM195: 0 | AN195: 0
B196: 188 | C196: 0 | D196: 0 | E196: 0 | F196: 0 | G196: 0 | H196: 0 | I196: 0 | J196: 0 | K196: 0 | L196: 0 | M196: 0 | N196: 0 | O196: 0 | P196: 0 | Q196: 0 | R196: 0 | S196: 0 | T196: 0 | U196: 0 | V196: 0 | W196: 0 | X196: 0 | Y196: 0 | Z196: 0 | AA196: 0 | AB196: 0 | AC196: 0 | AD196: 0 | AE196: 0 | AF196: 0 | AG196: 0 | AH196: 0 | AI196: 0 | AJ196: 0 | AK196: 0 | AL196: 0 | AM196: 0 | AN196: 0
B197: 189 | C197: 0 | D197: 0 | E197: 0 | F197: 0 | G197: 0 | H197: 0 | I197: 0 | J197: 0 | K197: 0 | L197: 0 | M197: 0 | N197: 0 | O197: 0 | P197: 0 | Q197: 0 | R197: 0 | S197: 0 | T197: 0 | U197: 0 | V197: 0 | W197: 0 | X197: 0 | Y197: 0 | Z197: 0 | AA197: 0 | AB197: 0 | AC197: 0 | AD197: 0 | AE197: 0 | AF197: 0 | AG197: 0 | AH197: 0 | AI197: 0 | AJ197: 0 | AK197: 0 | AL197: 0 | AM197: 0 | AN197: 0
B198: 190 | C198: 0 | D198: 0 | E198: 0 | F198: 0 | G198: 0 | H198: 0 | I198: 0 | J198: 0 | K198: 0 | L198: 0 | M198: 0 | N198: =IF($B198<N$4,-$C198,IF($B198=N$4,-($C198+$J198),0)) -> 0 | O198: 0 | P198: 0 | Q198: 0 | R198: 0 | S198: 0 | T198: 0 | U198: 0 | V198: 0 | W198: 0 | X198: 0 | Y198: 0 | Z198: 0 | AA198: 0 | AB198: 0 | AC198: 0 | AD198: 0 | AE198: 0 | AF198: 0 | AG198: 0 | AH198: 0 | AI198: 0 | AJ198: 0 | AK198: 0 | AL198: 0 | AM198: 0 | AN198: 0
B199: 191 | C199: 0 | D199: 0 | E199: 0 | F199: 0 | G199: 0 | H199: 0 | I199: 0 | J199: 0 | K199: =IF($B199<K$4,-$C199,IF($B199=K$4,-($C199+$J199),0)) -> 0 | L199: 0 | M199: 0 | N199: 0 | O199: 0 | P199: 0 | Q199: 0 | R199: 0 | S199: 0 | T199: 0 | U199: 0 | V199: 0 | W199: 0 | X199: 0 | Y199: 0 | Z199: 0 | AA199: 0 | AB199: 0 | AC199: 0 | AD199: 0 | AE199: 0 | AF199: 0 | AG199: 0 | AH199: 0 | AI199: 0 | AJ199: 0 | AK199: 0 | AL199: 0 | AM199: 0 | AN199: 0
B200: 192 | C200: 0 | D200: 0 | E200: 0 | F200: 0 | G200: 0 | H200: 0 | I200: 0 | J200: 0 | K200: 0 | L200: 0 | M200: 0 | N200: 0 | O200: 0 | P200: 0 | Q200: 0 | R200: 0 | S200: 0 | T200: 0 | U200: 0 | V200: 0 | W200: 0 | X200: 0 | Y200: 0 | Z200: 0 | AA200: 0 | AB200: 0 | AC200: 0 | AD200: 0 | AE200: 0 | AF200: 0 | AG200: 0 | AH200: 0 | AI200: 0 | AJ200: 0 | AK200: 0 | AL200: 0 | AM200: 0 | AN200: 0
B201: 193 | C201: 0 | D201: 0 | E201: 0 | F201: 0 | G201: 0 | H201: 0 | I201: 0 | J201: =IF(B201>$B$5,0,F201+I201) -> 0 | K201: 0 | L201: 0 | M201: 0 | N201: 0 | O201: 0 | P201: 0 | Q201: 0 | R201: 0 | S201: 0 | T201: 0 | U201: 0 | V201: 0 | W201: 0 | X201: 0 | Y201: 0 | Z201: 0 | AA201: 0 | AB201: 0 | AC201: 0 | AD201: 0 | AE201: 0 | AF201: 0 | AG201: 0 | AH201: 0 | AI201: 0 | AJ201: 0 | AK201: 0 | AL201: 0 | AM201: 0 | AN201: 0
B202: 194 | C202: 0 | D202: 0 | E202: 0 | F202: =F201-E202 -> 0 | G202: =F202*3/100 -> 0 | H202: =F202*$D$5/2 -> 0 | I202: =IF(G202<H202,G202,H202) -> 0 | J202: 0 | K202: 0 | L202: 0 | M202: 0 | N202: 0 | O202: 0 | P202: 0 | Q202: 0 | R202: 0 | S202: 0 | T202: 0 | U202: 0 | V202: 0 | W202: 0 | X202: 0 | Y202: 0 | Z202: 0 | AA202: 0 | AB202: 0 | AC202: 0 | AD202: 0 | AE202: 0 | AF202: 0 | AG202: 0 | AH202: 0 | AI202: 0 | AJ202: 0 | AK202: 0 | AL202: 0 | AM202: 0 | AN202: 0
... 168 more rows

Sheet Feuil2

Sheet Feuil3
